{"text_format":"1","workbook":"xlsx","n_sheets":11,"sheets":["Prompt","C100","C101","C200","C300","C336","C400","C500","C700","C800","Enviar"],"not_rendered":{"charts":0,"images":6,"macros":1,"external_links":0,"defined_names":1,"comments":1,"pivot_tables":0},"unopened":[],"bounds":{"document_bytes":16777216,"sheet_cells":100000,"rows_first":2000,"rows_last":500,"rows_between":2000,"halvings":0,"cell_chars":16384,"cell_head_chars":4096},"cells_cut":0,"cells_raw":0,"read":"whole","date_system":"1900"}

{"sheet":"Prompt","index":0,"n_rows":79,"n_cols":4,"rows_kept":79,"cut":false,"hidden":true,"merged":[[1,3,2,6],[4,1,6,8],[43,1,44,8],[78,1,79,8],[9,1,10,8]]}
[]
[null,null,null,"¡ATENCIÓN!"]
[]
[]
[null,"Para hacer uso de las funcionalidades de esta Cédula Electrónica debe habilitar macros"]
[]
[]
[]
[]
[null,"Si utiliza Excel 2013 siga el siguiente procedimiento:"]
[]
[]
[]
[]
[]
[]
[]
[]
[]
[]
[]
[]
[]
[]
[]
[]
[]
[]
[]
[]
[]
[]
[]
[]
[]
[]
[]
[]
[]
[]
[]
[]
[]
[null,"Si utiliza Excel 2007 siga el siguiente procedimiento:"]
[]
[]
[]
[]
[]
[]
[]
[]
[]
[]
[]
[]
[]
[]
[]
[]
[]
[]
[]
[]
[]
[]
[]
[]
[]
[]
[]
[]
[]
[]
[]
[]
[]
[]
[null,"Si utiliza Excel 2000, 2002, 2003 siga el siguiente procedimiento:"]

{"sheet":"C100","index":1,"n_rows":496,"n_cols":23,"rows_kept":496,"cut":false,"hidden":false,"merged":[[109,17,109,22],[78,4,78,9],[86,4,86,10],[78,21,78,22],[79,21,79,22],[281,14,283,18],[284,19,284,20],[285,19,285,20],[289,19,289,20],[286,19,286,20],[287,19,287,20],[288,19,288,20],[157,3,159,6],[157,8,158,9],[159,8,159,9],[157,10,159,11],[160,8,160,9],[161,8,161,9],[160,10,160,11],[161,10,161,11],[181,19,181,22],[432,17,432,22],[157,7,158,7],[318,17,318,22],[228,17,228,22],[341,4,341,10],[342,11,343,11],[344,11,345,11],[346,11,347,11],[348,11,349,11],[351,11,352,11],[353,11,354,11],[165,19,165,20],[166,19,166,20],[196,19,196,22],[370,19,370,20],[371,19,371,20],[372,19,372,20],[373,19,373,20],[374,19,374,20],[343,17,343,18],[400,17,400,21],[289,15,289,18],[281,19,283,20],[281,21,283,22],[471,6,471,7],[452,20,452,21],[369,15,370,17],[370,6,370,10],[455,20,455,21],[456,20,456,21],[457,20,457,21],[124,5,124,10],[282,7,282,10],[263,16,263,17],[190,4,190,9],[190,10,192,10],[190,11,192,11],[191,4,191,9],[192,4,192,9],[193,4,193,9],[214,5,214,9],[128,17,128,22],[135,14,135,17],[301,17,301,22],[405,6,405,10],[414,6,414,10],[428,6,428,11],[450,20,450,21],[479,16,479,20],[467,16,467,20],[450,17,450,19],[472,6,472,7],[353,17,353,21],[140,8,140,9],[62,14,62,17],[62,21,62,22],[63,21,63,22],[64,21,64,22],[65,21,65,22],[66,21,66,22],[67,21,67,22],[68,16,68,18],[68,21,68,22],[207,17,207,22],[88,19,88,22],[79,16,79,18],[74,21,74,22],[369,6,369,10],[471,8,471,11],[472,8,472,11],[470,6,470,7],[470,8,470,11],[467,4,469,5],[467,6,467,11],[468,6,469,7],[468,8,469,11],[12,21,12,22],[14,9,14,22],[16,9,16,22],[40,10,40,11],[84,14,85,16],[84,19,84,20],[84,21,84,22],[83,4,83,10],[89,4,89,10],[86,19,86,20],[355,11,356,11],[451,20,451,21],[454,20,454,21],[453,20,453,21],[369,14,370,14],[369,21,370,21],[369,19,369,20],[73,14,73,17],[87,19,87,20],[53,2,53,12],[46,4,48,5],[85,19,85,20],[90,6,90,10],[49,14,49,16],[1,20,3,22],[1,6,1,19],[2,6,2,19],[3,6,3,19],[12,9,12,10],[47,7,47,8],[47,9,47,10],[43,10,43,11],[77,21,77,22],[75,21,75,22],[76,21,76,22],[40,14,40,16],[71,7,71,11],[73,21,73,22],[46,7,46,10],[54,3,54,12]]}
[]
[null,null,null,null,null,null,"CENSO EDUCATIVO 2022",null,null,null,null,null,null,null,null,null,null,null,null,null,"3AS"]
[null,null,null,null,null,null,"EDUCACIÓN BÁSICA REGULAR"]
[null,null,null,null,null,null,"SECUNDARIA"]
[null,null,"Versión :","2 - (32 y 64 bits)"]
[null,null,"INSTRUCCIONES DEL FORMATO ELECTRÓNICO "]
[]
[]
[]
[null,null,"IDENTIFICACIÓN DEL SERVICIO EDUCATIVO"]
[]
[]
[null,null,"1. CÓDIGO MODULAR  :",null,null,null,null,null,null,null,null,null,"2. ANEXO  :",null,0,null,null,null,null,null,"3. LOCAL EDUCATIVO :  "]
[]
[null,null,"4. NOMBRE DEL SERVICIO/NIVEL EDUCATIVO:",null,null,null,null,null,null,""]
[]
[null,null,"5. DISTRITO :",null,null,null,null,null,null,""]
[]
[null,null,"6. FORMA Y MODELO DEL SERVICIO :"]
[null,null,null,null,"Presencial",null,null,null,null,"","Semi-Presencial",null,null,null,""," A Distancia"]
[]
[null,null,null,null,"","JER - Jornada Escolar Regular",null,null,null,"","Secundaria en Alternancia",null,null,null,null,"","CPED - Centro Piloto de Educación a Distancia"]
[null,null,null,null,"","JEC - Jornada Escolar Completa",null,null,null,null,null,null,null,null,null,"","Otro"]
[null,null,null,null,"","COAR - Colegio de Alto Rendimiento"]
[]
[null,null,"7. MODELO DE SERVICIO EDUCATIVO EN EL ÁMBITO RURAL VINCULADO A ESTE SERVICIO/NIVEL EDUCATIVO"]
[null,null,null,null,null,"Secundaria con Residencia Estundiantil"]
[null,null,null,null,null,"Secundaria Tutorial"]
[]
[]
["GESTIÓN"]
[{"$f":"CONCATENATE(TRIM(UPPER(J32)),TRIM(UPPER(O32)),TRIM(UPPER(T32)))","v":""},null,null,"Esta Institución Educativa es de Gestión : ",null,null,null,null,null,""," 1 - Pública de gestión directa",null,null,null,""," 2 - Pública de gestión privada",null,null,null,null," 3 - Privada"]
[]
[]
[null,null,"100. CARACTERÍSTICAS DEL SERVICIO EDUCATIVO"]
[]
[null,null,"A. CARACTERÍSTICA DE LA ENSEÑANZA"]
[null,null,"101. CON RESPECTO A LAS CLASES:",null,null,null,null,null,null,null,null,null,null,"104. EN ESTE SERVICIO/NIVEL EDUCATIVO, ¿CUANTAS VACANTES POR GRADO Y "]
[null,null,null,null,null,null,null,null,null,null,null,null,null,null,"TURNO OFRECIÓ PARA EL PRESENTE PERIODO LECTIVO?"]
[null,null,null,"A. ¿CUÁNDO INICIARON LAS CLASES?",null,null,null,null,"Día",null,"Mes"]
[null,null,null," (Primer día en que asistieron los estudiantes)",null,null,null,null,null,"-",null,null,null,null,"Grado",null,null,"1º","2º","3º","4º","5º"]
[null,null,null,null,null,null,null,null,null,null,null,null,null,null,"Turno mañana",null,null,null,null,null,null,null,{"$f":"SUM(R42:V42)","v":0}]
[null,null,null,"B. ¿CUÁNDO TERMINARÁN LAS CLASES?",null,null,null,null,"Día",null,"Mes"]
[null,null,null,"(Último día en que asistirán los estudiantes)",null,null,null,null,null,"-",null,null,null,null,"Turno tarde",null,null,null,null,null,null,null,{"$f":"SUM(R44:V44)","v":0}]
[]
[null,null,"102. HORARIO DE CLASES DE LOS ESTUDIANTES:"]
[null,null,null,null,"TURNO",null,null,"Horario de clases",null,null,null,null,null,"105. EN ESTE SERVICIO/NIVEL EDUCATIVO, ¿CUANTOS POSTULANTES POR GRADO"]
[null,null,null,null,null,null,null,"Inicio",null,"Término",null,null,null,null,"Y TURNO SE PRESENTARON PARA EL PRESENTE PERIODO LECTIVO?"]
[null,null,null,null,null,null,{"$f":"SUM(G50:G52)","v":0},"Hora","Minutos","Hora","Minutos"]
[null,null,null,null,1,"Mañana",{"$f":"COUNT(H50:K50)","v":0},null,null,null,null,null,null,null,"Grado",null,null,"1º","2º","3º","4º","5º"]
[null,null,null,null,2,"Tarde",{"$f":"COUNT(H51:K51)","v":0},null,null,null,null,null,null,null,"Turno mañana",null,null,null,null,null,null,null,{"$f":"SUM(R51:V51)","v":0}]
[null,null,null,null,3,"Discontinuo",{"$f":"COUNT(H52:K52)","v":0}]
[null,null,null,null,null,null,null,null,null,null,null,null,null,null,"Turno tarde",null,null,null,null,null,null,null,{"$f":"SUM(R53:V53)","v":0}]
[null,null,"103. EN EL PRESENTE AÑO 2022, ¿BAJO QUÉ MODALIDAD SE REALIZAN LAS CLASES EN ESTE "]
[null,null,null,"SERVICIO/NIVEL EDUCATIVO?"]
[]
[null,null,null,null,"Presencial",null,null,"Semi presencial",null,null,"Remoto / A distancia"]
[]
[]
["DIAS",null,"106. EN EL PROCESO  DE  MATRÍCULA  DEL PERIODO 2022,  LOS PADRES  DE  FAMILIA, ",null,null,null,null,null,null,null,null,null,null,"114. INDIQUE USTED, ¿CUÁLES DE LAS SIGUIENTES INSTITUCIONES ORGANIZARON "]
[1,null,null,"CUIDADORES(AS) O APODERADOS(AS) QUE SOLICITARON UNA O MÁS VACANTES EN ESTE ",null,null,null,null,null,null,null,null,null,null,"ALGUNA ACTIVIDAD RELACIONADA A LA LUCHA CONTRA LA ANEMIA?"]
[2,null,null,"SERVICIO/NIVEL EDUCATIVO, ¿LOGRARON OBTENER EL TO- TAL DE VACANTES SOLICITADAS?"]
[3,null,null,null,null,null,null,null,null,null,null,null,null,null,"Entidad que Organizó",null,null,null,{"$f":"COUNTIF(T64:U69,\"X\")","v":0},"SI","NO","Fecha (dd-mm-aaaa)"]
[4,null,null,null,"Sí",null,"Pase a la pregunta 108.",null,null,null,null,null,null,null,"1. Servicio / Nivel Educativo",null,null,null,null,""]
[5,null,null,null,null,null,null,null,null,null,null,null,null,null,"2. UGEL/DRE",null,null,null,null,"",""]
[6,null,null,"","No",null,"¿Por qué no lograron una ó más vacante(s) ?",null,null,null,null,null,null,null,"3. Establecimiento de salud",null,null,null,null,"",""]
[7,null,null,null,null,null,"(Marque con un aspa “X” una opcion)",null,null,null,null,null,null,null,"4. Municipalidad",null,null,null,null,"",""]
[8,null,null,null,null,null,null,null,null,null,null,null,null,null,"5. Organización No Gubernamental",null,null,null,null,"",""]
[9,null,null,null,null,"","No hay capacidad para recibirlos",null,null,null,null,null,null,null,"6. Otro",null,null,null,null,"",""]
[10,null,null,null,null,"","Hay capacidad, pero existen aulas con mucho riesgo"]
[11,null,null,null,null,"","Prefiero tener una carga docente baja, para un mejor aprendizaje",null,null,null,null,null,null,"115. DURANTE EL AÑO 2021 ¿SE REALIZARON TALLERES DIRIGIDOS A LOS "]
[12,null,null,null,null,"","Otro",null,null,null,null,null,null,null,"PADRES DE FAMILIA O APODERADOS EN EL SERVICIO/NIVEL EDUCATIVO?"]
[13]
[14,null,null,null,null,null,null,null,null,null,null,null,null,null,"Entidad que Organizó",null,null,null,{"$f":"COUNTIF(T75:U80,\"X\")","v":0},"SI","NO","Cantidad de Talleres"]
[15,null,"107. ¿QUÉ CRITERIOS DE PRIORIZACIÓN TUVIERON EN CUENTA PARA LA ",null,null,null,null,null,null,null,null,null,null,null,"1. Aprendizajes"]
[16,null,null,"MATRÍCULA DE LOS ESTUDIANTES QUE SOLICITARON UNA VACANTE ",null,null,null,null,null,null,null,null,null,null,"2. Pauta de crianza"]
[17,null,null,"EN ESTE SERVICIO/NIVEL EDUCATIVO?",null,null,null,null,null,null,null,null,null,null,"3. Violencia"]
[18,null,null,null,null,null,null,null,null,null,null,null,null,null,"4. Inclusión"]
[19,null,null,"NRO.","CRITERIOS",null,null,null,null,null,null," SI-NO",null,null,"5. Alimentación y hábitos de higiene"]
[20,null,{"$f":"COUNTIF(L80:L91,\"NO\")","v":0},1,"Cercanía del lugar de residencia del estudiante a la I.E.",null,null,null,null,null,null,"",null,null,"6. Otro"]
[21,null,null,2,"Cercanía del trabajo de los padres o apoderados del estudiante.",null,null,null,null,null,null,""]
[22,null,null,3,"Hermanos (as) estudiando en la misma I.E.",null,null,null,null,null,null,""]
[23,null,null,4,"Hijos (as) de ex alumnos (as)",null,null,null,null,null,null,"",null,"116. EL SERVICIO/NIVEL EDUCATIVO, ¿TIENE PRACTICANTES DE UNIVERSIDADES O INSTITUTOS ?"]
[24,null,null,5,"Niños (as) con Necesidades Educativas Especiales (NEE) asociadas a discapacidad",null,null,null,null,null,null,""]
[25,null,null,6,"Estado civil de los padres",null,null,null,null,null,null,"",null,null,"Entidad de Procedencia",null,null,null,"Marcar","Nro. de",null,"Asistencia en nro. de:"]
[26,null,null,7,"Record de rendimiento académico del estudiante",null,null,null,null,null,null,"",null,null,null,null,null,{"$f":"COUNTIF(S87:S89,\"X\")","v":0},"\"X\"","Practicantes",null,"Dias","Meses"]
[27,null,null,8,"Documentos que sustenten solvencia económica de los padres o apoderados",null,null,null,null,null,null,"",null,null,"1. de Universidad"]
[28,null,null,9,"Orden de llegada de los documentos de inscripción del estudiante",null,null,null,null,null,null,"",null,null,"2. de Instituto"]
[29,null,null,10,"Que los estudiantes cuenten con documento de identidad",null,null,null,null,null,null,"",null,null,"3. Ninguno"]
[30,null,null,11,"Que el estudiante haya rendido una evaluación de ingreso previa a la matrícula",null,null,null,null,null,null,""]
[31,null,null,12,"Otros",null,null,null,null,null,null,null,null,"117. ¿ESTE SERVICIO/NIVEL EDUCATIVO SE ENCUENTRA EN EL ÁMBITO DE ALGÚN ESTABLECIMIENTO"]
[null,null,null,null,null,null,null,null,null,null,null,{"$f":"COUNTIF(L80:L91,\"SI\")+COUNTIF(L80:L91,\"NO\")","v":0},null,null,"DE SALUD ?"]
["MESES",null,"108. ¿HA RECIBIDO MATERIALES FORMATIVOS O INFORMATIVOS , FÍSICOS O DIGI-"]
["01: Enero",null,null,"TALES SOBRE LOS INSTRUMENTOS DE GESTIÓN?",null,null,null,null,null,null,null,null,null,null,"Sí",null,"No  ",null,null,null,"Pase a la pregunta 119."]
["02: Febrero"]
["03: Marzo",null,null,null,"He recibido materiales y/o formación a través de la UGEL."]
["04: Abril",null,null,null,"He recibido materiales y/o formación a través de la DRE."]
["05: Mayo",null,null,null,"He recibido materiales y/o formación a través de los programas formativos …",null,null,null,null,null,null,null,null,"118. ¿ESTE SERVICIO/NIVEL EDUCATIVO REALIZA COORDINACIONES Y/O ACCIONES DE ARTICULACIÓN","CON EL ESTABLECIMIENTO DE SALUD?"]
["06: Junio",null,null,null,"He recibido materiales y/o formación a través de páginas web oficiales del Minedu…"]
["07: Julio",null,null,null,"He recibido materiales y/o formación a través de mis colegas o redes profesionales",null,null,null,null,null,null,null,null,null,"Sí","","No  ",""]
["08: Agosto",null,null,null,"No he recibido materiales y/o información sobre los Instrumentos de Gestión"]
["09: Septiembre"]
["10: Octubre",null,"109. ¿SE HA ELABORADO EL PLAN ANUAL DE TRABAJO (PAT) 2022?"]
["11: Noviembre",null,null,null,null,null,null,null,null,null,null,null,null,null,null,null,"¿Qué tipo de coordinaciones y/o acciones realiza?"]
["12: Diciembre",null,null,null,null," No  "]
["01: Enero",null,null,null,null,null,null,null,null,null,null,null,null,null,null,"","Salud física de estudiantes"]
["02: Febrero",null,null,null,null,"¿Han sido incorporadas las actividades anuales del plan TOECE?",null,null,null,null,null,null,null,null,null,"","Salud física de docentes"]
["03: Marzo",null,null,null,null,"Sí  ",null,null,"No",null,null,null,null,null,null,"","Salud mental del estudiante"]
[null,null,null,null,null,null,null,null,null,null,null,null,null,null,null,"","Salud mental del docente"]
[null,null,"110. EL SERVICIO/NIVEL EDUCATIVO, ¿CUENTA CON UN PLAN APROBADO DE GESTIÓN",null,null,null,null,null,null,null,null,null,null,null,null,"","Otros      ",""]
[null,null,null,"DE RIESGO DE DESASTRES QUE CONTEMPLE LA FASE DE SOPORTE SOCIOEMOCIONAL,"]
[null,null,null,"FASE DE ACTIVIDADES LÚDICAS Y FASE DE APLICACIÓN DEL CURRÍCULO?"]
[]
[null,null,null,"Sí",null," No  "]
[]
[null,null,null,null,null,null,null,null,null,null,null,null,null,"119.  DURANTE EL AÑO 2021 Y HASTA LA FECHA DE LA APLICACIÓN DEL CENSO 2022,  ¿EN ESTE","SERVICIO/NIVEL EDUCATIVO SE HAN REALIZADO ACCIONES PARA ATENDER SITUACIONES DE"]
[null,null,"111. EN LOS ÚLTIMOS TRES MESES, ¿SE COORDINÓ U OFRECIÓ ALGÚN PROGRAMA O",null,null,null,null,null,null,null,null,null,null,null,"ESTUDIOS DE LOS ESTUDIANTES?"]
[null,null,null,"SERVICIO, COMO?:"]
[null,null,null,null,null,null,null,null,null,null,null,null,null,null,"Sí",null,"No  "]
[null,null,null,null,"Programa Qali Warma"]
[null,null,null,null,"Campaña de vacunación"]
[null,null,null,null,"Control de crecimiento y desarrollo"]
[null,null,null,null,"Servicio de Apoyo y Asesoramiento a las Necesidades Educativas Especiales (SAANEE)",null,null,null,null,null,null,null,null,null,null,null,"¿Qué acciones se realizaron?"]
[null,null,null,null,"Servicio de Apoyo Educativo Virtual (SAEV)"]
[null,null,null,null,"Otro             (especifique)",null,null,null,null,null,null,null,null,null,null,null,"Seguimiento y visitas a estudiantes en riesgo de abandono"]
[null,null,null,null,"Ninguno",null,null,null,null,null,null,null,null,null,null,null,"Orientaciones a las familias sobre la continuidad en la IE"]
[null,null,null,null,null,null,null,null,null,null,null,null,null,null,null,null,"Flexibilización de la atención educativa brindada en la IE"]
[null,null,null,null,null,null,null,null,null,null,null,null,null,null,null,null,"Focalizar a los estudiantes en riesgo"]
[null,null,"112. EL SERVICIO/NIVEL EDUCATIVO,  ¿CUENTA CON UN PLAN APROBADO DE LUCHA CONTRA ",null,null,null,null,null,null,null,null,null,null,null,null,null,"Otros      "]
[null,null,null,"LA ANEMIA?"]
[]
[null,null,null,"Sí",null,"No  "]
[null,null,null,null,null,null,null,null,null,null,null,null,null,"120. ¿EL SERVICIO/NIVEL EDUCATIVO, HA DESARROLLADO UNA O ALGUNAS ","DE LAS ACTIVIDADES PROPUESTAS PARA LA IMPLEMENTACIÓN DE LA EIT?"]
[null,null,null,null,null,"¿Está incorporado en los documentos de gestión?",null,null,null,null,null,null,null,null,"(Educación Intercultural para Todos y Todas)"]
[]
[null,null,null,null,null,null,"Sí",null,"No  ",null,null,null,null,null,"Entidad que Organizó",null,null,null,null,null,{"$f":"COUNTIF(V137:V139,\"SI\")+COUNTIF(V137:V139,\"NO\")","v":0}," SI-NO"]
[null,null,null,null,null,null,null,null,null,null,null,null,null,null,null,"Descubriendo nuevos orígenes"]
[null,null,"113. DURANTE EL 2021 ¿HA COORDINADO CON ALGUNA INSTITUCION PARA REALIZAR ACTIVIDADADES",null,null,null,null,null,null,null,null,null,null,null,null,"Encuentro con nuestra diversidad"]
[null,null,null,"RELACIONADA A LA LUCHA CONTRA LA ANEMIA?",null,null,null,null,null,null,null,null,null,null,null,"Feria de la diversidad"]
[null,null,null,null,null,null,null,null,null,null,null,null,null,null,null,null,null,null,null,null,null,{"$f":"COUNTIF(V137:V139,\"SI\")+COUNTIF(V137:V139,\"NO\")","v":0}]
[null,null,null,"Sí","","No  ",null,null,"No sabe",null,""]
[]
[]
[null,null,null,null,null,null,null,"Pase a la pregunta 115."]
[]
[]
[]
[null,null,"B. TUTORÍA , ORIENTACIÓN EDUCATIVA Y CONVIVENCIA ESCOLAR"]
[null,null,"121.  EN ESTE SERVICIO/NIVEL EDUCATIVO ¿SE DESARROLLAN PROGRAMAS QUE PROMUEVAN LA ÉTICA",null,null,null,null,null,null,null,null,null,null,"132. EL SERVICIO/NIVEL EDUCATIVO, ¿CUENTA CON LIBRO DE REGISTRO DE INCIDENCIAS "]
[null,null,null,"INTEGRIDAD Y VALORES?",null,null,null,null,null,null,null,null,null,null,"SOBRE VIOLENCIA Y ACOSO ESCOLAR EN EL MARCO DE LA LEY 29719?"]
[]
[null,null,null,"Sí",null," No  "]
[null,null,null,null,null,null,null,null,null,null,null,null,null,null,"Sí",null," No  ",null,null,null,"Pase a la pregunta 134."]
[null,null,"122.  INDIQUE,  ¿CON CUALES DE LOS SIGUIENTES COMITÉS CUENTA ESTE SERVICIO NIVEL EDUCATIVO Y "]
[null,null,null,"CON QUE FRECUENCIA SE REUNEN?",null,null,null,null,null,null,null,null,null,null,null,null,"¿El libro de registro se encuentra en un lugar visible?"]
[null,null,null,null,null,null,null,null,null,null,null,null,null,null,null,null,"Sí  ",null,null,"No"]
[null,null,null,"(Selecciones SI o No en la o las alternativas que correspondan)"]
[null,null,null,"Detalle de los comités en el  Servicio/Nivel Educativo",null,null,null,"Cuenta con este comité","¿Está conformado\n mediante \n Resolución\n Directoral (RD)?",null,"Frecuencia de las reuniones",null,null,"133. EN EL AÑO 2021, ¿SE HIZO USO DEL LIBRO DE REGISTRO DE INCIDENCIAS?"]
[]
[null,null,null,null,null,null,null,"SI - NO","SI - NO",null,null,null,null,null,"Sí",""," No  ",""]
["1: Semanal",null,null,"1.  Comité de Tutoría",null,null,null,null,"",null,"",null,""]
["2: Quincenal",null,null,"2. Comité de Gestión del Bienestar",null,null,null,null,null,null,null,null,"",null,null,null,"¿Cuántas incidencias se registraron en el año 2021?"]
["3: Mensual",null,null,null,{"$f":"COUNTIF(H161:H162,\"SI\")+COUNTIF(H161:H162,\"NO\")","v":0},null,null,null,null,null,null,null,null,null,null,null,null,null,""]
["4: Bimensual",null,"123. EL SERVICIO/NIVEL EDUCATIVO, ¿CUENTA CON PLAN DE TUTORÍA, ORIENTACIÓN EDUCATIVA Y "]
["5: Trimestral",null,null,"CONVIVENCIA ESCOLAR?",null,null,null,null,null,null,null,null,null,null,null,null,"Anote la fecha de la última incidencia registrada en el año 2021"]
["6: Semestral",null,null,null,null,null,null,null,null,null,null,null,null,null,null,null,null,null,"DÍA","MES",null,"AÑO"]
["7: No se reunen",null,null,"Sí",null," No  ","",null,null,"Pase a la pregunta 128.",null,null,null,null,null,null,null,null,"","",null,""]
[]
[null,null,"124. ¿EL PLAN DE TUTORÍA, ORIENTACIÓN EDUCATIVA Y CONVIVENCIA ESCOLAR PRESENTA AL MENOS",null,null,null,null,null,null,null,null,null,null,"134. EL SERVICIO/NIVEL EDUCATIVO, ¿REALIZA ACTIVIDADES PARA UNA CONVIVENCIA"]
[null,null,null,"UNA ACTIVIDAD RELACIONADA A LA GESTIÓN DE BIENESTAR EN EL RETORNO A LA",null,null,null,null,null,null,null,null,null,null,"ESCOLAR DEMOCRÁTICA ?"]
[null,null,null,"SEMIPRESENCIALIDAD O PRESENCIALIDAD?"]
[null,null,null,null,null,null,null,null,null,null,null,null,null,null," Sí",null," No  "]
[null,null,null,"Sí",null," No  ",""]
[null,null,null,null,null,null,null,null,null,null,null,null,null,null,null,null,"¿Cuenta con medios de verificación?"]
[null,null,null,"",null,null,null,null,null,null,null,null,null,null,null,null," Sí   ",null,null," No  "]
[null,null,"125. ¿SE HA ACTUALIZADO EL PLAN DE TUTORÍA, CON RELACIÓN A LO ELABORADO  EN EL AÑO 2021?"]
[null,null,null,"",null,null,null,null,null,null,null,null,null,null,null,null,null,null,"¿Con que medios de verificación cuenta?"]
[null,null,null,"Sí",null," No  ","",null,null,null,null,null,null,null,null,null,null,null,"(Marque con una “X”, una o más opciones)"]
[null,null,null,null,null,null,null,null,null,null,null,null,null,null,null,null,null,null,"Informe de actividades"]
[null,null,null,null,null,null,null,null,null,null,null,null,null,null,null,null,null,null,"Fotografías"]
[null,null,"126. LOS DOCENTES TUTORES, ¿CUENTAN CON UN PLAN TUTORIAL DE AULA PARA ESTE AÑO 2022?",null,null,null,null,null,null,null,null,null,null,null,null,null,null,null,"Videos"]
[null,null,null,null,null,null,null,null,null,null,null,null,null,null,null,null,null,null,"Otro"]
[null,null,null,"(Marque con una “X”, una opción)"]
[null,null,null,null,"1 - Sí, todos los docentes",null,null,null,null,null,null,null,null,"135. EL SERVICIO/NIVEL EDUCATIVO, ¿REALIZA ACTIVIDADES PARA LA PREVENCIÓN DE LA VIOLENCIA"]
[{"$f":"CONCATENATE(E167,D184,D185)","v":""},null,null,null,"2 - Sí, algunos docentes",null,null,null,null,null,null,null,null,null,"CONTRA NIÑAS, NIÑOS Y ADOLESCENTES?"]
[null,null,null,null,"3 - Ninguno",null,null,null,"Pase a la pregunta 128."]
[null,null,null,null,null,null,null,null,null,null,null,null,null,null," Sí",null," No  ",null,null,null,"Pase a la pregunta 137."]
[null,null,"127. ¿QUÉ TEMAS HAN SIDO PRIORIZADOS EN ESTOS PLANES TUTORIALES DE AULA?"]
[null,null,null,null,null,null,null,null,null,null,null,null,null,null,null,null,"¿Cuenta con medios de verificación?"]
["SI",null,null,"(Seleccione “Si” o “No” según corresponda para cada tema)",null,null,null,null,null,null,null,null,null,null,null,null," Sí   ",null,null," No  "]
["NO",null,null,null,null,null,null,null,null,null,"¿Ha sido priorizado?","¿Ha recibido asistencia técnica?"]
[null,null,null,"NRO.","Temas para los Planes tutoriales",null,null,null,null,null,null,null,null,null,null,null,null,null,"¿Cuenta con que medios de verificación?"]
[null,null,null,null,null,null,null,null,null,null,null,null,null,null,null,null,null,null,"(Marque con una “X”, una o más opciones)"]
[null,null,null,{"$f":"CONCATENATE(G167,D186)","v":""},null,null,null,null,null,null,"SI/NO","SI/NO",null,null,null,null,null,null,"Informe de actividades"]
[null,null,{"$f":"COUNTIF(K195:K215,\"NO\")","v":0},1,"Prevención de embarazo adolescente",null,null,null,null,null,null,null,null,null,null,null,null,null,"Fotografías"]
[null,null,null,2,"Prevención de trata de personas",null,null,null,null,null,"","",null,null,null,null,null,null,"Videos"]
[null,null,null,3,"Prevención de uso de drogas",null,null,null,null,null,"","",null,null,null,null,null,null,"Otro"]
[null,null,null,4,"Prevención de trabajo infantil forzoso",null,null,null,null,null,"",""]
[null,null,null,5,"Prevención de violencia escolar",null,null,null,null,null,"","",null,"136. ¿CUÁLES SON LAS ACTIVIDADES QUE REALIZA ESTE NIVEL/SERVICIO EDUCATIVO, PARA LA "]
[null,null,null,6,"Prevención de violencia familiar",null,null,null,null,null,"","",null,null,"PREVENCIÓN DE LA VIOLENCIA CONTRA NIÑAS, NIÑOS Y ADOLESCENTES?"]
[null,null,null,7,"Prevención de violencia sexual",null,null,null,null,null,"","",null,null,null,"(Marque con una “X”, una o más opciones)"]
[null,null,null,8,"Prevención de trastornos alimenticios",null,null,null,null,null,"","",null,null,null,"","Gestión de talleres o reuniones con estudiantes."]
[null,null,null,9,"Prevención ante fenómenos naturales",null,null,null,null,null,"","",null,null,null,"","Capacitación a docentes para prevenir y/o atender casos de riesgo."]
[null,null,null,10,"Prevención de VIH, TBC, Hepatitis B, y otras",null,null,null,null,null,"","",null,null,null,"","Envío de orientaciones a apoderados/as."]
[null,null,null,11,"Uso responsable de video juegos",null,null,null,null,null,"","",null,null,null,"","Gestión de talleres o reuniones con apoderados/as."]
[null,null,null,12,"Uso responsable de redes sociales digitales",null,null,null,null,null,"","",null,null,null,"","Gestión de estrategias en conjunto con otras organizaciones."]
[null,null,null,13,"Educación vial",null,null,null,null,null,"","",null,null,null,"","Monitoreo de situación emocional y familiar de estudiantes."]
[null,null,null,14,"Competencias Socioafectivas",null,null,null,null,null,"","",null,null,null,"","Otro",""]
[null,null,null,15,"Igualdad de género",null,null,null,null,null,"",""]
[null,null,null,16,"Educación sexual integral",null,null,null,null,null,"","",null,"137. USTED, SEÑOR(A) DIRECTOR(A), ¿CONOCE EL PORTAL SÍSEVE?"]
[null,null,null,17,"Promoción de la convivencia escolar",null,null,null,null,null,"",""]
[null,null,null,18,"Acciones de Orientación vocacional",null,null,null,null,null,"","",null,null," Sí",null," No  ",null,null,null,"Pase a la pregunta 140."]
[null,null,null,19,"Liderazgo",null,null,null,null,null,"",""]
[null,null,null,20,"Trabajo en Equipo",null,null,null,null,null,"","",null,null,null,null,"¿Ha sido capacitado por algún integrante de la UGEL/DRE"]
[null,null,null,21,"Otro",null,null,null,null,null,"","",null,null,null,null,"en el uso del Portal SíseVe? "]
[null,null,null,null,null,null,null,null,null,null,{"$f":"COUNTIF(K195:K215,\"SI\")+COUNTIF(K195:K215,\"NO\")","v":0},{"$f":"COUNTIF(L195:L215,\"SI\")+COUNTIF(L195:L215,\"NO\")","v":0},null,null,null,null," Sí   ",null,null," No  "]
[null,null,"128. EL SERVICIO/NIVEL EDUCATIVO, ¿CUENTA CON NORMAS DE CONVIVENCIA"]
[null,null,null,"ESCOLAR ACTUALIZADAS PARA EL AÑO 2022?",null,null,null,null,null,null,null,null,null,"138. EL SERVICIO/NIVEL EDUCATIVO, ¿SE ENCUENTRA AFILIADO AL SÍSEVE ?"]
[]
[null,null,null,"Sí",null," No  ",null,null,null,"Pase a la pregunta 132.",null,null,null,null,"Sí","","¿Cuántos casos han sido reportados?",null,null,null,null,""]
[]
[]
[null,null,null,null,null,"¿Están incorporadas al reglamento interno?",null,null,null,null,null,null,null,null,"No","","¿Porque razón el servicio y/o nivel educativo no está afiliado al SÍSEVE?"]
[]
[null,null,null,null,null,"Sí  ",null,null,"No",null,null,null,null,null,null,null,"(Marque con una “X”, una opción)"]
[null,null,null,null,null,null,null,null,null,null,null,null,null,null,null,"","Por falta de internet"]
[null,null,"129. ¿LAS NORMAS DE CONVIVENCIA ESCOLAR INCLUYEN NORMAS RELACIONADAS A LA GESTIÓN DE",null,null,null,null,null,null,null,null,null,null,null,null,"","Lo conoce y no le parece importante afiliarse"]
[null,null,null,"BIENESTAR EN EL RETORNO A LA SEMIPRESENCIALIDAD O PRESENCIALIDAD ?",null,null,null,null,null,null,null,null,null,null,null,"","Le parece importante, pero no lo ve necesario para su I.E."]
[null,null,null,null,null,null,null,null,null,null,null,null,null,null,null,"","Otro",""]
[null,null,null,"Sí",""," No  ",""]
[null,null,null,null,null,null,null,null,null,null,null,null,null,"139. EN EL AÑO 2021, ¿UD. HA REPORTADO ALGUNA INCIDENCIA EN EL PORTAL SÍSEVE?"]
[null,null,"130. ¿LAS NORMAS DE CONVIVENCIA ESCOLAR HAN SIDO CONSTRUIDAS CON LA",null,null,null,null,null,null,null,null,null,null,null,null,null,"(Sistema Especializado en Reporte de casos sobre Violencia Escolar)"]
[null,null,null,"PARTICIPACIÓN DE REPRESENTANTES DE LAS/LOS ESTUDIANTES? "]
[null,null,null,null,null,null,null,null,null,null,null,null,null,null," Sí","",null,"Para el año 2021 ",null,null,null,""]
[null,null,null,"Sí",""," No  ","",null,null,null,null,null,null,null,null,null,null,"¿Cuántos casos fueron reportados?"]
[null,null,null,null,null,null,null,null,null,null,null,null,null,null,"No",""]
[null,null,"131. ¿EL SERVICIO/NIVEL EDUCATIVO CUENTA CON AL MENOS UNA/UN RESPONSABLE DE"]
[null,null,null,"CONVIVENCIA ESCOLAR ASIGNADO PARA EL AÑO 2022?",null,null,null,null,null,null,null,null,null,"140. USTED, SEÑOR (A) DIRECTOR (A), ¿CONOCE LOS PROTOCOLOS PARA LA ATENCIÓN DE LOS"]
[null,null,null,null,null,null,null,null,null,null,null,null,null,null,"CASOS DE VIOLENCIA EN ESTE SERVICIO/NIVEL EDUCATIVO?"]
[null,null,null,"Sí",""," No  ",""]
[null,null,null,null,null,null,null,null,null,null,null,null,null,null," Sí",null," No  "]
[]
[null,null,null,null,null,"¿Se encuentra registrado en el portal SíseVe?",null,null,null,null,null,null,null,null,null,null,"¿Ha sido capacitado por algún integrante de la UGEL/DRE en el uso"]
[null,null,null,null,null,null,null,null,null,null,null,null,null,null,null,null,"de los Protocolos para la atención de los casos de violencia en la "]
[null,null,null,null,null,"Sí  ","",null,"No","",null,null,null,null,null,null,"Institución Educativa?"]
[null,null,null,null,null,null,null,null,null,null,null,null,null,null,null,null," Sí   ",null,null," No  "]
[]
[]
[]
[null,null,"141. SEÑOR(A) DIRECTOR(A), EN EL AÑO 2021, ¿SE APLICARON LOS PROTOCOLOS PARA LA ATENCIÓN",null,null,null,null,null,null,null,null,null,null,"151. SOBRE LA ATENCIÓN A LAS DENUNCIAS RECIBIDAS CONTRA EL PERSONAL DOCENTE"]
[null,null,null," DE LOS CASOS DE VIOLENCIA EN EL SERVICIO/NIVEL EDUCATIVO QUE FUERON ACTUALIZADOS",null,null,null,null,null,null,null,null,null,"EN EL PRESENTE AÑO, INDIQUE USTED:"]
[null,null,null,"PARA LA EDUCACIÓN A DISTANCIA?"]
[null,null,null,null,null,null,null,null,null,null,null,null,null,null,null,"A.   ¿ CUÁNTAS DERIVÓ A LA CPPADD ?"]
[null,null,null," Sí",null," No  ",null,null,null,null,null,null,null,null,null,"B.   ¿CUÁNTAS ASUMIÓ LA INVESTIGACIÓN"]
[null,null,null,null,null,null,null,null,null,null,null,null,null,null,null,"        POR SER DE SU COMPETENCIA?"]
[null,null,"142. ESTE SERVICIO/NIVEL EDUCATIVO, ¿RECIBE ASISTENCIA TÉCNICA PARA LA PROMOCIÓN DE LA"]
[null,null,null,"CONVIVENCIA ESCOLAR, LA PREVENCIÓN Y ATENCIÓN DE LA VIOLENCIA ESCOLAR?"]
[null,null,null,null,null,null,null,null,null,null,null,null,null,"152. SEÑOR(A) DIRECTOR(A), DURANTE EL PRESENTE AÑO, ¿USTED HA SIDO OBJETO DE "]
[null,null,null," Sí",null," No  ",null,null,null,null,null,null,null,"DENUNCIAS POR ADOPTAR MEDIDAS EN PROTECCIÓN DEL ESTUDIANTE O DENUNCIAS DE"]
[null,null,null,null,null,null,null,null,null,null,null,null,null,"CORRUPCIÓN?"]
[null,null,"143. ¿USTED HA RECURRIDO A LA UGEL/DRE SOLICITANDO ORIENTACIONES PARA MEJORAR LA"]
[null,null,null,"CONVIVENCIA EN SU SERVICIO/NIVEL EDUCATIVO?",null,null,null,null,null,null,null,null,null,null," Sí",null," No  "]
[null,null,null,"(Orientaciones para la prevención de la violencia, atención de casos y promoción de la convivencia)"]
[null,null,null," Sí",null," No  ",null,null,null,null,null,null,null,null,null,null,"¿Cuántas?"]
[]
[null,null,null,null,null,"¿Usted ha recibido alguna información y/o capacitación?",null,null,null,null,null,null,null,"153. SEÑOR(A) DIRECTOR(A), EN ESTE SERVICIO/NIVEL EDUCATIVO, ¿SE TIENEN IMPLEMEN-"]
[null,null,null,null,null," Sí   ",null,null," No  ",null,null,null,null,null,"TADAS MEDIDAS DE SEGURIDAD PARA EL TRATAMIENTO DE LOS DATOS PERSONALES QUE"]
[null,null,null,null,null,null,null,null,null,null,null,null,null,null,"ADMINISTRAN?"]
[null,null,"144. ¿EL SERVICIO/NIVEL EDUCATIVO CUENTA CON UN MAPA O DIRECTORIO DE ALIADOS ESTRATÉGICOS",null,null,null,null,null,null,null,null,null,null,null,"(Ya sea de alumnos, profesores, personal administrativo o terceros. En cumplimiento de la"]
[null,null,null,"PARA LA PREVENCIÓN Y ATENCIÓN DE CASOS DE VIOLENCIA ESCOLAR?",null,null,null,null,null,null,null,null,null,null," ley N° 29733 y su reglamento)"]
[]
[null,null,null," Sí",null," No  ",null,null,null,"Pase a la pregunta 146.",null,null,null,null," Sí",null," No  "]
[]
[null,null,null,null,null,"En caso de que cuente con un mapa o directorio de aliados estratégicos, ",null,null,null,null,null,null,null,"154. ESTE SERVICIO/NIVEL EDUCATIVO, ¿SE HA BENEFICIADO CON ALGUNA ACCIÓN"]
[null,null,null,null,null,"por favor, indique quiénes lo conforman:",null,null,null,null,null,null,null,null,"DE VOLUNTARIADO DURANTE ESTE PRIMER/SEGUNDO SEMESTRE DEL AÑO?"]
[null,null,null,null,null,"(Marque con una “X”, una o más opciones)"]
[null,null,null,null,null,null,"DEMUNA",null,null,null,null,null,null,null," Sí",""," No  ",null,null,null,"Pase a la pregunta 156."]
[null,null,null,null,null,null,"Defensoría del pueblo"]
[null,null,null,null,null,null,"Centro de emergencia Mujer (CEM)",null,null,null,null,null,null,"155. SELECCIONE EL O LOS ASPECTOS EN QUE APORTARON LAS ACCIONES DE VOLUNTARIADO"]
[null,null,null,null,null,null,"Centro o posta de salud",null,null,null,null,null,null,null,"IMPLEMENTADAS EN ESTE SERVICIO/NIVEL EDUCATIVO E INDIQUE ¿CUÁL DE ELLAS APORTÓ"]
[null,null,null,null,null,null,"Iglesia",null,null,null,null,null,null,null,"MÁS EN EL APRENDIZAJE DE LOS ESTUDIANTES? "]
[null,null,null,null,null,null,"Comisaría",null,null,null,null,null,null,null,"Aspectos en los que aportaron las acciones de voluntariado implementadas en la IE",null,null,null,null,"¿Aportaron en este aspecto?",null,"¿Cuál aporto más en el aprendizaje de los estudiantes?\n(Marque con una “X” \n solo una opción"]
[null,null,null,null,null,null,"Otro"]
[]
[null,null,"145. ¿EL SERVICIO/NIVEL EDUCATIVO HA REALIZADO ALGUNA ACTIVIDAD COORDINADA",null,null,null,null,null,null,null,null,null,null,{"$f":"COUNTIF(T285:T290,\"NO\")","v":0},"Condiciones para el retorno estudiante",null,null,null,null,"",null,""]
[null,null,"CON ALGUNO DE LOS ALIADOS ESTRATÉGICOS?",null,null,null,null,null,null,null,null,null,null,null,"Recuperación verano 2022",null,null,null,null,"",null,""]
[null,null,null,null,null,null,null,null,null,null,null,null,null,null,"Consolidación de los aprendizajes de los est.",null,null,null,null,"",null,""]
[null,null,null," Sí",""," No  ","",null,null,null,null,null,null,null,"Matrícula escolar",null,null,null,null,"",null,""]
[null,null,null,null,null,null,null,null,null,null,null,null,null,null,"Identificación de estudiantes en riesgo de …",null,null,null,null,"",null,""]
[null,null,null,null,null,null,null,null,null,null,null,null,null,null,"Otro",null,null,null,null,"",null,""]
[null,null,"146. SEÑOR(A) DIRECTOR(A,) ¿EMPLEA USTED HERRAMIENTAS DE CONSULTA PARA",null,null,null,null,null,null,null,null,null,null,null,null,null,null,null,null,{"$f":"COUNTIF(T285:T290,\"SI\")+COUNTIF(T285:T290,\"NO\")","v":0},null,{"$f":"COUNTIF(V285:V290,\"X\")","v":0}]
[null,null,"VERIFICAR LA SITUACIÓN DEL PERSONAL DE ESTE SERVICIO/NIVEL EDUCATIVO, TAL COMO"]
[null,null," EL REGISTRO NACIONAL DE SANCIONES CONTRA SERVIDORES CIVILES – RNSSC?",null,null,null,null,null,null,null,null,null,null,"156. ¿QUÉ ESTRATEGIAS DE TUTORÍA Y ORIENTACIÓN EDUCATIVA IMPLEMENTAN CON LOS "]
[null,null,null,null,null,null,null,null,null,null,null,null,null,null,"ESTUDIANTES?"]
[null,null,null," Sí",null," No  "]
[null,null,null,null,null,null,null,null,null,null,null,null,null,null,null,null,"Tutoría Individual"]
[null,null,"147. SEÑOR(A) DIRECTOR(A) ¿CONOCE USTED QUE PUEDE PRESENTAR DENUNCIAS SOBRE",null,null,null,null,null,null,null,null,null,null,null,null,null,"Tutoría grupal"]
[null,null,"POSIBLE ACTOS DE SOBORNO DE MANERA ANÓNIMA, CON LA FINALIDAD DE PROTEGER",null,null,null,null,null,null,null,null,null,null,null,null,null,"Participación estudiantil "]
[null,null,"SU IDENTIDAD?",null,null,null,null,null,null,null,null,null,null,null,null,null,"Trabajo con las familias y la comunidad"]
[null,null,null,null,null,null,null,null,null,null,null,null,null,null,null,null,"Orientación Educativa permanente"]
[null,null,null," Sí",null," No  ",null,null,null,null,null,null,null,null,null,null,"Ninguno"]
[null,null,null,null,null,null,null,null,null,null,null,null,null,null,null,null,"Otro"]
[null,null,"148. SEÑOR(A) DIRECTOR(A) ¿TIENE CONOCIMIENTO QUE LOS HECHOS DE VIOLENCIA,"]
[null,null,"ADEMÁS DE SER REPORTADOS EN EL PORTAL DEL SÍSEVE, DEBEN SER REPORTADOS"]
[null,null,"A LA UGEL?",null,null,null,null,null,null,null,null,null,null,"157. ESTE SERVICIO/NIVEL EDUCATIVO QUE DIRIGE, ¿DURANTE EL PRESENTE AÑO HA RECIBIDO O"]
[null,null,null,null,null,null,null,null,null,null,null,null,null,null,"VIENE RECIBIENDO APOYO DE ALGUNA EMPRESA PRIVADA O DE ALGUNA ONG EN TEMAS"]
[null,null,null," Sí",null," No  ",null,null,null,null,null,null,null,null,"DE MEJORA DE INFRAESTRUCTURA, MOBILIARIO Y EQUIPAMIENTO?"]
[]
[null,null,"149. SEÑOR(A) DIRECTOR(A) ¿CONOCE USTED EN QUE CASOS TIENE COMPETENCIA PARA",null,null,null,null,null,null,null,null,null,null,null," Sí",null," No  ",null,null,null,"Pase a la pregunta 159."]
[null,null,"INVESTIGAR UNA DENUNCIA QUE HAYA SIDO PRESENTADA EN CONTRA DE PROFESORES,"]
[null,null,"PERSONAL JERÁRQUICO Y SUBDIRECTOR DE ESTE SERVICIO/NIVEL EDUCATIVO QUE DIRIGE?\n"]
[]
[null,null,null,null,null,null,null,null,null,null,null,null,null,"158. INDIQUE EL TIPO DE APOYO QUE HA RECIBIDO DE LA EMPRESA PRIVADA U ONG MENCIONADA"]
[null,null,null," Sí",null," No  ",null,null,null,null,null,null,null,null,"EN SU RESPUESTA ANTERIOR"]
[null,null,null,null,null,null,null,null,null,null,null,null,null,null,null,"(Marque con una “X”, una o más opciones)"]
[null,null,"150. SEÑOR(A) DIRECTOR(A), DURANTE EL PRESENTE AÑO 2021, ¿HA RECIBIDO",null,null,null,null,null,null,null,null,null,null,null,null,null,"Infraestructura"]
[null,null,"DENUNCIAS CONTRA EL PERSONAL DOCENTE DE ESTE SERVICIO/NIVEL EDUCATIVO?",null,null,null,null,null,null,null,null,null,null,null,null,null,"Mobiliario"]
[null,null,null,null,null,null,null,null,null,null,null,null,null,null,null,null,"Equipamiento"]
[null,null,null," Sí",null," No  ",null,null,null,"Pase a la pregunta 152.",null,null,null,null,null,null,"Otro"]
[]
[null,null,null,null,null,null,"¿Cuántas?"]
[]
[]
[]
[null,null,"C. ACOMPAÑAMIENTO Y SOPORTE PEDAGÓGICO"]
[null,null,"159. DESDE EL INICIO DEL AÑO ESCOLAR 2021 HASTA LA FECHA DE REPORTE DEL CENSO",null,null,null,null,null,null,null,null,null,null,"169. EL SERVICIO/NIVEL EDUCATIVO, ¿HA PLANTEADO PLANES DE MEJORA DE ACUERDO AL"]
[null,null,null,"EDUCATIVO EL SERVICIO/NIVEL EDUCATIVO, ¿HA RECIBIDO COMUNICACIÓN O PARTICIPACIÓN",null,null,null,null,null,null,null,null,null,null,"DIAGNÓSTICO DE LOGROS DE APRENDIZAJE DE LOS ESTUDIANTES EN EL ÁREA DE COMUNICACIÓN?"]
[null,null,null,"PRESENCIAL O VIRTUAL/REMOTA DEL ESPECIALISTA PEDAGÓGICO DE LA UGEL,"]
[null,null,null,"CON LA FINALIDAD DE BRINDAR ASISTENCIA TÉCNICA?"]
[null,null,null,null,null,null,null,null,null,null,null,null,null,null," Sí",null," No  "]
[null,null,null,"Sí",null,null,"¿Cuántas veces?"]
[null,null,null,null,null,null,null,"Presencial:",null,null,null,null,null,null,null,null,"¿Cuenta con resultados?"]
[null,null,null,null,null,null,null,"Virtual/Remota:"]
[null,null,null,null,null,null,null,null,null,null,null,null,null,null,null,null," Sí  ",null,null," No  "]
[null,null,null," No  ",null,null,"Pase a la pregunta 161."]
[null,null,null,null,null,null,null,null,null,null,null,null,null,"170. EL SERVICIO/NIVEL EDUCATIVO, ¿REALIZA ACTIVIDADES PEDAGÓGICAS PARA"]
[null,null,null,null,null,null,null,null,null,null,null,null,null,null,"INCENTIVAR EL HÁBITO LECTOR EN LOS ESTUDIANTES?"]
[null,null,"160. ¿CUÁLES DE LAS SIGUIENTES ACCIONES HA REALIZADO EL ESPECIALISTA PEDAGÓGICO AL"]
[null,null,null,"MOMENTO DE BRINDAR LA ASISTENCIA TÉCNICA AL SERVICIO/NIVEL EDUCATIVO?",null,null,null,null,null,null,null,null,null,null," Sí",null," No  "]
[null,null,null,"(Marque con una “X” en “Si” o “No” según corresponda en cada acción)"]
[null,null,null,null,null,null,null,null,null,null,null,null,null,"171. DURANTE EL AÑO 2021, ¿SE REALIZÓ EL INFORME DEL PROGRESO DE LOS"]
[null,null,null,"NRO.","ACCIONES",null,null,null,null,null,null," SI - NO",null,null,"ESTUDIANTES A LOS PADRES DE FAMILIA?"]
[null,null,{"$f":"COUNTIF(L343:L359,\"NO\")","v":0},1,"Pregunto sobre las necesidades y demandas pedagógicas del"]
[null,null,null,null,"servicio/nivel educativo",null,null,null,null,null,null,null,null,null,"Sí",null,null,"¿Cuántas veces?"]
[null,null,null,2,"Observó alguna sesión o actividades de aprendizaje, ya sea de"]
[null,null,null,null,"manera presencial o virtual/remota (por lo menos una vez)",null,null,null,null,null,null,null,null,null,"No",null,null,"Pase a la pregunta 173."]
[null,null,null,3,"Sostuvó un clima de confianza y proximidad durante sus acciones"]
[null,null,null,null,"de asistencia técnica con este servicio/ nivel educativo",null,null,null,null,null,null,null,null,"172. ¿CÓMO SE REALIZÓ EL INFORME DEL PROGRESO DE LOS ESTUDIANTES A LOS"]
[null,null,null,4,"Generó algún espacio para que el director(a) del servicio/nivel",null,null,null,null,null,null,null,null,null,"PADRES DE FAMILIA EN EL AÑO 2021?"]
[null,null,null,null,"educativo autoevalúe su práctica",null,null,null,null,null,null,null,null,null,null,"(Marque con una “X” una opción)"]
[null,null,null,5,"Escuchó y respondió las dudas y consultas realizadas por usted",null,null,null,null,null,null,null,null,null,null,null,"Individual - (Informe de cada estudiante a cada PPFF)"]
[null,null,null,6,"Las orientaciones brindadas atendieron las necesidades y",null,null,null,null,null,null,null,null,null,null,null,"Pequeños grupos - (Informe en grupos de 2 hasta 10 estudiantes)"]
[null,null,null,null,"demandas señaladas",null,null,null,null,null,null,null,null,null,null,null,"Grupal - (Informe en grupos de 11 a más estudiantes)"]
[null,null,null,7,"Brindó orientaciones para la mejora de las prácticas pedagógicas",null,null,null,null,null,null,null,null,null,null,null,"Otros"]
[null,null,null,null,"y de gestión acorde al enfoque por competencias."]
[null,null,null,8,"Sugirió estrategias pedagógicas contextualizadas para mejorar las",null,null,null,null,null,null,null,null,"173. ¿HA VISITADO EL PORTAL WEB PARA DIRECTIVOS EN LOS ÚLTIMOS TRES MESES"]
[null,null,null,null,"prácticas docentes"]
[null,null,null,9,"Dio a conocer las fortalezas del servicio / nivel educativo",null,null,null,null,null,null,null,null,null," Sí",null," No  "]
[null,null,null,10,"Se asumieron compromisos y/o acuerdos para la mejora"]
[null,null,null,null,null,null,null,null,null,null,null,{"$f":"COUNTIF(L343:L359,\"SI\")+COUNTIF(L343:L359,\"NO\")","v":0},null,null,null,null,"¿La información encontrada en el portal web para directivos"]
[null,null,"161. DURANTE EL AÑO 2021 Y HASTA EL REPORTE DEL CENSO EDUCATIVO 2022, EL",null,null,null,null,null,null,null,null,null,null,null,null,null,"  le resulto de utilidad?"]
[null,null,null,"EL SERVICIO/NIVEL EDUCATIVO, ¿HA RECIBIDO ALGÚN TIPO DE ACOMPAÑAMIENTO"]
[null,null,null,"DIRIGIDO AL DIRECTIVO?",null,null,null,null,null,null,null,null,null,null,null,null," Sí  ",null,null," No  "]
[]
[null,null,null,"Sí",null," No  ",null,null,null,null,null,null,null,"174. ESTE SERVICIO/NIVEL EDUCATIVO, ¿HA RECIBIDO ALGÚN TIPO DE PERSONAL"]
[null,null,null,null,null,"¿Que Institución le brindó el acompañamiento?",null,null,null,null,null,null,null,null,"DURANTE EL PROCESO EXTRAORDINARIO DE MATRÍCULA 2021?"]
[null,null,null,null,null,"(Marque con una “X” una o más opciones)"]
[null,null,null,null,null,"DRE",null,null,null,null,null,null,null,null,"(Seleccione “Sí” o “No” recibió algún tipo de personal y luego consigne la cantidad recibida)"]
[null,null,null,null,null,"UGEL"]
[null,null,null,null,null,"MINEDU",null,null,null,null,null,null,null,null,"Nro.","Tipo de personal",null,null,null,"¿Recibió?",null,"¿Cuántos recibió?"]
[null,null,null,null,null,"OTROS",null,null,null,null,null,null,null,null,null,null,null,null,{"$f":"COUNTIF(T372:T375,\"SI\") + COUNTIF(T372:T375,\"NO\")","v":0},"Sí - No"]
[null,null,null,null,null,null,null,null,null,null,null,null,null,null,1,"Director"]
[null,null,"162. DURANTE EL AÑO 2021, EL EQUIPO DIRECTIVO DE ESTE SERVICIO/NIVEL EDUCATIVO",null,null,null,null,null,null,null,null,null,null,null,2,"Sub-director"]
[null,null,null," ¿HA REALIZADO EL MONITOREO A LA PRÁCTICA PEDAGÓGICA DE LOS DOCENTES?",null,null,null,null,null,null,null,null,null,null,3,"Personal docente"]
[null,null,null,null,null,null,null,null,"(Marque con una “X” una opción)",null,null,null,null,null,4,"Personal administrativo"]
[null,null,null,"Sí",null,null,"\n¿A cuántos",null,"","Todos los docentes"]
[null,null,null,null,null,null,"\ndocentes?",null,"","Más del 50% de docentes",null,null,null,"175. ¿EL PERSONAL DE ESTE SERVICIO/NIVEL EDUCATIVO, HA RECIBIDO ALGÚN TIPO DE SOPORTE O"]
[null,null,null,null,null,null,null,null,"","Menos del 50% de docentes",null,null,null,null," ACOMPAÑAMIENTO SOCIOEMOCIONAL DE PARTE DE EQUIPOS DE UGEL O DRE?"]
[]
[null,null,null," No  ",null,null,"Pase a la pregunta 164.",null,null,null,null,null,null,null," Sí",null," No  "]
[]
[null,null,"163. DURANTE EL AÑO 2021, EN PROMEDIO, ¿CUÁNTAS REUNIONES POR SEMANA",null,null,null,null,null,null,null,null,null,null,"176. ¿EL SERVICIO/NIVEL EDUCATIVO HA INCORPORADO/IMPLEMENTADO PROCESOS DE "]
[null,null,null,"DE TRABAJO COLEGIADO O FORMACIÓN REALIZÓ CON EL PRESONAL DE ESTE",null,null,null,null,null,null,null,null,null,null,"ENSEÑANZA Y APRENDIZAJE HÍBRIDO?"]
[null,null,null,"SERVICIO/NIVEL EDUCATIVO?"]
[null,null,null,null,null,null,null,null,null,null,null,null,null,null," Sí",null," No  "]
[null,null,null,null,"Promedio de reuniones por semana",null,null,null,null,null,""]
[null,null,null,null,null,null,null,null,null,null,null,null,null,"177. SEÑOR(A) DIRECTOR(A), ¿TIENE USTED CONOCIMIENTO SI AL MENOS EL 50% DEL PERSONAL"]
[null,null,"164. EN EL PRESENTE AÑO, EL PERSONAL DIRECTIVO DE ESTE SERVICIO/NIVEL EDUCATIVO",null,null,null,null,null,null,null,null,null,null,null,"DOCENTE DE SU IE  REALIZA ACTIVIDADES PEDAGÓGICAS PARA FORTALECER LA AUTONOMÍA "]
[null,null,null,"¿BRINDA SOPORTE Y APOYO A LOS DOCENTES EN TORNO A SU DESEMPEÑO",null,null,null,null,null,null,null,null,null,null,"EN LAS Y LOS ESTUDIANTES EN EL CONTEXTO DE APRENDIZAJE HÍBRIDO?"]
[null,null,null,"EN EL MARCO DEL ACOMPAÑAMIENTO PEDAGÓGICO Y ESPACIOS DE TRABAJO"]
[null,null,null,"COLEGIADO?",null,null,null,null,null,null,null,null,null,null," Sí",null," No  "]
[]
[null,null,null,"Sí",""," No  ",null,null,"Pase a la pregunta 166.",null,null,null,null,"178. ¿QUÉ ASPECTOS ABORDAN LOS DOCENTES PARA PROMOVER LA AUTONOMÍA DE LAS Y LOS"]
[null,null,null,null,null,null,null,null,null,null,null,null,null,null,"ESTUDIANTES EN EL CONTEXTO DE APRENDIZAJE HÍBRIDO?"]
[null,null,"165. ¿QUÉ TEMAS HAN SIDO ABORDADOS MAYORITARIAMENTE POR EL EQUIPO"]
[null,null,null,"DIRECTIVO DURANTE LAS SESIONES DE SOPORTE Y APOYO A LOS DOCENTES",null,null,null,null,null,null,null,null,null,null,null,null,"Desarrollo de la automotivación"]
[null,null,null,"EN EL MARCO DEL ACOMPAÑAMIENTO PEDAGÓGICO Y ESPACIOS DE TRABAJO",null,null,null,null,null,null,null,null,null,null,null,null,"Desarrollo del autoconcepto"]
[null,null,null,"COLEGIADO?",null,"(Marque con una  “X” una o más opciones)",null,null,null,null,null,null,null,null,null,null,"Desarrollo de la regulación emocional"]
[null,null,null,null,null,null,null,null,null,null,null,null,null,null,null,null,"Monitoreo de la acción o las tareas"]
[null,null,null,"","Planificación curricular/Aprendizaje híbrido",null,null,null,null,null,null,null,null,null,null,null,"Promoción de la toma de decisiones responsables"]
[null,null,null,"","Conducción de los aprendizajes",null,null,null,null,null,null,null,null,null,null,null,"Otro     "]
[null,null,null,"","Como brindar acompañamiento socioafectivo y cognitivo"]
[null,null,null,"","Uso de los recursos y materiales educativos para atender la diversidad",null,null,null,null,null,null,null,null,"179. ¿EL SERVICIO/NIVEL EDUCATIVO  REALIZA EL ACOMPAÑAMIENTO A LAS ACTI VIDADES"]
[null,null,null,"","Evaluación formativa y retroalimentación",null,null,null,null,null,null,null,null,null," PEDAGÓGICAS RELACIONADAS A PROCESOS DE ENSEÑANZA Y APRENDIZAJE HÍBRIDO?"]
[null,null,null,"","Fortalecimiento del uso de TIC"]
[null,null,null,"","Otros temas",null,"",null,null,null,null,null,null,null," Sí",null," No  "]
[]
[null,null,"166. EL SERVICIO/NIVEL EDUCATIVO, ¿ DESARROLLA LAS SIGUIENTES ESTRATEGIAS",null,null,null,null,null,null,null,null,null,null,"180. ¿EN EL SERVICIO/NIVEL EDUCATIVO SE DESARROLLA EL REFUERZO ESCOLAR EN LAS"]
[null,null,null,"DE ACOMPAÑAMIENTO ?",null,null,null,null,null,"¿Cuántos?",null,null,null,null," ÁREAS DE COMUNICACIÓN Y MATEMÁTICA?"]
[null,null,null,null,null,null,null,null,null,"(Marque con una  “X” una opción)"]
[null,null,null,null,null,null,null,null,null,null,"de 1 a 4 por área",null,null,null," Sí",null," No  "]
[null,null,null,null,"Visita en aula",null,null,null,null,null,"de 4 a 8 por área"]
[null,null,null,null,"Grupos de Interaprendizaje (GIA)",null,null,null,null,null,"Más de 8 por área",null,null,"181 ¿EN EL SERVICIO/NIVEL EDUCATIVO SE HA IMPLEMENTADO LA ESTRATEGIA SOMOS"]
[null,null,null,null,"Talleres",null,null,null,null,null,null,null,null,null," PROMO CONCLUSIÓN OPORTUNA EN LAS ÁREAS DE COMUNICACIÓN Y MATEMÁTICA?"]
[null,null,null,null,"Otros",null,""]
[null,null,null,null,null,null,null,null,null,null,null,null,null,null," Sí",null," No  "]
[null,null,"167. EL SERVICIO/NIVEL EDUCATIVO, ¿REALIZA ACTIVIDADES CON FAMILIAS Y"]
[null,null,null,"COMUNIDAD QUE AYUDEN A LA PROMOCIÓN DE UN AMBIENTE INSTITUCIONAL",null,null,null,null,null,null,null,null,null,"182. SEÑOR(A) DIRECTOR(A), DURANTE EL AÑO 2021 Y HASTA EL MOMENTO DEL CENSO EDUCATIVO"]
[null,null,null,"FAVORABLE PARA LA ATENCIÓN DE LA DIVERSIDAD?",null,null,null,null,null,null,null,null,null,null,"2022, EN SU CONDICIÓN DE DIRECTOR(A), ¿USTED HA RECIBIDO ALGÚN TIPO DE ASISTENCIA"]
[null,null,null,null,null,null,null,null,null,null,null,null,null,null,"PEDAGÓGICA POR PARTE DE LOS ESPECIALISTAS DE UGEL Y/O DRE?"]
[null,null,null,"Sí",null," No  ",null,null,null,"Pase a la pregunta 169."]
[null,null,null,null,null,null,null,null,null,null,null,null,null,null," Sí",""," No  ",null,null,"Pase a la pregunta 184."]
[null,null,null,null,null,"¿Qué actividades realiza?"]
[null,null,null,null,null,"(Marque con una  “X” una o más opciones)",null,null,null,null,null,null,null,"183. ¿QUÉ TIPO DE ASISTENCIA PEDAGÓGICA HA RECIBIDO POR PARTE DE LOS ESPECIALISTAS"]
[null,null,null,null,null,"Acompañamiento en el proceso de aprendizaje",null,null,null,null,null,null,null,null,"DE UGEL Y/O DRE?"]
[null,null,null,null,null,"Actividades que fortalecen las competencias parentales"]
[null,null,null,null,null,"Vínculos afectivos con hijos e hijas",null,null,null,null,null,null,null,null,null,"(Marque con una  “X” una o más opciones)"]
[null,null,null,null,null,"Jornadas con madres y padres",null,null,null,null,null,null,null,null,null,"","Planificación curricular"]
[null,null,null,null,null,"Otros",null,null,null,null,null,null,null,null,null,"","Metodología y estrategias didácticas"]
[null,null,null,null,null,null,null,null,null,null,null,null,null,null,null,"","Retroalimentación, criterios e instrumentos de evaluación"]
[null,null,"168. DE LAS ACTIVIDADES QUE REALIZA CON FAMILIAS Y COMUNIDAD, ¿POR LO ",null,null,null,null,null,null,null,null,null,null,null,null,"","Soporte emocional"]
[null,null,null,"MENOS UNA DE ELLAS TIENE COMO EJE PRINCIPAL LA EDUCACIÓN SEXUAL ",null,null,null,null,null,null,null,null,null,null,null,"","Experiencias pedagógicas innovadoras"]
[null,null,null,"INTEGRAL (ESI)?",null,null,null,null,null,null,null,null,null,null,null,"","Otros",""]
[null,null,null,null,null,null,null,null,null,null,null,null,null,null,null,"","Ninguna"]
[null,null,null,"Sí",null," No  ",""]
[]
[]
[]
[null,null,"184. ¿ESTE SERVICIO/NIVEL EDUCATIVO ESTÁ PARTICIPANDO EN LA COMUNIDAD DE PRÁCTICA PARA",null,null,null,null,null,null,null,null,null,null,"189. ESTE SERVICIO/NIVEL EDUCATIVO, ¿CUENTA CON DOCENTES DE INGLÉS QUE TENGAN UNA"]
[null,null,null," DOCENTES DE INGLÉS DE SU REGIÓN?",null,null,null,null,null,null,null,null,null,null,"CERTIFICACIÓN INTERNACIONAL, SEGÚN EL MARCO COMÚN EUROPEO DE REFERENCIA-MCER?"]
[]
[null,null,null,null,null,"Si",null,null,null,null,null,null,null,null,"Sí",null," No  ",""]
[null,null,null,null,null,"No"]
[null,null,null,null,null,"Desconozco que haya una"]
[null,null,null,null,null,null,null,null,null,null,null,null,null,null,null,null,"¿Cuántos?"]
[null,null,"185. ¿CONSIDERA USTED SEÑOR(A) DIRECTOR(A), QUE PERTENECER A UNA COMUNIDAD DE"]
[null,null,null," PRÁCTICA DE DOCENTES DE INGLÉS FAVORECERÁ EL DESEMPEÑO DE SUS DOCENTES EN EL AULA?"]
[]
[null,null,null,null,null,"Sí, muy favorablemente",null,null,null,null,null,null,null,null,null,null,null,"Detalle el número de docentes de ingles por"]
[null,null,null,null,null,"Sí, medianamente favorable",null,null,null,null,null,null,null,null,null,null,null,"certificación internacional MCER"]
[null,null,null,null,null,"Casi nada favorable",null,null,null,null,null,null,null,null,null,null,null,"Certiﬁcación Internacional"]
[null,null,null,null,null,null,null,null,null,null,null,null,null,null,null,null,null,"a. Certificado PRE A1"]
[null,null,"186. ¿CONSIDERA IMPORTANTE QUE SE DEBA CONTAR CON UNA FICHA DE ACOMPAÑAMIENTO",null,null,null,null,null,null,null,null,null,null,null,null,null,null,"b. Certificado A1"]
[null,null,null," DIFERENCIADO O ESPECIALIZADO PARA EL ÁREA DE INGLÉS?",null,null,null,null,null,null,null,null,null,null,null,null,null,"c. Certificado A2"]
[null,null,null,null,null,null,null,null,null,null,null,null,null,null,null,null,null,"d. Certificado B1"]
[null,null,null,null,null,"Si es importante",null,null,null,null,null,null,null,null,null,null,null,"e. Certificado B2"]
[null,null,null,null,null,"No es importante",null,null,null,null,null,null,null,null,null,null,null,"f.  Certificado C1"]
[null,null,null,null,null,null,null,null,null,null,null,null,null,null,null,null,null,"g  Certificado C2"]
[null,null,null,null,null,null,null,null,null,null,null,null,null,null,null,null,null,null,null,null,null,{"$f":"SUM(U452:V458)","v":0}]
[null,null,"187. ¿CUENTA CON EL EQUIPAMIENTO PARA EL AULA FUNCIONAL DE INGLÉS?"]
[null,null,null,null,null,null,null,null,null,null,null,null,null,"190. DURANTE EL PRESENTE AÑO, ¿HA RECIBIDO LA VISITA DEL PERSONAL O MONITOR DE SEMÁFORO"]
[null,null,null,"Sí",null," No  ",null,null,null,null,null,null,null,null,"ESCUELA DEL MINEDU PARA EL RECOJO DE INFORMACIÓN EN ESTE SERVICIO/NIVEL EDUCATIVO?"]
[]
[null,null,null,null,null,null,null,null,null,null,null,null,null,null,"Sí",""," No  "]
[null,null,null,null,null,"¿Con cuántos equipos en funcionamiento dispone este servicio/nivel educativo"]
[null,null,null,null,null,"para el área funcional de Inglés?"]
[null,null,null,null,null,null,null,null,null,null,null,null,null,null,null,null,"¿En qué mes o meses recibió la(s) visita(s)?"]
[null,null,null,null,"Equipamiento",null,"Número de equipos en funcionamiento para el\nárea funcional de ingles",null,null,null,null,null,null,null,null,null,"(Marque con una “X”, una o más opciones)"]
[null,null,null,null,null,null,"Número de ya\ndestinados al área",null,"Número de los que podrían\nser destinados al área"]
[null,null,null,null,null,null,null,null,null,null,null,null,null,null,null,null,null,"","Enero",null,"","Julio"]
[null,null,null,null,"Pc",null,null,null,null,null,null,null,null,null,null,null,null,"","Febrero",null,"","Agosto"]
[null,null,null,null,"Laptop",null,null,null,null,null,null,null,null,null,null,null,null,"","Marzo",null,"","Setiembre"]
[null,null,null,null,"Tablet",null,null,null,null,null,null,null,null,null,null,null,null,"","Abril ",null,"","Octubre"]
[null,null,null,null,null,null,{"$f":"SUM(G471:H473)","v":0},null,null,null,{"$f":"SUM(I471:L473)","v":0},null,null,null,null,null,null,"","Mayo",null,"","Noviembre"]
[null,null,null,null,null,null,null,null,null,null,null,null,null,null,null,null,null,"","Junio",null,"","Diciembre"]
[null,null,"188.  ESTE SERVICIO/NIVEL EDUCATIVO, ¿CUENTA CON UN ESPECIALISTA DE INGLÉS QUE ",null,null,null,null,null,null,null,null,null,null,null,null,null,null,{"$f":"COUNTIF(R470:R475,\"X\")","v":0},null,null,{"$f":"COUNTIF(U470:U475,\"X\")","v":0}]
[null,null,null,"BRINDE ASISTENCIA TÉCNICA A LOS DOCENTES?"]
[]
[null,null,null,"Sí",""," No  ",null,null,null,null,null,null,null,null,null,null,"Durante la visita, el personal o monitor de Semáforo Escuela del MINEDU:"]
[null,null,null,null,null,null,null,null,null,null,null,null,null,null,null,null,"(Marque con una “X”, una o más opciones)"]
[null,null,null,null,null,"¿El especialista de inglés que brinda la asistencia técnica a los docentes, "]
[null,null,null,null,null,"cuenta con formación en el área?",null,null,null,null,null,null,null,null,null,null,null,"","Ingresó al local educativo"]
[null,null,null,null,null,null,null,null,null,null,null,null,null,null,null,null,null,"","Visitó las aulas del local educativo"]
[null,null,null,null,null,"Sí    ","",null," No  ","",null,null,null,null,null,null,null,"","Se entrevistó con el director o persona encargada"]
[null,null,null,null,null,null,null,null,null,null,null,null,null,null,null,null,null,"","Se entrevistó con algún docente"]
[null,null,null,null,null,null,"¿Con qué frecuencia visita su escuela?"]
[]
[null,null,null,null,null,null,"","Mensualmente "]
[null,null,null,null,null,null,"","Bimestralmente"]
[null,null,null,null,null,null,"","Semestralmente"]
[null,null,null,null,null,null,"","Anualmente"]
[null,null,null,null,null,null,"","Aún no ha realizado ninguna visita"]
[]
[null,null,null,null,null,null,null,null,null,null,null,null,null,null,null,null,null,null,""]
[null,null,null,null,null,null,null,null,null,null,null,null,null,null,null,null,null,null,""]
[null,null,null,null,null,null,null,null,null,null,null,null,null,null,null,null,null,null,""]

{"sheet":"C101","index":2,"n_rows":706,"n_cols":24,"rows_kept":706,"cut":false,"hidden":false,"merged":[[697,3,699,9],[697,12,698,12],[697,13,697,22],[698,13,699,15],[698,16,699,17],[698,18,699,20],[698,21,699,22],[700,21,700,22],[701,13,701,15],[701,16,701,17],[701,18,701,20],[701,21,701,22],[700,13,700,15],[700,16,700,17],[700,18,700,20],[693,17,693,18],[693,19,693,20],[684,6,684,15],[689,2,691,8],[689,10,690,11],[689,12,689,23],[690,14,690,15],[690,16,690,18],[690,19,690,21],[690,22,690,23],[691,17,691,18],[691,19,691,20],[692,2,692,9],[692,17,692,18],[692,19,692,20],[693,2,693,9],[676,4,676,9],[645,6,645,10],[653,9,653,11],[653,17,653,22],[655,8,655,11],[656,8,656,11],[657,17,657,22],[658,8,658,10],[658,17,658,22],[659,8,659,11],[659,17,659,22],[668,17,668,22],[642,21,642,22],[563,16,563,17],[569,8,569,9],[576,8,576,9],[579,21,579,22],[589,10,589,11],[592,17,592,22],[600,4,601,9],[602,3,602,10],[606,3,607,3],[606,4,607,6],[641,21,641,22],[521,20,521,22],[525,2,526,12],[530,18,532,19],[531,2,531,12],[531,20,531,22],[0,21,3,23],[500,14,502,21],[502,4,502,9],[508,19,508,20],[509,18,511,22],[511,6,511,10],[2,6,2,20],[1,6,1,20]]}
[{"$f":"IF(OR(UPPER('C100'!J32)<>\"\",UPPER('C100'!O32)<>\"\"),\"X\",\"\")","v":""},null,null,null,null,null,null,null,null,null,null,null,null,null,null,null,null,null,null,null,null,"3AS"]
[{"$f":"IF(UPPER('C100'!T32)<>\"\",\"X\",\"\")","v":""},null,null,null,null,null,"CENSO EDUCATIVO 2022"]
[null,null,null,null,null,null,"MATRÍCULA, DOCENTES Y MATERIALES EDUCATIVOS"]
[]
[]
[]
[]
[]
[]
[]
[]
[]
[]
[]
[]
[]
[]
[]
[]
[]
[]
[]
[]
[]
[]
[]
[]
[]
[]
[]
[]
[]
[]
[]
[]
[]
[]
[]
[]
[]
[]
[]
[]
[]
[]
[]
[]
[]
[]
[]
[]
[]
[]
[]
[]
[]
[]
[]
[]
["DIAS"]
[1]
[2]
[3]
[4]
[5]
[6]
[7]
[8]
[9]
[10]
[11]
[12]
[13]
[14]
[15]
[16]
[17]
[18]
[19]
[20]
[21]
[22]
[23]
[24]
[25]
[26]
[27]
[28]
[29]
[30]
[31]
[]
["MESES"]
["01: Enero"]
["02: Febrero"]
["03: Marzo"]
["04: Abril"]
["05: Mayo"]
["06: Junio"]
["07: Julio"]
["08: Agosto"]
["09: Septiembre"]
["10: Octubre"]
["11: Noviembre"]
["12: Diciembre"]
["01: Enero"]
["02: Febrero"]
["03: Marzo"]
[]
[]
[]
[]
[]
[]
[]
[]
[]
[]
[]
[]
[]
[]
[]
[]
[]
[]
[]
[]
[]
[]
[]
[]
[]
[]
[]
[]
[]
[]
[]
[]
[]
[]
[]
[]
[]
[]
[]
[]
[]
[]
[]
[]
[]
[]
[]
[]
[]
[]
[]
[]
[]
[]
[]
[]
[]
[]
[]
[]
[]
[]
[]
[]
[]
[]
[]
[]
[]
[]
[]
[]
[]
[]
[]
[]
[]
[]
[]
[]
[]
[]
[]
[]
[]
[]
[]
[]
[]
[]
[]
[]
[]
[]
[]
[]
[]
[]
[]
[]
[]
[]
[]
[]
[]
[]
[]
[]
[]
[]
[]
[]
[]
[]
[]
[]
[]
[]
[]
[]
[]
[]
[]
[]
[]
[]
[]
[]
[]
[]
[]
[]
[]
[]
[]
[]
[]
[]
[]
[]
[]
[]
[]
[]
[]
[]
[]
[]
[]
[]
[]
[]
[]
[]
[]
[]
[]
[]
[]
[]
[]
[]
[]
[]
[]
[]
[]
[]
[]
[]
[]
[]
[]
[]
[]
[]
[]
[]
[]
[]
[]
[]
[]
[]
[]
[]
[]
[]
[]
[]
[]
[]
[]
[]
[]
[]
[]
[]
[]
[]
[]
[]
[]
[]
[]
[]
[]
[]
[]
[]
[]
[]
[]
[]
[]
[]
[]
[]
[]
[]
[]
[]
[]
[]
[]
[]
[]
[]
[]
[]
[]
[]
[]
[]
[]
[]
[]
[]
[]
[]
[]
[]
[]
[]
[]
[]
[]
[]
[]
[]
[]
[]
[]
[]
[]
[]
[]
[]
[]
[]
[]
[]
[]
[]
[]
[]
[]
[]
[]
[]
[]
[]
[]
[]
[]
[]
[]
[]
[]
[]
[]
[]
[]
[]
[]
[]
[]
[]
[]
[]
[]
[]
[]
[]
[]
[]
[]
[]
[]
[]
[]
[]
[]
[]
[]
[]
[]
[]
[]
[]
[]
[]
[]
[]
[]
[]
[]
[]
[]
[]
[]
[]
[]
[]
[]
[]
[]
[]
[]
[]
[]
[]
[]
[]
[]
[]
[]
[]
[]
[]
[]
[]
[]
[]
[]
[]
[]
[]
[]
[]
[]
[]
[]
[]
[]
[]
[]
[]
[]
[]
[]
[]
[]
[]
[]
[]
[]
[]
[]
[]
[]
[]
[]
[]
[]
[]
[]
[]
[]
[]
[]
[]
[]
[]
[]
[]
[]
[]
[]
[null,null,"D. SOBRE LA BASE DEL CENSO DE POBLACIÓN Y VIVIENDA 2017 DEL INEI"]
[null,null,"191. SEGÚN LAS COSTUMBRES Y EL ORIGEN FAMILIAR, ¿USTED CONSIDERA QUE SU SERVICIO/NIVEL"]
["0200: Achuar",null,null,"EDUCATIVO CUENTA CON ESTUDIANTES PERTENECIENTES A LOS SIGUIENTES"]
["0300: Aimara",null,null,"GRUPOS ÉTNICOS?",null,null,null,null,null,null,null,null,null,null,"SOLO SI MARCÓ DOS O MÁS ALTERNATIVAS EN LA PREGUNTA ANTERIOR, RESPONDA:"]
["0400: Amahuaca"]
["0500: Arabela",null,null,"COD.","GRUPO ÉTNICO",null,null,null,null,null,{"$f":"COUNTIF(L504:L512,\"SI\")","v":0}," SI - NO"]
["0600: Ashaninka",null,null,1,"Quechua",null,null,null,null,null,null,null,{"$f":"IF(L504=\"SI\",1,0)","v":0}]
["0610: Asheninka",null,null,2,"Aimara",null,null,null,null,null,null,null,{"$f":"IF(L505=\"SI\",1,0)","v":0}]
["0700: Awajún",null,null,3,"Nativo o indígena de la Amazonía",null,null,null,null,null,null,null,0]
["0800: Bora",null,null,4,"Perteneciente o parte de otro pueblo indígena u originario",null,null,null,null,null,null,null,0,"192 ¿EXISTE UN GRUPO QUE TENGA MAYOR CANTIDAD DE ESTUDIANTES?"]
["0900: Kapanawa",null,null,5,"Negro moreno, zambo, mulato/Pueblo afroperuano o afrodescendiente",null,null,null,null,null,null,null,0]
["1000: Cashinahua",null,null,6,"Blanco",null,null,null,null,null,null,null,0,null,"Sí","",null,null,"Código"]
["1100: Kawki",null,null,7,"Mestizo",null,null,null,null,null,null,null,0,null,null,null,null,null,"Indique el grupo étnico en el que identifica mayor cantidad de estudiantes utilizando el COD. seleccionado en la pregunta 191."]
["1200: Chamikuro",null,null,8,"Asiático peruano",null,null,null,null,null,null,null,0,null,"No",""]
["1300: Ese eja",null,null,9,"Otro  especifique",null,null,null,null,null,null,null,0]
["1400: Harakbut",null,null,null,null,null,null,null,null,null,{"$f":"IF(K503>1,\"X\",\"\")","v":""},{"$f":"COUNTIF(L504:L512,\"SI\")+COUNTIF(L504:L512,\"NO\")","v":0}]
["1500: Iñapari"]
["1600: Ikitu"]
["1700: Iskonawa",null,"E. CARACTERÍSTICAS DE LA ENSEÑANZA EN CONTEXTOS BILINGÜES (SOLO GESTIÓN PÚBLICA)",null,null,null,null,null,null,null,null,null,null,null,null,null,null,null,""]
["1800: Jaqaru",null,null,null,null,null,null,null,null,null,null,null,null,null,null,null,null,null,""]
["1900: Kakataibo",null,"193.A. ESTE SERVICIO/NIVEL EDUCATIVO, ¿ESTÁ RECONOCIDO COMO EIB?",null,null,null,null,null,null,null,null,null,null,"193. D. USTED, SEÑOR(A) DIRECTOR(A), ¿CONOCE SI EN LA COMUNIDAD DONDE SE"]
["2000: Kakinte",null,null,null,null,null,null,null,null,null,null,null,null,null,"ENCUENTRA EL SERVICIO/NIVEL EDUCATIVO, LOS PADRES DE FAMILIA, OTROS"]
["2110: Kandozi-chapra (chapra)",null,null,null,null,"EIB de Fortalecimiento",null,null,null,null,null,null,null,null,"ADULTOS Y/O ANCIANOS Y ANCIANAS HABLAN UNA LENGUA ORIGINARIA?"]
["2120: Kandozi-chapra (kandozi)",null,null,"Sí",null,"EIB de Revitalización"]
["2200: Kukama kukamiria",null,null,null,null,"EIB en Ámbitos Urbano",null,null,null,null,null,null,null,null,null,null,null,null,null,"¿Qué lengua originaria?  ",""]
["2300: Madija",null,null,null,null,null,null,null,{"$f":"CONCATENATE(I521,I522)","v":""},null,null,null,null,null,"Sí",null,null,null,null,null,null,"Anote el código según la"]
["2400: Maijiki",null,null,"No",null,null,"Pase a la pregunta 193.D",null,null,null,null,null,null,null,null,null,null,null,null,null,null,"tabla de Lenguas Originarias"]
["2500: Matsés",null,null,null,null,null,null,null,null,null,null,null,null,null,"No",null,null,null,null,null,null,"de la página 18."]
["2600: Matsigenka",null,"SOLO SI ES EIB DE FORTALECIMIENTO, RESPONDA:",null,null,null,null,null,null,null,null,null,null,null,null,null,null,null,""]
["2700: Muniche",null,null,null,null,null,null,null,null,null,null,null,null,"193. E. LOS ESTUDIANTES DE ESTE SERVICIO/NIVEL EDUCATIVO,  ¿HABLAN UNA LENGUA"]
["2800: Murui-muinani",null,"193.B. ESTE SERVICIO/NIVEL EDUCATIVO, ¿OFRECE ENSEÑANZA DEL CASTELLANO COMO SEGUNDA LENGUA?",null,null,null,null,null,null,null,null,null,null,null,"ORIGINARIA?"]
["2900: Matsigenka-montetokunirira",null,null,null,null,null,null,null,null,null,null,null,null,null,null,null,null,null,""]
["3000: Nomatsigenga",null,null,"Sí",null,null,null,null," No",null,null,null,null,null,"Sí"]
["3100: Ocaina",null,null,null,null,null,null,null,null,null,null,null,null,null,null,null,"Todos",null,"¿Qué\nlengua  originaria?"]
["3200: Omagua",null,"SOLO SI ES EIB DE REVITALIZACIÓN O EIB EN ÁMBITOS URBANOS, RESPONDA:",null,null,null,null,null,null,null,null,null,null,null,null,null,"La mayoría",null,null,null,""]
["3310: Quechua amazónico (Kichwa)",null,"193.C. ESTE SERVICIO/NIVEL EDUCATIVO, ¿OFRECE ENSEÑANZA DE LA LENGUA ORIGINARIA COMO ",null,null,null,null,null,null,null,null,null,null,null,null,null,"Pocos"]
["3321: Quechua central (Ancash)",null,null,"SEGUNDA LENGUA?",null,null,null,null,null,null,null,null,null,null,null,null,null,{"$f":"CONCATENATE(R533,R532,R531)","v":""},null,null,null,"Anote el código según la"]
["3322: Quechua central (Huánuco)",null,null,null,null,null,null,null,null,null,null,null,null,null,"No",null,null,null,null,null,null,"tabla de Lenguas Originarias"]
["3323: Quechua central (Wanka)",null,null,"Sí",null,null,null,null," No",null,null,null,null,null,null,null,null,null,null,null,null,"de la página 18."]
["3324: Quechua central (Pasco)"]
["3331: Quechua norteño (Cajamarca)",null,null,null,null,null,null,null,null,null,null,null,null,null,null,null,null,null,""]
["3332: Quechua norteño (Inkawasi Kañaris)",null,"F. ATENCIÓN A LA DIVERSIDAD Y SOBRE EL SERVICIO DE APOYO Y ASESORAMIENTO A LAS NECESIDADES EDUCATIVAS ESPECIALES - SAANEE"]
["3341: Quechua sureño (Chanka)",null,"194.A. ESTE SERVICIO/NIVEL EDUCATIVO ¿TIENE TECNOLOGÍA PARA RESPONDER A LAS NECESIDADES",null,null,null,null,null,null,null,null,null,null,"194.I.  PARA LOS CASOS DETECTADOS DE ESTUDIANTES CON OTRO TIPO DE NEE O ENFERMEDAD,"]
["3342: Quechua sureño (Collao)",null,null,"EDUCATIVAS ESPECIALES (NEE) DE LOS ESTUDIANTES?",null,null,null,null,null,null,null,null,null,null,"INDIQUE ¿CUÁL FUE SU SITUACIÓN AL MATRICULARSE EN EL PRESENTE AÑO 2022?"]
["3400: Resigaro",null,null,"Sí",null,null,null,null,"No"]
["3500: Secoya"]
["3600: Sharanahua",null,"194.B. ESTE SERVICIO/NIVEL EDUCATIVO ¿CUENTA CON MATERIALES EDUCATIVOS PARA ATENDER A",null,null,null,null,null,null,null,null,null,null,null,"SITUACIÓN AL MATRICULARSE",null,null,null,null,null,null,"N° de estudiantes detectados"]
["3700: Shawi",null,null," ESTUDIANTES CON NECESIDADES EDUCATIVAS ESPECIALES (NEE)?",null,null,null,null,null,null,null,null,null,null,"Número de estudiantes con otro tipo de NEE o"]
["3800: Shipibo-Konibo",null,null,"Sí",null,null,null,null,"No",null,null,null,null,null,"enfermedad que desertaron o se retiraron",null,null,null,null,null,null,""]
["3900: Shiwilu",null,null,null,null,null,null,null,null,null,null,null,null,null,"Número de estudiantes con otro tipo de NEE o"]
["4000: Taushiro",null,"194.C.  EL LOCAL DONDE OPERA ESTE SERVICIO/NIVEL EDUCATIVO, ¿CUENTA CON INFRAESTRUCTURA",null,null,null,null,null,null,null,null,null,null,null,"enfermedad que promovieron de grado",null,null,null,null,null,null,""]
["4100: Ticuna",null,null,"PARA RESPONDER A LA DIVERSIDAD O LAS NEE, (RAMPA, SEÑALÉTICA, ENTRE OTROS)?"]
["4200: Urarina",null,null,"Sí",null,null,null,null,"No"]
["4300: Wampis"]
["4400: Yagua"]
["4500: Yaminahua",null,null,null,null,"¿Es suficiente? ",null,null,null,null,null,null,null,"194. J.  ¿EL SERVICIO/NIVEL EDUCATIVO HA RECIBIDO ASISTENCIA Y ORIENTACION PARA LA"]
["4600: Yanesha",null,null,null,null,"Sí",null,null,"No",null,null,null,null,null,"ATENCION EDUCATIVA DE ESTUDIANTES CON DISCAPACIDAD, DE PARTE DEL SERVICIO DE"]
["4700: Yine",null,null,null,null,null,null,null,null,null,null,null,null,null,"APOYO EDUCATIVO VIRTUAL (SAEV)?"]
["4800: Nahua",null,"194.D. ESTE SERVICIO/NIVEL EDUCATIVO, ¿CUENTA CON UN ESPECIALISTA DEL EQUI PO DE SERVICIO DE"]
["5000: Otra lengua originaria",null,null,"APOYO Y ASESORAMIENTO DE LAS NECESIDADES EDUCATIVAS ESPECIALES (SAANEE) QUE ",null,null,null,null,null,null,null,null,null,null,"Sí","",null,"No"]
["LENGUA EXTRANJERA: ",null,null,"LE HAYA SIDO ASIGNADO?"]
["5100: Alemán",null,null,"Sí",null,null,null,null,"No"]
["5200: Inglés"]
["5300: Italiano",null,"194.E. DURANTE EL PRESENTE AÑO, ESTE SERVICIO/NIVEL EDUCATIVO ¿HA RECIBIDO ASISTENCIA Y",null,null,null,null,null,null,null,null,null,null,null,null,null,"¿Cuántos estudiantes con discapacidad están a cargo de los docentes que han"]
["5400: Japonés",null,null,"ORIENTACIÓN PARA LA ATENCIÓN EDUCATIVA DE ESTUDIANTES CON DISCAPACIDAD, DE PARTE",null,null,null,null,null,null,null,null,null,null,null,null,"recibido asistencia y orientación por el Servicio de Apoyo Educativo Virtual (SAEV)?"]
["5500: Portugués",null,null," DEL EQUIPO DE SERVICIO DE APOYO Y ASESORAMIENTO DE LAS NECESIDADES EDUCATIVAS"]
["5600: Ruso",null,null," ESPECIALES (SAANEE)?",null,null,null,null,null,null,null,null,null,null,null,null,"Cantidad :",null,""]
["5700: Francés"]
["5800: Otra",null,null,"Sí",null,"No  ",null,null,null,"Pase a la pregunta 194.  G"]
[null,null,null,null,null,null,null,null,null,null,null,null,null,"194. K.  ¿DURANTE LOS ÚLTIMOS 5 AÑOS, EL PERSONAL DE ESTE SERVICIO/NIVEL EDUCATIVO"]
[null,null,null,null,null,"¿Cuántas asesorías (presenciales o virtuales) ha brindado el equipo SAANEE a este ",null,null,null,null,null,null,null,null," (YA SEA PERSONAL DIRECTIVO/JERÁRQUICO, PERSONAL DOCENTE, AUXILIARES O PERSONAL"]
["SI",null,null,null,null,"servicio educativo 2022?",null,null,null,null,null,null,null,null,"ADMINISTRATIVO), HA RECIBIDO CAPACITACIÓN EN TEMAS DE EDUCACIÓN INCLUSIVA O "]
["NO",null,null,null,null,null,null,null,"Cantidad :",null,null,null,null,null,"ATENCIÓN A LA DIVERSIDAD DE PARTE DE ESPECIALISTAS DE DRE/GRE Y/O UGEL, O ALGUNA"]
[null,null,null,null,null,null,null,null,null,null,null,null,null,null,"OTRA INSTITUCIÓN?"]
[null,null,"194.F.  ¿CUÁNTOS DOCENTES DE ESTE SERVICIO/NIVEL EDUCATIVO HAN RECIBIDO ASISTENCIA Y"]
[null,null,null," ORIENTACIÓN PARA LA ATENCIÓN EDUCATIVA DE ESTUDIANTES CON DISCAPACIDAD DE PARTE",null,null,null,null,null,null,null,null,null,null,null,null,null,null,"¿Qué instancia o institución brindó la capacitación?"]
[null,null,null," DEL EQUIPO DE SERVICIO DE APOYO Y ASESORAMIENTO DE LAS NECESIDADES EDUCATIVA",null,null,null,null,null,null,null,null,null,null,"Sí",null,null,null,null,null,"Minedu"]
[null,null,null,"S ESPECIALES (SAANEE) ?",null,null,null,null,null,null,null,null,null,null,null,null,null,null,null,null,"DRE/GRE"]
[null,null,null,null,null,null,null,null,null,null,null,null,null,null,null,null,null,null,null,null,"UGEL"]
[null,null,null,null,null,null,null,null,null,null,null,null,null,null,null,null,null,null,null,null,"Organizaciones sin fines de lucro"]
[null,null,null,null,null,null,null,null,null,null,null,null,null,null,"No",null,null,null,null,null,"Entidad privada, como auspicio"]
[null,null,null,null,null,null,null,null,null,null,null,null,null,null,null,null,null,null,null,null,"Inversión propia"]
[null,null,"194.G. ¿ALGUNO DE LOS DOCENTES DE ESTE SERVICIO/NIVEL EDUCATIVO HAN RECIBIDO O RECIBEN",null,null,null,null,null,null,null,null,null,null,null,null,null,null,null,null,null,"Otros"]
[null,null,null," CAPACITACIÓN EN TEMAS RELACIONADOS A INCLUSIÓN Y ATENCIÓN A LA DIVERSIDAD EN LOS"]
[null,null,null," ÚLTIMOS 2 AÑOS?"]
[null,null,null,null,null,null,null,"¿DE QUIEN RECIBIERON O RECIBEN?"]
[null,null,null,"Sí",null,null,null,null,null,"Minedu",null,null,null,"194. L  ¿QUÉ ESTRATEGIAS FORMATIVAS VIRTUALES PRIORIZARÍA SOBRE TEMAS DE"]
[null,null,null,null,null,null,null,null,null,"DRE/GRE",null,null,null,null,"EDUCACIÓN INCLUSIVA O ATENCIÓN A LA DIVERSIDAD?"]
[null,null,null,null,null,null,null,null,null,"UGEL"]
[null,null,null,null,null,null,null,null,null,"Organizaciones sin fines de lucro",null,null,null,null,null,null,"Curso virtual tutorado"]
[null,null,null,"No",null,null,null,null,null,"Entidad privada, como auspicio",null,null,null,null,null,null,"Curso virtual autoformativo"]
[null,null,null,null,null,null,null,null,null,"Inversión propia",null,null,null,null,null,null,"Grupo o círculo de interaprendizaje"]
[null,null,null,null,null,null,null,null,null,"Otros","",null,null,null,null,null,"Comunidades profesionales de apendizaje"]
[null,null,null,null,null,null,null,null,null,null,null,null,null,null,null,null,"Asesoría personalizada"]
[null,null,null,null,null,null,null,null,null,null,null,null,null,null,null,null,"Pasantia"]
[null,null,null,null,null,null,null,null,null,null,null,null,null,null,null,null,"Otros "]
[]
[null,null,"194.H. EN ESTE SERVICIO/NIVEL EDUCATIVO ¿SE HAN DETECTADO OTROS TIPOS DE NECESIDADES"]
[null,null,null," EDUCATIVAS ESPECIALES O ENFERMEDAD ENTRE LOS MATRICULADOS?"]
[null,null,null,null,null,null,null,null,null,null,null,null,null,null,null,null,null,null,null,null,null,{"$f":"COUNTIF(V595:V596,\"SI\") + COUNTIF(V595:V596,\"NO\")","v":0}]
[null,null,null,"Sí","",null,"No","X",null,null,"Pase a la pregunta 194. J"]
[null,null,null,null,null,null,null,null,null,null,null,null,null,"194. M.  ¿EL SERVICIO/NIVEL EDUCATIVO, CUENTA CON RESPONSABLE DE INCLUSIÓN?"]
[null,null,null,null,"          Completa  la tabla"]
[null,null,null,null,"OTRO TIPO DE NEE O ENFERMEDAD",null,null,null,null,null,"¿Detectado?","Nro."]
[null,null,null,null,null,null,null,null,null,null,"SI / NO","Estud.",null,null,"Sí",null,null,"No"]
[null,null,null,"TOTAL DE ESTUDIANTES DETECTADOS",null,null,null,null,null,null,null,{"$f":"SUM(L604:L608)","v":0}]
[null,null,null,1,"Física",null,null,null,null,null,"",""]
[null,null,null,2,"Talla baja",null,null,null,null,null,"",""]
[null,null,null,3,"Enfermedades raras",null,null,null,null,null,"",""]
[null,null,null,4,"Transtornos y problemas de aprendizaje",null,null,"Dislexia",null,null,"",""]
[null,null,null,null,null,null,null,"TDAH",null,null,"",""]
[null,null,null,null,null,null,null,null,null,null,{"$f":"COUNTIF(K604:K608,\"SI\")+COUNTIF(K604:K608,\"NO\")","v":0},{"$f":"SUM(L604:L608)","v":0}]
[]
[]
[null,null,"G.  LOGÍSTICA POR COVID-19 (SOLO GESTIÓN PÚBLICA)"]
[null,null,"195.A. ¿HA RECIBIDO EL KIT COVID-19  (MASCARILLA KN95, 02 MASCARILLAS POR SEMANA) PARA"]
[null,null,null," EL PERSONAL QUE LABORA PRESENCIALMENTE EN ESTE SERVICIO/NIVEL EDUCATIVO?",null,null,null,null,null,null,null,null,null,"195. C.  ESTE SERVICIO/NIVEL EDUCATIVO, ¿CUENTA CON EL KIT DE HIGIENE PARA"]
[null,null,null,null,null,null,null,null,null,null,null,null,null,null,"LAVADO DE MANOS CUYA ENTREGA ES GESTIONADA POR EL MINISTERIO DE EDUCACIÓN?"]
[null,null,null,"Sí","",null,null,null,"No",""]
[null,null,null,null,null,null,null,null,null,null,null,null,null,null,"Sí",null,null,"No"]
[]
[null,null,null,null,null,"¿Estos insumos son suficientes para asignarlos a todo el personal que labora"]
[null,null,null,null,null,"presencialmente en a I. E.?"]
[]
[null,null,null,null,null,"Sí","",null,"No","",null,null,null,null,null,null,null,null,null,"¿Por qué motivo?"]
[]
[null,null,"195. B.  LOS ESTUDIANTES DE ESTE SERVICIO/NIVEL EDUCATIVO QUE ASISTEN PRESENCIALMENTE,",null,null,null,null,null,null,null,null,null,null,null,null,null,null,null,null,"","No está focalizado o no es beneficiario"]
[null,null,null,"¿HAN RECIBIDO EL KIT COVID-19 CONFORMADO POR: MASCARILLAS TEXTILES ",null,null,null,null,null,null,null,null,null,null,null,null,null,null,null,""]
[null,null,null,"(3 MASCARILLAS POR CADA 2 MESES) O MASCARILLAS QUIRÚRGICAS (1 MASCARILLA DIARIA)?",null,null,null,null,null,null,null,null,null,null,null,null,null,null,null,"","Otro motivo"]
[]
[null,null,null,"Sí","",null,null,null,"No",""]
[]
[]
[null,null,null,null,null,"¿Estos insumos son suficientes para asignarlos a todos las/los estudiantes"]
[null,null,null,null,null," que asisten presencialmente a la I. E.?"]
[]
[null,null,null,null,null,"Sí","",null,"No",""]
[]
[]
[null,null,"H. SUPERVISIÓN DE LA PRESTACIÓN DEL SERVICIO EDUCATIVO DE GESTIÓN PRIVADA"]
[null,null,"196. A.  EN EL PRESENTE AÑO 2021, ¿ESTE NIVEL/SERVICIO EDUCATIVO FUE",null,null,null,null,null,null,null,null,null,null,"196. C.  FORMA DE CONSTITUCIÓN (Sólo para personas jurídicas)"]
[null,null,"      SUPERVISADO POR LA UGEL A LA QUE PERTENECE?",null,null,null,null,null,null,null,null,null,null,null,"Marque con un aspa ‘’x’’ y registra la información solicitada según corresponda"]
[]
[null,null,null," Sí","",null,null," No  ","",null,null,null,null,null,"","  Sociedad"]
[null,null,null,null,null,null,null,null,null,null,null,null,null,null,null,null,null,"N° de Partida Regristral  "]
[null,null,null,null,null,"¿Qué aspectos fueron supervisados?",null,null,null,null,null,null,null,null,null,null,null,"N° de Asiento Registral  "]
[null,null,null,null,"","Entrega de información a los usuarios(as) respecto del servicio educativo"]
[null,null,null,null,"","Infraestructura educativa",null,null,null,null,null,null,null,null,"","  Asociación"]
[null,null,null,null,"","Otros",""]
[]
[]
[null,null,"196. B. COMPLETE LOS SIGUIENTES DATOS SOBRE LA PROMOTORÍA DE ESTE NIVEL",null,null,null,null,null,null,null,null,null,null,"196. D. ¿LA IE PERTENECE A ALGUNA ASOCIACIÓN QUE AGRUPE A IE PRIVADAS?"]
[null,null,null,"SERVICIO EDUCATIVO DE GESTIÓN PRIVADA"]
[null,null,null,"Marque con un aspa ‘’x’’ y registra la información solicitada según corresponda",null,null,null,null,null,null,null,null,null,null," Sí",null,null,null," No  ",""]
[null,null,null,"TIpo de persona:"]
[]
[null,null,null,null,"","  Natural",null,"",":",null,null,null,null,null,"Nombre de la asociación :",null,null,""]
[]
[null,null,null,null,null,null,null,"Nombres  ","",null,null,null,null,null,"Datos de contacto de la asociación:"]
[null,null,null,null,null,null,null,"Apellidos  ",""]
[null,null,null,null,null,null,null,null,null,null,null,null,null,null,null,null,"Web ",""]
[null,null,null,null,null,"  Jurídica",null,"RUC  ",null,null,null,null,null,null,null,null,"Correo electrónico ",""]
[null,null,null,null,null,null,null,"Razón social  ","",null,null,null,null,null,null,null,"Teléfono/celular ",""]
[]
[]
[null,null,"I. IDENTIFICACIÓN DE RESIDENCIAS ESTUDIANTILES (No incluye COAR) Y SECUNDARIA TUTORIAL, EN ÁMBITOS RURALES"]
[null,null,"197. A.  TODOS LOS PADRES DE FAMILIA O APODERADOS QUE SOLICITARON UNA VACANTE AL SERVICIO EDUCATIVO DE SECUNDARIA CON RESIDENCIA ESTUDIANTIL,"]
[null,null,null,"¿LOGRARON OBTENERLA?",null,null,null,null,null,null,null,null,null,null,null,null,null,null,""]
["Residencias",null,null,null,null,null,null,null,null,null,null,null,null,null,null,"No hay capacidad de atención en la residencia estudiantil."]
[{"$f":"IF(UPPER('C100'!E27)<>\"\",\"X\",\"\")","v":""},null,null," Sí",null,null,null,"No","",null,"¿Porque no lograron una vacante?",null,null,null,null,"No hay presupuesto para garantizar la alimentación de los estudiantes."]
["Tutorial",null,null,null,null,null,null,null,null,null,"(Seleccione una opción)",null,null,null,null,"No existe personal suficiente para resguardar la seguridad de los estudiantes."]
[{"$f":"IF(UPPER('C100'!E28)<>\"\",\"X\",\"\")","v":""},null,null,null,null,null,null,null,null,null,null,null,null,null,null,"Otro",null,""]
[]
[null,null,"197. B. EN ESTE AÑO 2022, ¿EXISTEN CASOS DE ESTUDIANTES MATRICULADOS QUE VIVEN O PERNOCTAN EN UN AMBIENTE DE LA LOCALIDAD Y ACCEDEN AL SERVICIO"]
[]
[null,null,null,"Sí",null,null,null," No",null,null,null,null,"Pase a la pregunta 198."]
[]
[null,null,"197. C. LUGAR DÓNDE SE UBICAN, RESIDEN O ALOJAN LOS ESTUDIANTES"]
[]
[null,null,null,null,"LUGAR",null,null,null,null,null,null,null,null,null,null,{"$f":"COUNTIF(Q678:Q685,\"SI\")+COUNTIF(Q678:Q685,\"NO\")","v":0}," SI - NO"]
[null,null,null,"a."," ¿Residencia o algún ambiente de la IE?"]
[null,null,null,"b."," ¿Algún ambiente de institución religiosa?"]
[null,null,null,"c."," ¿Algún ambiente del local o salón comunal"]
[null,null,null,"d."," ¿Algún ambiente de otras instituciones? (Municipio, otra I.E., ONG, etc.)"]
[null,null,null,"e."," ¿Algún albergue, casa hogar, puericultorio?"]
[null,null,null,"f."," ¿Viviendas particulares?"]
[null,null,null,"g."," ¿Pensión o similar (servicio de alojamiento pagado)?"]
[null,null,null,"h."," ¿Otro?"]
[]
[]
[null,null,"198. NÚMERO DE ESTUDIANTES MATRICULADOS SEGÚN MODELO DE SERVICIO DE SECUNDARIA CON RESIDENCIA ESTUDIANTIL O"]
[null,null,null,"SECUNDARIA TUTORIAL VINCULADO A ESTE SERVICIO/NIVEL EDUCATIVO."]
[null,null,"MODELO DE SERVICIO EDUCATIVO",null,null,null,null,null,null,null,"TOTAL",null,"GRADO DE ESTUDIO Y SEXO"]
[null,null,null,null,null,null,null,null,null,null,null,null,"1º",null,"2º",null,"3º",null,null,"4º",null,null,"5º"]
[null,null,null,null,null,null,null,null,null,{"$f":"SUM(K693:L694)","v":0},"H","M","H","M","H","M","H","M",null,"H",null,"M","H","M"]
[null,null,"Nº de estudiantes que viven en una residencia estudiantil",null,null,null,null,null,null,null,{"$f":"M693+O693+Q693+T693+W693","v":0},{"$f":"N693+P693+R693+V693+X693","v":0}]
[null,null,"Nº de estudiantes atendidos bajo el modelo de Serv. S.Tutorial",null,null,null,null,null,null,null,{"$f":"M694+O694+Q694+T694+W694","v":0},{"$f":"N694+P694+R694+V694+X694","v":0}]
[null,null,null,null,null,null,null,null,null,null,null,null,null,null,null,null,null,null,""]
[null,null,"199. NÚMERO TOTAL DE PERSONAL SEGÚN MODELO DE SERVICIO EDUCATIVO DE SECUNDARIA CON RESIDENCIA ESTUDIANTIL O"]
[null,null,null,"SECUNDARIA TUTORIAL VINCULADO A ESTE SERVICIO/NIVEL EDUCATIVO."]
[null,null,null,"MODELO DE SERVICIO EDUCATIVO",null,null,null,null,null,null,null,null,"TOTAL","TIPO DE PERSONAL"]
[null,null,null,null,null,null,null,null,null,null,null,null,null,"Coordinador(a)",null,null,"Gestores (as) Educativos",null,"Promotores(as) de Bienestar o Comunitarios",null,null,"Personal de Servicio"]
[null,null,null,null,null,null,null,null,null,null,null,null,{"$f":"M701+M702","v":0}]
[null,null,null,"Nº de actores socioeducativos de la secundaria con residencia estudiantil.",null,null,null,null,null,null,null,null,{"$f":"N701+Q701+S701+V701","v":0}]
[null,null,null,"Número de actores socioeducativos de la secundaria Tutorial",null,null,null,null,null,null,null,null,{"$f":"N702+Q702+S702+V702","v":0}]
[null,null,null,null,null,null,null,null,null,null,null,null,null,null,null,null,null,null,""]
[null,null,null,null,null,null,null,null,null,null,null,null,null,null,null,null,null,null,""]
[null,null,null,null,null,null,null,null,null,null,null,null,null,null,null,null,null,null,""]
[null,null,null,null,null,null,null,null,null,null,null,null,null,null,null,null,null,null,""]

{"sheet":"C200","index":3,"n_rows":186,"n_cols":21,"rows_kept":186,"cut":false,"hidden":false,"merged":[[27,5,27,6],[28,5,28,6],[77,19,77,20],[79,11,79,20],[74,19,74,20],[73,19,73,20],[75,19,75,20],[76,19,76,20],[58,5,59,6],[59,11,59,12],[59,9,59,10],[59,7,59,8],[95,3,95,8],[87,3,87,8],[84,3,84,8],[62,2,62,4],[63,2,63,4],[64,2,64,4],[69,4,69,18],[65,2,65,4],[69,2,69,3],[80,15,80,16],[80,17,80,18],[83,3,83,8],[79,9,80,10],[79,2,80,8],[80,11,80,12],[80,13,80,14],[0,18,3,20],[1,4,1,17],[2,4,2,17],[80,19,80,20],[25,2,28,3],[23,7,23,11],[35,2,35,3],[61,2,61,4],[48,2,51,3],[59,15,59,16],[52,3,52,16],[53,3,53,16],[56,4,56,16],[58,2,60,4],[56,2,56,3],[59,13,59,14],[6,2,6,20],[11,15,11,16],[11,13,11,14],[8,2,8,3],[10,5,11,6],[11,7,11,8],[11,11,11,12],[11,9,11,10],[10,2,12,3],[10,4,12,4],[102,3,102,8],[85,3,85,8],[86,3,86,8],[91,3,91,8],[92,3,92,8],[96,3,96,8],[101,3,101,8],[97,3,97,8],[99,3,99,8],[100,3,100,8],[88,3,88,8],[89,3,89,8],[98,3,98,8],[90,3,90,8],[93,3,93,8],[94,3,94,8],[13,2,16,3],[35,4,35,15],[45,2,47,4],[43,3,43,7],[21,2,21,3],[23,2,24,3],[23,4,24,4],[23,5,24,6],[46,15,46,16],[45,5,46,6],[46,7,46,8],[46,9,46,10],[46,11,46,12],[46,13,46,14],[25,5,25,6],[26,5,26,6]]}
[null,null,null,null,null,null,null,null,null,null,null,null,null,null,null,null,null,null,"3AS"]
[null,null,null,null,"CENSO EDUCATIVO 2022"]
[null,null,null,null,"MATRÍCULA, DOCENTES Y MATERIALES EDUCATIVOS"]
[]
[]
[]
[null,null,"200. MATRÍCULA Y SECCIONES\nDocumento fuente : Nómina de matrícula"]
[]
[null,null,"CUADRO 201.",null,"MATRICULA TOTAL POR GRADO DE ESTUDIO, SEGÚN TURNO DE ENSEÑANZA"]
[]
[null,null,"VARIABLE",null,"TURNO","TOTAL",null,"GRADO DE ESTUDIO"]
[null,null,null,null,null,null,null,"1º",null,"2º",null,"3º",null,"4º",null,"5º"]
[null,null,null,null,null,"H","M","H","M","H","M","H","M","H","M","H","M"]
["00",null,"MATRICULA",null,"TOTAL",{"$f":"SUM(F15:F17)","v":0},{"$f":"SUM(G15:G17)","v":0},{"$f":"SUM(H15:H17)","v":0},{"$f":"SUM(I15:I17)","v":0},{"$f":"SUM(J15:J17)","v":0},0,0,0,0,0,0,0]
["01",null,null,null,"Mañana /1",{"$f":"H15+J15+L15+N15+P15","v":0},{"$f":"I15+K15+M15+O15+Q15","v":0}]
["02",null,null,null,"Tarde /2",{"$f":"H16+J16+L16+N16+P16","v":0},{"$f":"I16+K16+M16+O16+Q16","v":0}]
["03",null,null,null,"Discontinuo/3",0,0]
[null,null,"Nota.-","Incluya a los alumnos con algún tipo de necesidad educativa especial (NEE)."]
[null,null,null,"Incluya a todos los estudiantes matriculados en este Servicio/nivel educatrivo, así la prestación del servicio sea presencial, semipresencial o virtual."]
[]
[]
[null,null,"CUADRO 202.",null,"SECCIONES POR GRADO DE ESTUDIO,  SEGÚN TURNO DE ENSEÑANZA"]
[]
[null,null,"VARIABLE",null,"TURNO","TOTAL",null,"GRADO DE ESTUDIO"]
[null,null,null,null,null,null,null,"1º","2º","3º","4º","5º"]
["00",null,"SECCIONES",null,"TOTAL",{"$f":"+H26+I26+J26+K26+L26","v":0},null,{"$f":"SUM(H27:H29)","v":0},{"$f":"SUM(I27:I29)","v":0},{"$f":"SUM(J27:J29)","v":0},{"$f":"SUM(K27:K29)","v":0},0]
["01",null,null,null,"Mañana /1",{"$f":"+H27+I27+J27+K27+L27","v":0}]
["02",null,null,null,"Tarde /2",{"$f":"+H28+I28+J28+K28+L28","v":0}]
["03",null,null,null,"Discontinuo/3",{"$f":"+H29+I29+J29+K29+L29","v":0}]
[null,null,"Nota.-","/1 Si la I.E. tiene turno hasta las 12:30 pm o un poco más de pasada esta hora, registre la matrícula y las secciones en el turno “MAÑANA”."]
[null,null,null,"/2 Si la I.E. sólo tiene turno que inicia labores pasado el mediodía (12:00 pm) registre la matrícula y las secciones en el turno “TARDE”."]
[null,null,null,"/3 Si la I.E. tiene estudiantes que asisten en la mañana, hacen una pausa retornando a sus domicilios, y luego vuelven a la I.E. por la tarde,"]
[null,null,null,"     registre la matrícula y las secciones en el turno “DISCONTINUO”."]
[]
[]
[null,null,"CUADRO 203.",null,"ESTUDIANTES  MATRICULADOS  POR  GRADO  DE ESTUDIO  Y  SEXO,  Y  QUE  SE  ENCUENTREN  EN  SITUACIÓN  DE  HOSPITALIZACIÓN AL MOMENTO DEL REPORTE DEL CENSO EDUCATIVO 2022"]
[]
[null,null,"ESTE SERVICIO/NIVEL EDUCATIVO   ¿CUÉNTA CON AL MENOS UN ESTUDIANTE EN SITUACIÓN DE HOSPITALIZACIÓN/ 1?"]
[]
[null,null,null,null,null,"Sí",null,null,null,"No",null,null,null,"Pase a la tabla 203"]
[]
[]
[]
[null,null,null,"Si marco \"SI\" continuar con el llenado de la tabla ….."]
[]
[null,null,"SITUACIÓN DE HOSPITALIZACIÓN",null,null,"TOTAL",null,"GRADO DE ESTUDIO"]
[null,null,null,null,null,null,null,"1º",null,"2º",null,"3º",null,"4º",null,"5º"]
[null,null,null,null,null,"H","M","H","M","H","M","H","M","H","M","H","M"]
["00",null,"Estudiantes en situación de hospitalización /1",null,"TOTAL",{"$f":"SUM(F50:F52)","v":0},{"$f":"SUM(G50:G52)","v":0},{"$f":"SUM(H50:H52)","v":0},{"$f":"SUM(I50:I52)","v":0},{"$f":"SUM(J50:J52)","v":0},{"$f":"SUM(K50:K52)","v":0},{"$f":"SUM(L50:L52)","v":0},{"$f":"SUM(M50:M52)","v":0},{"$f":"SUM(N50:N52)","v":0},{"$f":"SUM(O50:O52)","v":0},{"$f":"SUM(P50:P52)","v":0},{"$f":"SUM(Q50:Q52)","v":0}]
["01",null,null,null,"Menos de 15 días de hospitalización",{"$f":"H50","v":0},{"$f":"I50","v":0}]
["02",null,null,null,"De 15 a 30 días de hospitalización",{"$f":"H51+J51","v":0},{"$f":"I51+K51","v":0}]
["03",null,null,null,"Más de 30 días de hospitalización",{"$f":"H52+J52+L52","v":0},{"$f":"I52+K52+M52","v":0}]
[null,null,"Nota.-","Incluya SOLAMENTE a los estudiantes matriculados que se encuentren en situación de hospitalización al momento del reporte del Censo Educativo 2022."]
[null,null,null,"1/ Interrupción de la asistencia del estudiante a la IE por padecer una enfermedad o accidente que requiere su internamiento en un hospital o tratamiento ambulatorio por tiempo prolongado."]
[]
[]
[null,null,"CUADRO 204.",null,"MATRÍCULA TOTAL POR GRADO DE ESTUDIO Y SEXO, SEGÚN NÚMERO DE HORAS SEMANALES DEDICADAS A EDUCACIÓN PARA EL TRABAJO"]
[]
[null,null,"HORAS DEDICADAS A EDUCACIÓN\nPARA EL TRABAJO",null,null,"TOTAL",null,"GRADO DE ESTUDIO"]
[null,null,null,null,null,null,null,"1º",null,"2º",null,"3º",null,"4º",null,"5º"]
[null,null,null,null,null,"H","M","H","M","H","M","H","M","H","M","H","M"]
["00",null,"TOTAL",null,null,{"$f":"SUM(F63:F66)","v":0},0,0,0,0,0,0,0,0,0,0,0]
["01",null,"Dos horas semanales de Educación para el Trabajo",null,null,{"$f":"H63+J63+L63+N63+P63","v":0},0]
["02",null,"Tres horas semanales de Educación para el Trabajo",null,null,0,0]
["03",null,"Cuatro a siete horas semanales de Educación para el Trabajo",null,null,0,0]
["04",null,"Ocho horas semanales o más de Educación para el Trabajo",null,null,0,0]
[null,null,"Nota.-","Los totales de esta tabla deben ser iguales o menores a los de la tabla 201."]
[]
[]
[null,null,"CUADRO 205.",null,"MATRÍCULA CON OCHO HORAS SEMANALES O MÁS DEDICADAS A EDUCACIÓN PARA EL TRABAJO POR GRADO DE ESTUDIO Y SEXO,  SEGÚN ESPECIALIDADES EN LOS TALLERES DE EDUCACIÓN PARA EL TRABAJO."]
[]
[null,null,"¿REPORTÓ AL MENOS UN ESTUDIANTE CON OCHO HORAS SEMANALES O MÁS DEDICADAS A EDUCACIÓN PARA EL TRABAJO EN LA TABLA 204. ?"]
[]
[null,null,null,null,null,"Sí",null,null,null,"No",null,null,null,"Pase a la tabla 300"]
[]
[]
[null,null,null,null,"Si marco \"SI\" continuar con el llenado de la tabla ….."]
[]
[]
[null,null,"ESCRIBA EL CÓDIGO Y DESCRIPCIÓN DE LAS ESPECIALIDADES EN LOS TALLERES DE EDUCACIÓN PARA EL TRABAJO DE LA TABLA COMPETENCIAS LABORALES",null,null,null,null,null,null,"TOTAL",null,"GRADO DE ESTUDIO"]
[null,null,null,null,null,null,null,null,null,null,null,"1º",null,"2º",null,"3º",null,"4º",null,"5º"]
[null,null,"Código",{"$f":"IF(F66+G66>0,1,0)","v":0},null,"Descripción",null,null,null,"H","M","H","M","H","M","H","M","H","M","H","M"]
[null,null,"000",null,null,"TOTAL",null,null,null,{"$f":"SUM(J84:J103)","v":0},0,0,0,0,0,0,0,0,0,0,0]
[{"$f":"COUNTIF($D$84:$D$103,D84)","v":0},null,{"$f":"LEFT(D84,3)","v":""},null,null,null,null,null,null,{"$f":"L84+N84+P84+R84+T84","v":0},{"$f":"M84+O84+Q84+S84+U84","v":0}]
[{"$f":"COUNTIF($D$84:$D$103,D85)","v":0},null,{"$f":"LEFT(D85,3)","v":""},null,null,null,null,null,null,0,0]
[0,null,{"$f":"LEFT(D86,3)","v":""},null,null,null,null,null,null,0,0]
[0,null,"",null,null,null,null,null,null,0,0]
[0,null,"",null,null,null,null,null,null,0,0]
[0,null,"",null,null,null,null,null,null,0,0]
[0,null,"",null,null,null,null,null,null,0,0]
[0,null,"",null,null,null,null,null,null,0,0]
[0,null,"",null,null,null,null,null,null,0,0]
[0,null,"",null,null,null,null,null,null,0,0]
[0,null,"",null,null,null,null,null,null,0,0]
[0,null,"",null,null,null,null,null,null,0,0]
[0,null,"",null,null,null,null,null,null,0,0]
[0,null,"",null,null,null,null,null,null,0,0]
[0,null,"",null,null,null,null,null,null,0,0]
[0,null,"",null,null,null,null,null,null,0,0]
[0,null,"",null,null,null,null,null,null,0,0]
[0,null,"",null,null,null,null,null,null,0,0]
[0,null,"",null,null,null,null,null,null,{"$f":"L102+N102+P102+R102+T102","v":0},{"$f":"M102+O102+Q102+S102+U102","v":0}]
[0,null,"",null,null,null,null,null,null,{"$f":"L103+N103+P103+R103+T103","v":0},{"$f":"M103+O103+Q103+S103+U103","v":0}]
[null,null,"Nota.-","* Nota: Los totales de esta tabla deben ser iguales a los subtotales del item \"Ocho horas semanales o más de Educación para el Trabajo\" reportado en la Tabla 204."]
[]
[]
[]
[]
[]
["COMPETENCIAS LABORALES"]
["010. ADMINISTRACIÓN Y COMERCIO"]
["011. Venta al Detalle en Tienda"]
["012. Administración"]
["013. Contabilidad"]
["014. Secretariado"]
["020. ACTIVIDADES AGRARIAS"]
["021. Agricultura Orgánica"]
["022. Agricultura en Costa"]
["023. Agricultura en Sierra"]
["024. Manejo de Instalaciones Hortofruticolas"]
["030. PRODUCCIÓN AGROPECUARIA"]
["031. Avicultura y Crianza de Animales Menores"]
["040. ARTES GRÁFICAS"]
["041. Diseño Gráfico y Publicitario"]
["042. Diseño Industria"]
["050. ARTESANÍA Y MANUALIDADES"]
["051. Artesanía"]
["052. Manualidades"]
["060. COMPUTACIÓN E INFORMÁTICA"]
["061. Operación de Computadoras"]
["062. Administración de Redes"]
["063. Mantenimiento de Equipo de Cómputo"]
["070. ESTÉTICA PERSONAL"]
["071. Peluquería Básica"]
["072. Cosmetología"]
["080. CUERO Y CALZADO"]
["081. Cuero y Calzado"]
["082. Confección de Calzado"]
["083. Curtiembre y Peletería"]
["090. ELECTRICIDAD Y ELECTRÓNICA"]
["091. Equipos Electrónicos de Consumo"]
["092. Refrigeración y Aire Acondicionado"]
["093. Instalaciones Electrotécnicas"]
["094. Sistemas Automáticos Programables"]
["100. MECÁNICA Y MOTORES"]
["101. Planchado y Pintura"]
["102. Mecánica Automotriz"]
["103. Electricidad y Electrónica Automotriz"]
["110. MECÁNICA Y METALES"]
["111. Construcciones Metálicas"]
["112. Matricería"]
["113. Mecánica de Producción"]
["114. Operación de Máquinas, Herramientas y control"]
["120. TEXTIL Y CONFECCIÓN"]
["121. Estampado Industrial"]
["123. Confección Industrial"]
["122. Bordados Computarizados y Manuales"]
["124. Industria del Vestido"]
["130. CONSTRUCCIÓN"]
["131. Carpintería Ebanistería"]
["132. Ebanistería"]
["140. INDUSTRIAS ALIMENTARIAS"]
["141. Industrias Lácteas"]
["142. Panadería y Pastelería"]
["150. HOSTELERÍA Y TURISMO"]
["151. Gastronomía"]
["999. OTROS"]
[]
[]
[]
["010. ADMINISTRACIÓN Y COMERCIO"]
["020. ACTIVIDADES AGRARIAS"]
["030. PRODUCCIÓN AGROPECUARIA"]
["040. ARTES GRÁFICAS"]
["050. ARTESANÍA Y MANUALIDADES"]
["060. COMPUTACIÓN E INFORMÁTICA"]
["070. ESTÉTICA PERSONAL"]
["080. CUERO Y CALZADO"]
["090. ELECTRICIDAD Y ELECTRÓNICA"]
["100. MECÁNICA Y MOTORES"]
["110. MECÁNICA Y METALES"]
["120. TEXTIL Y CONFECCIÓN"]
["130. CONSTRUCCIÓN"]
["140. INDUSTRIAS ALIMENTARIAS"]
["150. HOSTELERÍA Y TURISMO"]
["999. OTROS"]

{"sheet":"C300","index":4,"n_rows":520,"n_cols":115,"rows_kept":520,"cut":false,"hidden":false,"merged":[[15,15,15,16],[1,14,1,23],[2,14,2,23],[14,12,14,14],[16,50,17,54],[16,32,18,32],[16,12,18,12],[16,13,18,13],[16,14,18,14],[16,20,18,20],[16,21,18,21],[16,22,18,22],[16,36,18,36],[16,37,18,37],[16,38,18,38],[16,23,18,23],[15,101,15,104],[16,113,18,113],[17,105,18,105],[15,105,15,107],[0,24,3,25],[14,40,14,99],[15,40,15,99],[15,30,15,31],[16,55,17,59],[16,90,17,94],[16,60,17,64],[16,65,17,69],[16,39,18,39],[16,29,18,29],[16,105,16,107],[17,104,18,104],[16,11,18,11],[16,15,16,16],[16,17,18,17],[16,18,18,18],[16,19,18,19],[16,34,18,34],[16,35,18,35],[16,40,17,44],[16,45,17,49],[17,106,17,107],[16,100,18,100],[16,114,17,114],[16,70,17,74],[16,75,17,79],[16,80,17,84],[16,85,17,89],[16,95,17,99],[16,108,18,108],[16,109,18,109],[17,101,18,101],[17,102,18,102],[17,103,18,103],[16,101,16,104],[16,110,18,110],[16,112,17,112],[16,111,17,111],[16,33,18,33],[16,30,17,31],[16,24,18,24],[16,25,18,25],[16,26,18,26],[16,27,18,27],[16,28,18,28]]}
[null,null,null,null,null,null,null,null,null,null,null,null,null,null,null,null,null,null,null,null,null,null,null,null,"3AS"]
[null,null,null,null,null,null,null,null,null,null,null,null,null,null,"CENSO EDUCATIVO 2022"]
[null,null,null,null,null,null,null,null,null,null,null,null,null,null,"MATRÍCULA, DOCENTES Y MATERIALES EDUCATIVOS"]
[]
["PERSONAL",{"$f":"P10+V10+Y10","v":0}]
[]
["DOCENTES",{"$f":"COUNTIF(R20:R319,\"01: Docente\")","v":0},null,null,null,null,null,null,null,null,null,"300. PERSONAL DOCENTE, AUXILIARES DE EDUCACIÓN Y ADMINISTRATIVOS (Para II.EE. Públicas y Privadas)"]
["AUXILIARES",{"$f":"COUNTIF(R20:R319,\"03: Aux. de Educación\")","v":0},null,null,null,null,null,null,null,null,null,"Anote los totales de personal que labora en su institución educativa."]
["ADMINISTRATIVOS",{"$f":"COUNTIF(R20:R319,\"02: Administrativo\")","v":0}]
["DOCENTE DE AULA",{"$f":"COUNTIF(AK20:AK319,\"05: (111)-Docente por horas\")","v":0},null,null,null,null,null,null,null,null,null,null,null,"Total Docentes : ",null,null,null,"Docentes por horas :",null,null,"Auxiliares de Educación : ",null,null,"Administrativos : "]
["DOCENTES CON SECCIÓN",{"$f":"COUNTIF(AN20:AN319,\"SI\")","v":0}]
[null,{"$f":"B7+B8+B9","v":0},null,null,null,null,null,null,null,null,null,"A continuación, REGISTRE a todo el personal docente, auxiliares de educación y personal administrativo que se encuentre laborando en el servicio/nivel educativo durante el periodo de reporte del censo educativo."]
["DOCENTES DE INGLES",{"$f":"COUNTIF(AY20:BC319,\"X\")","v":0},null,null,null,null,null,null,null,null,null,"(EXCLUYA al personal que se encuentre haciendo uso de licencia y a los que han sido destacados a otra IE/DRE/UGEL)"]
["DOCENTES DE ARTE Y CULTURA",{"$f":"COUNTIF(BD20:BH319,\"X\")","v":0}]
["LENGUA ORIGINARIA",{"$f":"SUM(J20:J319)","v":0},null,null,null,null,null,null,null,null,null,null,null,null,null,null,null,null,null,null,null,null,null,null,"G. Pública",null,null,null,null,null,null,null,"G. Pública",null,null,"G. Pública",null,null,null,null,null,null,null,null,null,null,null,null,null,null,null,null,null,null,null,null,null,null,null,null,null,null,null,null,null,null,null,null,null,null,null,null,null,null,null,null,null,null,null,null,null,null,null,null,null,null,null,null,null,null,null,null,null,null,null,null,null,null,null,null,"G. Pública",null,null,null,null,null,null,null,null,"G. Pública"]
["GESTIÓN",{"$f":"IF(OR(UPPER('C100'!J32)=\"X\",UPPER('C100'!O32)=\"X\"),1,IF(UPPER('C100'!T32)=\"X\",3,\"\"))","v":""},null,null,null,null,null,null,null,null,null,null,301.10000000000002,301.2,301.3,302,null,303,304,305,306,307,308,309,310,311,312,313,314,315,316,null,317,318,319,320,321,322,323,324,"325. Grados Atendidos por cada área curricular a cargo (Marque con una “X”, según corresponda)",null,null,null,null,null,null,null,null,null,null,null,null,null,null,null,null,null,null,null,null,null,null,null,null,null,null,null,null,null,null,null,null,null,null,null,null,null,null,null,null,null,null,null,null,null,null,null,null,null,null,null,null,null,null,null,null,null,null,null,326,327,null,null,null,328,null,null,329,330,331,332,333.1,333.2,333.3]
[null,null,null,null,null,null,null,null,null,null,null,"Nº","Apellido Paterno","Apellido Materno","Nombres","Documento de Identidad",null,"Tipo de\nPersonal","Edad","Sexo","Lengua\nmaterna","¿Domina una\nlengua\noriginaria?\n\nSí - No","Lengua originaria\nque domina","Fuente de\nfinanciamiento","Condición Laboral","Modalidad de Contrato","Máximo nivel\neducativo alcanzado","Especialidad Pedagógica\nque ha estudiado","¿En qué tipo de\ninstitución obtuvo\nsu formación pedagógica?","Segunda especialidad","Estudios de Postgrado en Pedagogía",null,"Tiempo de Servicio (en años)","Años de Experiencia Laboral","Años de\nexperiencia\nlaboral en\neste servicio/nivel\neducativo","Escala\nMagisterial","Función o cargo","Situación en cargo\ndirectivo","Licencia \no\nDestaque","¿Tiene secciones a cargo?","Matemática",null,null,null,null,"Comunicación",null,null,null,null,"Ingles como segunda lengua extranjera",null,null,null,null,"Arte y cultura",null,null,null,null,"Ciencias Sociales",null,null,null,null,"Desarrollo\npersonal, ciudadania y cívica",null,null,null,null,"Educación Física",null,null,null,null,"Ciencia y\nTecnología",null,null,null,null,"Castellano como\nsegunda lengua",null,null,null,null,"Educación para el trabajo",null,null,null,null,"Educación religiosa",null,null,null,null,"Tutoría y Orientación Educativa",null,null,null,null,"Jornada Laboral según\nNombramiento\no Contrato","Conocimiento de Ingles",null,null,null,"Certificación de Inglés",null,null,"¿El docente enseña inglés?\n\nSí - No","Desde el año 2021 a la fecha, ¿ha recibido capacitación en\nla implementación del Currículo Nacional?\nSí / No","¿Cuenta con constancia de participación en el curso virtual autoformativo de CNEB-Currículo Nacional de la Educación Básica? (Perú Educa)\nSí / No","¿ Atiende a estudiantes con NEE asociadas a discapacidad ?","¿Presenta alguna discapacidad?","Solo si respondió Sí en la pregunta\n333.1 ¿Cúal es el tipo de discapa-\ncidad?","¿Ha recibido asistencia y orientación para la atención educativa de estudiantes con discapacidad de parte del equipo de Servicio de Apoyo Educativo Virtual (SAEV)?"]
[null,null,"Exp1","Exp2","Exp3","Exp4","Exp5","Exp6","Exp7","Exp8",null,null,null,null,null,302.10000000000002,302.2,null,null,null,null,null,null,null,null,null,null,null,null,null,null,null,null,null,null,null,null,null,null,null,null,null,null,null,null,null,null,null,null,null,null,null,null,null,null,null,null,null,null,null,null,null,null,null,null,null,null,null,null,null,null,null,null,null,null,null,null,null,null,null,null,null,null,null,null,null,null,null,null,null,null,null,null,null,null,null,null,null,null,null,null,"No Sabe","Habla","Lee","Escribe","No Tiene","Si Tiene"]
["302.1 Tipo de documento de Identidad","314. Tipo de inst. donde estudio","Corr","Escala","Gest","Secc","Fun- cion","Duplex","Fmt","Leng",null,null,null,null,null,"Tipo","Número",null,null,null,null,null,null,null,null,null,null,null,null,null,"Estudios de Maestría","Estudios de Doctorado",null,null,null,null,null,null,null,null,"1º","2º","3º","4º","5º","1º","2º","3º","4º","5º","1º","2º","3º","4º","5º","1º","2º","3º","4º","5º","1º","2º","3º","4º","5º","1º","2º","3º","4º","5º","1º","2º","3º","4º","5º","1º","2º","3º","4º","5º","1º","2º","3º","4º","5º","1º","2º","3º","4º","5º","1º","2º","3º","4º","5º","1º","2º","3º","4º","5º",null,null,null,null,null,null,"Nacional","Interna cional",null,null,null,"Sí / No","Sí / No",null,"Sí / No"]
["01: DNI.","01: IESP (Público)",1,{"$f":"IF(AND(LEFT(R20,2)=\"01\",LEFT(Y20,2)=\"01\",LEFT(X20,2)=\"01\",E20=1),1,0)","v":0},{"$f":"$B$16","v":""},{"$f":"COUNTIF(AO20:CV20,\"X\")","v":0},{"$f":"IF(R20<>\"\",VALUE(LEFT(R20,2)),0)","v":0},{"$f":"IF(Q20<>\"\",COUNTIF($Q$20:$Q$319,Q20),0)","v":0},{"$f":"IF(L20<>\"\",1,0)","v":0},{"$f":"IF(AND(R20=\"01: Docente\",V20=\"SI\"),1,0)","v":0},null,{"$f":"IF($C20<=$B$5,C20,\"\")","v":""}]
["02: Carnet Ext.","02: IESP (Privado)",2,0,{"$f":"$B$16","v":""},{"$f":"COUNTIF(AO21:CV21,\"X\")","v":0},{"$f":"IF(R21<>\"\",VALUE(LEFT(R21,2)),0)","v":0},{"$f":"IF(Q21<>\"\",COUNTIF($Q$20:$Q$319,Q21),0)","v":0},0,{"$f":"IF(AND(R21=\"01: Docente\",V21=\"SI\"),1,0)","v":0},null,{"$f":"IF($C21<=$B$5,C21,\"\")","v":""}]
["03: Pasaporte","03: Universidad Privada",3,0,"",0,0,0,0,0,null,""]
[null,"04: Universidad Pública",4,0,"",0,0,0,0,0,null,""]
["303. Tipo de Personal","05: Sin formación pedagógica",5,0,"",0,0,0,0,0,null,""]
["01: Docente",null,6,0,"",0,0,0,0,0,null,""]
["02: Administrativo","315. Segunda Especialidad",7,0,"",0,0,0,0,0,null,""]
["03: Aux. de Educación","Utilice las especialidades de la tabla de códigos 313.",8,0,"",0,0,0,0,0,null,""]
[null,null,9,0,"",0,0,0,0,0,null,""]
["305. Sexo","316. Estudios de Postgrado en Pedagogía",10,0,"",0,0,0,0,0,null,""]
["Hombre","Estudios de Maestría",11,0,"",0,0,0,0,0,null,""]
["Mujer","01: Concluida con grado",12,0,"",0,0,0,0,0,null,""]
[null,"02: Concluida sin grado",13,0,"",0,0,0,0,0,null,""]
["306. Lengua Materna","03: En proceso/no concluida",14,0,"",0,0,0,0,0,null,""]
["0100: Castellano","04: Sin Maestría",15,0,"",0,0,0,0,0,null,""]
["0200: Achuar","Estudios de Doctorado",16,0,"",0,0,0,0,0,null,""]
["0300: Aimara","05: Concluido con grado",17,0,"",0,0,0,0,0,null,""]
["0400: Amahuaca","06: Concluido sin grado",18,0,"",0,0,0,0,0,null,""]
["0500: Arabela","07: En proceso/no concluido",19,0,"",0,0,0,0,0,null,""]
["0600: Ashaninka","08: Sin Doctorado",20,0,"",0,0,0,0,0,null,""]
["0610: Asheninka",null,21,0,"",0,0,0,0,0,null,""]
["0700: Awajún","317. Tiempo de Servicio",22,0,"",0,0,0,0,0,null,""]
["0800: Bora","Solo personal Nombrado.",23,0,"",0,0,0,0,0,null,""]
["0900: Kapanawa","Tiempo contado expresado en años desde su fecha de Nombramiento",24,0,"",0,0,0,0,0,null,""]
["1000: Cashinahua",null,25,0,"",0,0,0,0,0,null,""]
["1100: Kawki","318. Años de Experiencia Laboral",26,0,"",0,0,0,0,0,null,""]
["1200: Chamikuro","Registre el total de años que tiene como experiencia",27,0,"",0,0,0,0,0,null,""]
["1300: Ese eja","en el Tipo de Personal que se está registrando (Tabla 301.)",28,0,"",0,0,0,0,0,null,""]
["1400: Harakbut",null,29,0,"",0,0,0,0,0,null,""]
["1500: Iñapari","319. Años de experiencia laboral en este servicio/ nivel educativo",30,0,"",0,0,0,0,0,null,""]
["1600: Ikitu","Anote el N° de años de experiencia prestando servicios",31,0,"",0,0,0,0,0,null,""]
["1700: Iskonawa","en este servicio/nivel educativo por el tipo de personal",32,0,"",0,0,0,0,0,null,""]
["1800: Jaqaru","que se está registrando (Tabla 301.)",33,0,"",0,0,0,0,0,null,""]
["1900: Kakataibo",null,34,0,"",0,0,0,0,0,null,""]
["2000: Kakinte","320. Escala Magisterial",35,0,"",0,0,0,0,0,null,""]
["2110: Kandozi-chapra (chapra)","Complete los datos de Escala Magisterial, según corresponda",36,0,"",0,0,0,0,0,null,""]
["2120: Kandozi-chapra (kandozi)","01: Primera",37,0,"",0,0,0,0,0,null,""]
["2200: Kukama kukamiria","02: Segunda",38,0,"",0,0,0,0,0,null,""]
["2300: Madija","03: Tercera",39,0,"",0,0,0,0,0,null,""]
["2400: Maijiki","04: Cuarta",40,0,"",0,0,0,0,0,null,""]
["2500: Matsés","05: Quinta",41,0,"",0,0,0,0,0,null,""]
["2600: Matsigenka","06: Sexta",42,0,"",0,0,0,0,0,null,""]
["2700: Muniche","07: Séptima",43,0,"",0,0,0,0,0,null,""]
["2800: Murui-muinani","08: Octava",44,0,"",0,0,0,0,0,null,""]
["2900: Matsigenka-montetokunirira","09: Sin Escala",45,0,"",0,0,0,0,0,null,""]
["3000: Nomatsigenga",null,46,0,"",0,0,0,0,0,null,""]
["3100: Ocaina","321. Función o Cargo",47,0,"",0,0,0,0,0,null,""]
["3200: Omagua","(Desempeñado a la fecha de reporte)",48,0,"",0,0,0,0,0,null,""]
["3310: Quechua amazónico (Kichwa)","Docentes",49,0,"",0,0,0,0,0,null,""]
["3321: Quechua central (Ancash)","01: (101)-Director General",50,0,"",0,0,0,0,0,null,""]
["3322: Quechua central (Huánuco)","02: (102)-Director",51,0,"",0,0,0,0,0,null,""]
["3323: Quechua central (Wanka)","03: (103)-Sub Director",52,0,"",0,0,0,0,0,null,""]
["3324: Quechua central (Pasco)","04: (106)-Coordinador, Asesor",53,0,"",0,0,0,0,0,null,""]
["3331: Quechua norteño (Cajamarca)","05: (111)-Docente por horas",54,0,"",0,0,0,0,0,null,""]
["3332: Quechua norteño (Inkawasi Kañaris)","06: (117)-Docente de Educación Física",55,0,"",0,0,0,0,0,null,""]
["3341: Quechua sureño (Chanka)","07: (118)-Docente de Computación",56,0,"",0,0,0,0,0,null,""]
["3342: Quechua sureño (Collao)","08: (119)-Docente de Aula de Innovación Pedagógica",57,0,"",0,0,0,0,0,null,""]
["3400: Resigaro","09: (139)-Otro Docente",58,0,"",0,0,0,0,0,null,""]
["3500: Secoya","10: (104)-Director Académico",59,0,"",0,0,0,0,0,null,""]
["3600: Sharanahua","11: (105)-Director de Bienestar y Desarrollo",60,0,"",0,0,0,0,0,null,""]
["3700: Shawi","12: (107)-Coordinador Psicopedagógico",61,0,"",0,0,0,0,0,null,""]
["3800: Shipibo-Konibo","13: (133)-Asistente de Dirección General",62,0,"",0,0,0,0,0,null,""]
["3900: Shiwilu","14: (134)-Asistente de Dirección Académica",63,0,"",0,0,0,0,0,null,""]
["4000: Taushiro","15: (135)-Asistente de Dirección de Bienestar Estudiantil",64,0,"",0,0,0,0,0,null,""]
["4100: Ticuna","16: (120)-Docente COAR",65,{"$f":"IF(AND(LEFT(R84,2)=\"01\",LEFT(Y84,2)=\"01\",LEFT(X84,2)=\"01\",E84=1),1,0)","v":0},"",0,0,0,{"$f":"IF(L84<>\"\",1,0)","v":0},0,null,""]
["4200: Urarina","17: (142)-Docente Tutor",66,0,{"$f":"$B$16","v":""},{"$f":"COUNTIF(AO85:CV85,\"X\")","v":0},{"$f":"IF(R85<>\"\",VALUE(LEFT(R85,2)),0)","v":0},{"$f":"IF(Q85<>\"\",COUNTIF($Q$20:$Q$319,Q85),0)","v":0},0,{"$f":"IF(AND(R85=\"01: Docente\",V85=\"SI\"),1,0)","v":0},null,{"$f":"IF($C85<=$B$5,C85,\"\")","v":""}]
["4300: Wampis","18: (121)-Docente Acompañante Especializado",67,0,"",0,0,0,0,0,null,""]
["4400: Yagua","19: (122)-Docente Coordinador de Monografía",68,0,"",0,0,0,0,0,null,""]
["4500: Yaminahua","20: (140)-Docente monitor",69,0,"",0,0,0,0,0,null,""]
["4600: Yanesha","Administrativos",70,0,"",0,0,0,0,0,null,""]
["4700: Yine","21: (501)-Psicólogo",71,0,"",0,0,0,0,0,null,""]
["4800: Nahua","22: (502)-Trabajo Social / Servicio Social",72,0,"",0,0,0,0,0,null,""]
["5000: Otra lengua originaria","23: (503)-Personal de Salud",73,0,"",0,0,0,0,0,null,""]
["5100: Alemán","24: (504)-Administrador / Contador",74,0,"",0,0,0,0,0,null,""]
["5200: Inglés","25: (506)-Auxiliar de Biblioteca",75,0,"",0,0,0,0,0,null,""]
["5300: Italiano","26: (507)-Auxiliar de Laboratorio",76,0,"",0,0,0,0,0,null,""]
["5400: Japonés","27: (508)-Secretaria u Oficinista",77,0,"",0,0,0,0,0,null,""]
["5500: Portugués","28: (511)-Asistente Administrativo",78,0,"",0,0,0,0,0,null,""]
["5600: Ruso","29: (538)-Guía intérprete de sordoceguera",79,0,"",0,0,0,0,0,null,""]
["5700: Francés","30: (539)-Intérprete de Lengua de Señas Peruana",80,0,"",0,0,0,0,0,null,""]
["5800: Otra lengua extranjera","31: (540)-Modelo Lingüístico",81,0,"",0,0,0,0,0,null,""]
[null,"32: (512)-Personal de Servicio - Mantenimiento",82,0,"",0,0,0,0,0,null,""]
["308. Lengua Originaria","33: (513)-Personal de Servicio - Cocina",83,0,"",0,0,0,0,0,null,""]
["Utilice los códigos de lengua de la tabla 203","34: (514)-Personal de Servicio - Limpieza",84,0,"",0,0,0,0,0,null,""]
[null,"35: (515)-Personal de Servicio - Portero",85,0,"",0,0,0,0,0,null,""]
["309. Fuente de Financiamiento","36: (516)-Personal de Servicio - Vigilante",86,0,"",0,0,0,0,0,null,""]
["01: Sector Educación","37: (517)-Personal de servicio - Otro",87,0,"",0,0,0,0,0,null,""]
["02: Otro sector (FF.AA. Salud u Otro)","38: (524)-Coordinador de bienestar estudiantil",88,0,"",0,0,0,0,0,null,""]
["03: Municipalidad","39: (527)-Responsable de convivencia",89,0,"",0,0,0,0,0,null,""]
["04: Gobierno Regional","40: (522)-Bibliotecólogo",90,0,"",0,0,0,0,0,null,""]
["05: APAFA","41: (523)-Técnico en Biblioteca/ Archivista",91,0,"",0,0,0,0,0,null,""]
["06: Otra fuente Privada","42: (521)-Monitores de salud",92,0,"",0,0,0,0,0,null,""]
[null,"43: (519)-Auxiliar Académico",93,0,"",0,0,0,0,0,null,""]
["310. Condición Laboral","44: (520)-Auxiliar de Convivencia",94,0,"",0,0,0,0,0,null,""]
["01: Nombrado","45: (528)-Soporte Técnico-Informático",95,0,"",0,0,0,0,0,null,""]
["02: Contratado","46: (525)-Coordinador administrativo de residencia",96,0,"",0,0,0,0,0,null,""]
[null,"47: (526)-Coordinador de bienestar y residencia",97,0,"",0,0,0,0,0,null,""]
["311. Modalidad de Contrato","48: (529)-Gestores educativos",98,0,"",0,0,0,0,0,null,""]
["Contrato Público","49: (530)-Promotor de bienestar",99,0,"",0,0,0,0,0,null,""]
["01: A plazo fijo D. Leg. 728","50: (531)-Coordinador de CRFA",100,0,"",0,0,0,0,0,null,""]
["02: Locación de Servicios/Honorarios","51: (505)-Otro personal profesional",101,0,"",0,0,0,0,0,null,""]
["03: CAS - D. Leg. 1057","52: (518)-Otro personal no profesional",102,0,"",0,0,0,0,0,null,""]
["04: Contrato D. Leg. 276",null,103,0,"",0,0,0,0,0,null,""]
["05: Contrato Ley 30328","99: (999)-Auxiliar de Educación",104,0,"",0,0,0,0,0,null,""]
["06: Otra modalidad",null,105,0,"",0,0,0,0,0,null,""]
["Contrato Privado","322. Situación en el Cargo Directivo",106,0,"",0,0,0,0,0,null,""]
["07: A plazo indefinido (Permanente)","01: Titular ratificado eval.2014",107,0,"",0,0,0,0,0,null,""]
["08: Plazo fijo (Tiempo determinado)","02: Titular designado eval. 2015, 2016 y 2018",108,0,"",0,0,0,0,0,null,""]
["09: A tiempo parcial (por horas)","03: Titular otro",109,0,"",0,0,0,0,0,null,""]
["10: Locación de Servicios/Honorarios","04: Encargado por función, sin doc. formal",110,0,"",0,0,0,0,0,null,""]
["11: Otra modalidad","05: Encargado",111,0,"",0,0,0,0,0,null,""]
[null,null,112,0,"",0,0,0,0,0,null,""]
["312. Máximo Nivel Educativo Alcanzado","323. Destaque o Licencia",113,0,"",0,0,0,0,0,null,""]
["01: EP.Concluidos con título","01: Cubriendo una licencia",114,0,"",0,0,0,0,0,null,""]
["02: EP.Concluidos sin título","02: De otra I.E./DRE/UGEL",115,0,"",0,0,0,0,0,null,""]
["03: EP.No concluidos","03: No Aplica",116,0,"",0,0,0,0,0,null,""]
["04: NP.Concluidos con título",null,117,0,"",0,0,0,0,0,null,""]
["05: NP.Concluidos sin título",null,118,0,"",0,0,0,0,0,null,""]
["06: NP.No concluidos",null,119,0,"",0,0,0,0,0,null,""]
["07: Secundaria","324. Jornada Laboral (Nombramiento / Contrato)",120,0,"",0,0,0,0,0,null,""]
["08: Primaria","40: 40 horas",121,0,"",0,0,0,0,0,null,""]
[null,"30: 30 horas",122,0,"",0,0,0,0,0,null,""]
["313. Especialidad del Título","25: 25 horas",123,0,"",0,0,0,0,0,null,""]
["01: Educación Inicial","24: 24 horas",124,0,"",0,0,0,0,0,null,""]
["02: Educación Primaria","23: Menos 24 horas",125,0,"",0,0,0,0,0,null,""]
["03: E.I. Intercultural Bilingüe",null,126,0,"",0,0,0,0,0,null,""]
["04: E.P. Intercultural Bilingüe",null,127,0,"",0,0,0,0,0,null,""]
["05: Educación Básica Alternativa",null,128,0,"",0,0,0,0,0,null,""]
["06: Educación Especial",null,129,{"$f":"IF(AND(LEFT(R148,2)=\"01\",LEFT(Y148,2)=\"01\",LEFT(X148,2)=\"01\",E148=1),1,0)","v":0},"",0,0,0,{"$f":"IF(L148<>\"\",1,0)","v":0},0,null,""]
["07: Educación Física",null,130,0,{"$f":"$B$16","v":""},{"$f":"COUNTIF(AO149:CV149,\"X\")","v":0},{"$f":"IF(R149<>\"\",VALUE(LEFT(R149,2)),0)","v":0},{"$f":"IF(Q149<>\"\",COUNTIF($Q$20:$Q$319,Q149),0)","v":0},0,{"$f":"IF(AND(R149=\"01: Docente\",V149=\"SI\"),1,0)","v":0},null,{"$f":"IF($C149<=$B$5,C149,\"\")","v":""}]
["08: Educación Artística","333.2 ¿Cuál es el tipo de discapacidad?",131,0,"",0,0,0,0,0,null,""]
["09: E.S. Lengua y Literatura","01: Auditiva",132,0,"",0,0,0,0,0,null,""]
["10: E.S. especialidad Comunicación","02: Visual",133,0,"",0,0,0,0,0,null,""]
["11: E.S. Matemática y Física","03: Física o Motora",134,0,"",0,0,0,0,0,null,""]
["12: E.S. especialidad Matemática","04: Otros",135,0,"",0,0,0,0,0,null,""]
["13: E.S. CCSS y Filosofía",null,136,0,"",0,0,0,0,0,null,""]
["14: E.S. Esp. Ciudadanía y Ciencias Sociales","Parroquiales",137,0,"",0,0,0,0,0,null,""]
["15: E.S. Ciencias Naturales","06: Otra fuente Privada",138,0,"",0,0,0,0,0,null,""]
["16: E.S. especialidad Ciencia y Tecnología","01: Sector Educación",139,0,"",0,0,0,0,0,null,""]
["17: E.S. Alimentación y Nutrición",null,140,0,"",0,0,0,0,0,null,""]
["18: E.S. Biología y Química",null,141,0,"",0,0,0,0,0,null,""]
["19: E.S. Historia y Geografía",null,142,0,"",0,0,0,0,0,null,""]
["20: E.S. CC.HH. Sociales","SI / NO",143,0,"",0,0,0,0,0,null,""]
["21: Idiomas especialidad Inglés","SI",144,0,"",0,0,0,0,0,null,""]
["22: Educación Religiosa","NO",145,0,"",0,0,0,0,0,null,""]
["23: E.S. Educación Familiar",null,146,0,"",0,0,0,0,0,null,""]
["24: E.T. Artes Industriales",null,147,0,"",0,0,0,0,0,null,""]
["25: E.T. Artesanía",null,148,0,"",0,0,0,0,0,null,""]
["26: E.T. Agropecuaria",null,149,0,"",0,0,0,0,0,null,""]
["27: E.T. Construcción en madera",null,150,0,"",0,0,0,0,0,null,""]
["28: Computación e Informática",null,151,0,"",0,0,0,0,0,null,""]
["29: E.T. Carpintería / Ebanistería",null,152,0,"",0,0,0,0,0,null,""]
["30: E.T. Electricidad",null,153,0,"",0,0,0,0,0,null,""]
["31: E.T. Electrónica",null,154,0,"",0,0,0,0,0,null,""]
["32: E.T. Ebanistería",null,155,0,"",0,0,0,0,0,null,""]
["33: E.T. Industria del Vestido",null,156,0,"",0,0,0,0,0,null,""]
["34: E.T. Industria del Vestido Alimentación y Alta Costura",null,157,0,"",0,0,0,0,0,null,""]
["35: E.T. en Industria del Vestido y Alta Costura",null,158,0,"",0,0,0,0,0,null,""]
["36: E.S.Técnica Esp. Ind. del Vestido Ind.Alimentaria y Artesanía",null,159,0,"",0,0,0,0,0,null,""]
["37: E.T. Industria Alimentaria",null,160,0,"",0,0,0,0,0,null,""]
["38: E.T. Mecánica Automotriz",null,161,0,"",0,0,0,0,0,null,""]
["39: E.T. Mecánica de Producción",null,162,0,"",0,0,0,0,0,null,""]
["40: E.T. Mecánica de Producción y Soldadura",null,163,0,"",0,0,0,0,0,null,""]
["41: Educación para el trabajo Textil y Confección",null,164,0,"",0,0,0,0,0,null,""]
["42: Otra pedagógica",null,165,0,"",0,0,0,0,0,null,""]
[null,null,166,0,"",0,0,0,0,0,null,""]
[null,null,167,0,"",0,0,0,0,0,null,""]
[null,null,168,0,"",0,0,0,0,0,null,""]
[null,null,169,0,"",0,0,0,0,0,null,""]
[null,null,170,0,"",0,0,0,0,0,null,""]
[null,null,171,0,"",0,0,0,0,0,null,""]
[null,null,172,0,"",0,0,0,0,0,null,""]
[null,null,173,0,"",0,0,0,0,0,null,""]
[null,null,174,0,"",0,0,0,0,0,null,""]
[null,null,175,0,"",0,0,0,0,0,null,""]
[null,null,176,0,"",0,0,0,0,0,null,""]
[null,null,177,0,"",0,0,0,0,0,null,""]
[null,null,178,0,"",0,0,0,0,0,null,""]
[null,null,179,0,"",0,0,0,0,0,null,""]
[null,null,180,0,"",0,0,0,0,0,null,""]
[null,null,181,0,"",0,0,0,0,0,null,""]
[null,null,182,0,"",0,0,0,0,0,null,""]
[null,null,183,0,"",0,0,0,0,0,null,""]
[null,null,184,0,"",0,0,0,0,0,null,""]
[null,null,185,0,"",0,0,0,0,0,null,""]
[null,null,186,0,"",0,0,0,0,0,null,""]
[null,null,187,0,"",0,0,0,0,0,null,""]
[null,null,188,0,"",0,0,0,0,0,null,""]
[null,null,189,0,"",0,0,0,0,0,null,""]
[null,null,190,0,"",0,0,0,0,0,null,""]
[null,null,191,0,"",0,0,0,0,0,null,""]
[null,null,192,0,"",0,0,0,0,0,null,""]
[null,null,193,{"$f":"IF(AND(LEFT(R212,2)=\"01\",LEFT(Y212,2)=\"01\",LEFT(X212,2)=\"01\",E212=1),1,0)","v":0},"",0,0,0,{"$f":"IF(L212<>\"\",1,0)","v":0},0,null,""]
[null,null,194,0,{"$f":"$B$16","v":""},{"$f":"COUNTIF(AO213:CV213,\"X\")","v":0},{"$f":"IF(R213<>\"\",VALUE(LEFT(R213,2)),0)","v":0},{"$f":"IF(Q213<>\"\",COUNTIF($Q$20:$Q$319,Q213),0)","v":0},0,{"$f":"IF(AND(R213=\"01: Docente\",V213=\"SI\"),1,0)","v":0},null,{"$f":"IF($C213<=$B$5,C213,\"\")","v":""}]
[null,null,195,0,"",0,0,0,0,0,null,""]
[null,null,196,0,"",0,0,0,0,0,null,""]
[null,null,197,0,"",0,0,0,0,0,null,""]
[null,null,198,0,"",0,0,0,0,0,null,""]
[null,null,199,0,"",0,0,0,0,0,null,""]
[null,null,200,0,"",0,{"$f":"IF(R219<>\"\",VALUE(LEFT(R219,2)),0)","v":0},0,{"$f":"IF(L219<>\"\",1,0)","v":0},0,null,""]
[null,null,201,0,"",0,{"$f":"IF(R220<>\"\",VALUE(LEFT(R220,2)),0)","v":0},0,{"$f":"IF(L220<>\"\",1,0)","v":0},0,null,""]
[null,null,202,0,"",0,0,0,0,0,null,""]
[null,null,203,0,"",0,0,0,0,0,null,""]
[null,null,204,0,"",0,0,0,0,0,null,""]
[null,null,205,0,"",0,0,0,0,0,null,""]
[null,null,206,0,"",0,0,0,0,0,null,""]
[null,null,207,0,"",0,0,0,0,0,null,""]
[null,null,208,0,"",0,0,0,0,0,null,""]
[null,null,209,0,"",0,0,0,0,0,null,""]
[null,null,210,0,"",0,0,0,0,0,null,""]
[null,null,211,0,"",0,0,0,0,0,null,""]
[null,null,212,0,"",0,0,0,0,0,null,""]
[null,null,213,0,"",0,0,0,0,0,null,""]
[null,null,214,0,"",0,0,0,0,0,null,""]
[null,null,215,0,"",0,0,0,0,0,null,""]
[null,null,216,0,"",0,0,0,0,0,null,""]
[null,null,217,0,"",0,0,0,0,0,null,""]
[null,null,218,0,"",0,0,0,0,0,null,""]
[null,null,219,0,"",0,0,0,0,0,null,""]
[null,null,220,0,"",0,0,0,0,0,null,""]
[null,null,221,0,"",0,0,0,0,0,null,""]
[null,null,222,0,"",0,0,0,0,0,null,""]
[null,null,223,0,"",0,0,0,0,0,null,""]
[null,null,224,0,"",0,0,0,0,0,null,""]
[null,null,225,0,"",0,0,0,0,0,null,""]
[null,null,226,0,"",0,0,0,0,0,null,""]
[null,null,227,0,"",0,0,0,0,0,null,""]
[null,null,228,0,"",0,0,0,0,0,null,""]
[null,null,229,0,"",0,0,0,0,0,null,""]
[null,null,230,0,"",0,0,0,0,0,null,""]
[null,null,231,0,"",0,0,0,0,0,null,""]
[null,null,232,0,"",0,0,0,0,0,null,""]
[null,null,233,0,"",0,0,0,0,0,null,""]
[null,null,234,0,"",0,0,0,0,0,null,""]
[null,null,235,0,"",0,0,0,0,0,null,""]
[null,null,236,0,"",0,0,0,0,0,null,""]
[null,null,237,0,"",0,0,0,0,0,null,""]
[null,null,238,0,"",0,0,0,0,0,null,""]
[null,null,239,0,"",0,0,0,0,0,null,""]
[null,null,240,0,"",0,0,0,0,0,null,""]
[null,null,241,0,"",0,0,0,0,0,null,""]
[null,null,242,0,"",0,0,0,0,0,null,""]
[null,null,243,0,"",0,0,0,0,0,null,""]
[null,null,244,0,"",0,0,0,0,0,null,""]
[null,null,245,0,"",0,0,0,0,0,null,""]
[null,null,246,0,"",0,0,0,0,0,null,""]
[null,null,247,0,"",0,0,0,0,0,null,""]
[null,null,248,0,"",0,0,0,0,0,null,""]
[null,null,249,0,"",0,0,0,0,0,null,""]
[null,null,250,0,"",0,0,0,0,0,null,""]
[null,null,251,0,"",0,0,0,0,0,null,""]
[null,null,252,0,"",0,0,0,0,0,null,""]
[null,null,253,0,"",0,0,0,0,0,null,""]
[null,null,254,0,"",0,0,0,0,0,null,""]
[null,null,255,0,"",0,0,0,0,0,null,""]
[null,null,256,0,"",0,0,0,0,0,null,""]
[null,null,257,{"$f":"IF(AND(LEFT(R276,2)=\"01\",LEFT(Y276,2)=\"01\",LEFT(X276,2)=\"01\",E276=1),1,0)","v":0},"",0,0,0,0,0,null,""]
[null,null,258,0,{"$f":"$B$16","v":""},{"$f":"COUNTIF(AO277:CV277,\"X\")","v":0},0,{"$f":"IF(Q277<>\"\",COUNTIF($Q$20:$Q$319,Q277),0)","v":0},0,{"$f":"IF(AND(R277=\"01: Docente\",V277=\"SI\"),1,0)","v":0},null,{"$f":"IF($C277<=$B$5,C277,\"\")","v":""}]
[null,null,259,0,"",0,0,0,0,0,null,""]
[null,null,260,0,"",0,0,0,0,0,null,""]
[null,null,261,0,"",0,0,0,0,0,null,""]
[null,null,262,0,"",0,0,0,0,0,null,""]
[null,null,263,0,"",0,0,0,0,0,null,""]
[null,null,264,0,"",0,0,0,0,0,null,""]
[null,null,265,0,"",0,{"$f":"IF(R284<>\"\",VALUE(LEFT(R284,2)),0)","v":0},0,{"$f":"IF(L284<>\"\",1,0)","v":0},0,null,""]
[null,null,266,0,"",0,0,0,0,0,null,""]
[null,null,267,0,"",0,0,0,0,0,null,""]
[null,null,268,0,"",0,0,0,0,0,null,""]
[null,null,269,0,"",0,0,0,0,0,null,""]
[null,null,270,0,"",0,0,0,0,0,null,""]
[null,null,271,0,"",0,0,0,0,0,null,""]
[null,null,272,0,"",0,0,0,0,0,null,""]
[null,null,273,0,"",0,0,0,0,0,null,""]
[null,null,274,0,"",0,0,0,0,0,null,""]
[null,null,275,0,"",0,0,0,0,0,null,""]
[null,null,276,0,"",0,0,0,0,0,null,""]
[null,null,277,0,"",0,0,0,0,0,null,""]
[null,null,278,0,"",0,0,0,0,0,null,""]
[null,null,279,0,"",0,0,0,0,0,null,""]
[null,null,280,0,"",0,0,0,0,0,null,""]
[null,null,281,0,"",0,0,0,0,0,null,""]
[null,null,282,0,"",0,0,0,0,0,null,""]
[null,null,283,0,"",0,0,0,0,0,null,""]
[null,null,284,0,"",0,0,0,0,0,null,""]
[null,null,285,0,"",0,0,0,0,0,null,""]
[null,null,286,0,"",0,0,0,0,0,null,""]
[null,null,287,0,"",0,0,0,0,0,null,""]
[null,null,288,0,"",0,0,0,0,0,null,""]
[null,null,289,0,"",0,0,0,0,0,null,""]
[null,null,290,0,"",0,0,0,0,0,null,""]
[null,null,291,0,"",0,0,0,0,0,null,""]
[null,null,292,0,"",0,0,0,0,0,null,""]
[null,null,293,0,"",0,0,0,0,0,null,""]
[null,null,294,0,"",0,0,0,0,0,null,""]
[null,null,295,0,"",0,0,0,0,0,null,""]
[null,null,296,0,"",0,0,0,0,0,null,""]
[null,null,297,0,"",0,0,0,0,0,null,""]
[null,null,298,0,"",0,0,0,0,0,null,""]
[null,null,299,0,"",0,0,0,0,0,null,""]
[null,null,300,0,"",0,{"$f":"IF(R319<>\"\",VALUE(LEFT(R319,2)),0)","v":0},0,{"$f":"IF(L319<>\"\",1,0)","v":0},0,null,""]
[]
[null,null,null,null,null,null,null,null,null,null,null,null,"Limite","Limite","Limite","Limite","Limite","Limite","Limite","Limite","Limite","Limite","Limite","Limite","Limite","Limite","Limite","Limite","Limite","Limite","Limite",null,"Limite","Limite","Limite","Limite","Limite","Limite","Limite","Limite","Limite","Limite","Limite","Limite","Limite","Limite","Limite","Limite","Limite","Limite","Limite","Limite","Limite","Limite","Limite","Limite","Limite","Limite","Limite","Limite","Limite","Limite","Limite","Limite","Limite","Limite","Limite","Limite","Limite","Limite","Limite","Limite","Limite","Limite","Limite","Limite","Limite","Limite","Limite","Limite","Limite","Limite","Limite","Limite","Limite","Limite","Limite","Limite","Limite","Limite","Limite","Limite","Limite","Limite","Limite","Limite","Limite","Limite","Limite","Limite","Limite","Limite","Limite","Limite","Limite","Limite","Limite","Limite","Limite","Limite","Limite","Limite","Limite","Limite","Limite"]
[null,null,null,null,null,null,null,null,null,null,null,null,null,null,null,null,null,"","","","",null,"","","",null,"","",null,"",null,null,"",null,null,"","","","","","",null,null,null,null,null,null,null,null,null,null,null,null,null,null,null,null,null,null,null,null,null,null,null,null,null,null,null,null,null,null,null,null,"","","",null,null,null,null,null,null,null,null,null,null,null,null,null,"","","",null,null,"","","",null,null,null,"","","","","",null,null,null,null,null,null,null,null,""]
[null,null,null,null,null,null,null,null,null,null,null,null,null,null,null,null,null,"","","","",null,"","","",null,"","",null,"",null,null,"",null,null,"","","","","","",null,null,null,null,null,null,null,null,null,null,null,null,null,null,null,null,null,null,null,null,null,null,null,null,null,null,null,null,null,null,null,null,"","","",null,null,null,null,null,null,null,null,null,null,null,null,null,"","","",null,null,"","","",null,null,null,"","","","","",null,null,null,null,null,null,null,null,""]
[null,null,null,null,null,null,null,null,null,null,null,null,null,null,null,null,null,"","","","",null,"","","",null,"","",null,"",null,null,"",null,null,"","","","","","",null,null,null,null,null,null,null,null,null,null,null,null,null,null,null,null,null,null,null,null,null,null,null,null,null,null,null,null,null,null,null,null,"","","",null,null,null,null,null,null,null,null,null,null,null,null,null,"","","",null,null,"","","",null,null,null,"","","","","",null,null,null,null,null,null,null,null,""]
[null,null,null,null,null,null,null,null,null,null,null,null,null,null,null,null,null,"","","","",null,"","","",null,"","",null,"",null,null,"",null,null,"","","","","","",null,null,null,null,null,null,null,null,null,null,null,null,null,null,null,null,null,null,null,null,null,null,null,null,null,null,null,null,null,null,null,null,"","","",null,null,null,null,null,null,null,null,null,null,null,null,null,"","","",null,null,"","","",null,null,null,"","","","","",null,null,null,null,null,null,null,null,""]
[null,null,null,null,null,null,null,null,null,null,null,null,null,null,null,null,null,"","","","",null,"","","",null,"","",null,"",null,null,"",null,null,"","","","","","",null,null,null,null,null,null,null,null,null,null,null,null,null,null,null,null,null,null,null,null,null,null,null,null,null,null,null,null,null,null,null,null,"","","",null,null,null,null,null,null,null,null,null,null,null,null,null,"","","",null,null,"","","",null,null,null,"","","","","",null,null,null,null,null,null,null,null,""]
[null,null,null,null,null,null,null,null,null,null,null,null,null,null,null,null,null,"","","","",null,"","","",null,"","",null,"",null,null,"",null,null,"","","","","","",null,null,null,null,null,null,null,null,null,null,null,null,null,null,null,null,null,null,null,null,null,null,null,null,null,null,null,null,null,null,null,null,"","","",null,null,null,null,null,null,null,null,null,null,null,null,null,"","","",null,null,"","","",null,null,null,"","","","","",null,null,null,null,null,null,null,null,""]
[null,null,null,null,null,null,null,null,null,null,null,null,null,null,null,null,null,"","","","",null,"","","",null,"","",null,"",null,null,"",null,null,"","","","","","",null,null,null,null,null,null,null,null,null,null,null,null,null,null,null,null,null,null,null,null,null,null,null,null,null,null,null,null,null,null,null,null,"","","",null,null,null,null,null,null,null,null,null,null,null,null,null,"","","",null,null,"","","",null,null,null,"","","","","",null,null,null,null,null,null,null,null,""]
[null,null,null,null,null,null,null,null,null,null,null,null,null,null,null,null,null,"","","","",null,"","","",null,"","",null,"",null,null,"",null,null,"","","","","","",null,null,null,null,null,null,null,null,null,null,null,null,null,null,null,null,null,null,null,null,null,null,null,null,null,null,null,null,null,null,null,null,"","","",null,null,null,null,null,null,null,null,null,null,null,null,null,"","","",null,null,"","","",null,null,null,"","","","","",null,null,null,null,null,null,null,null,""]
[null,null,null,null,null,null,null,null,null,null,null,null,null,null,null,null,null,"","","","",null,"","","",null,"","",null,"",null,null,"",null,null,"","","","","","",null,null,null,null,null,null,null,null,null,null,null,null,null,null,null,null,null,null,null,null,null,null,null,null,null,null,null,null,null,null,null,null,"","","",null,null,null,null,null,null,null,null,null,null,null,null,null,"","","",null,null,"","","",null,null,null,"","","","","",null,null,null,null,null,null,null,null,""]
[null,null,null,null,null,null,null,null,null,null,null,null,null,null,null,null,null,"","","","",null,"","","",null,"","",null,"",null,null,"",null,null,"","","","","","",null,null,null,null,null,null,null,null,null,null,null,null,null,null,null,null,null,null,null,null,null,null,null,null,null,null,null,null,null,null,null,null,"","","",null,null,null,null,null,null,null,null,null,null,null,null,null,"","","",null,null,"","","",null,null,null,"","","","","",null,null,null,null,null,null,null,null,""]
[null,null,null,null,null,null,null,null,null,null,null,null,null,null,null,null,null,"","","","",null,"","","",null,"","",null,"",null,null,"",null,null,"","","","","","",null,null,null,null,null,null,null,null,null,null,null,null,null,null,null,null,null,null,null,null,null,null,null,null,null,null,null,null,null,null,null,null,"","","",null,null,null,null,null,null,null,null,null,null,null,null,null,"","","",null,null,"","","",null,null,null,"","","","","",null,null,null,null,null,null,null,null,""]
[null,null,null,null,null,null,null,null,null,null,null,null,null,null,null,null,null,"","","","",null,"","","",null,"","",null,"",null,null,"",null,null,"","","","","","",null,null,null,null,null,null,null,null,null,null,null,null,null,null,null,null,null,null,null,null,null,null,null,null,null,null,null,null,null,null,null,null,"","","",null,null,null,null,null,null,null,null,null,null,null,null,null,"","","",null,null,"","","",null,null,null,"","","","","",null,null,null,null,null,null,null,null,""]
[null,null,null,null,null,null,null,null,null,null,null,null,null,null,null,null,null,"","","","",null,"","","",null,"","",null,"",null,null,"",null,null,"","","","","","",null,null,null,null,null,null,null,null,null,null,null,null,null,null,null,null,null,null,null,null,null,null,null,null,null,null,null,null,null,null,null,null,"","","",null,null,null,null,null,null,null,null,null,null,null,null,null,"","","",null,null,"","","",null,null,null,"","","","","",null,null,null,null,null,null,null,null,""]
[null,null,null,null,null,null,null,null,null,null,null,null,null,null,null,null,null,"","","","",null,"","","",null,"","",null,"",null,null,"",null,null,"","","","","","",null,null,null,null,null,null,null,null,null,null,null,null,null,null,null,null,null,null,null,null,null,null,null,null,null,null,null,null,null,null,null,null,"","","",null,null,null,null,null,null,null,null,null,null,null,null,null,"","","",null,null,"","","",null,null,null,"","","","","",null,null,null,null,null,null,null,null,""]
[null,null,null,null,null,null,null,null,null,null,null,null,null,null,null,null,null,"","","","",null,"","","",null,"","",null,"",null,null,"",null,null,"","","","","","",null,null,null,null,null,null,null,null,null,null,null,null,null,null,null,null,null,null,null,null,null,null,null,null,null,null,null,null,null,null,null,null,"","","",null,null,null,null,null,null,null,null,null,null,null,null,null,"","","",null,null,"","","",null,null,null,"","","","","",null,null,null,null,null,null,null,null,""]
[null,null,null,null,null,null,null,null,null,null,null,null,null,null,null,null,null,"","","","",null,"","","",null,"","",null,"",null,null,"",null,null,"","","","","","",null,null,null,null,null,null,null,null,null,null,null,null,null,null,null,null,null,null,null,null,null,null,null,null,null,null,null,null,null,null,null,null,"","","",null,null,null,null,null,null,null,null,null,null,null,null,null,"","","",null,null,"","","",null,null,null,"","","","","",null,null,null,null,null,null,null,null,""]
[null,null,null,null,null,null,null,null,null,null,null,null,null,null,null,null,null,"","","","",null,"","","",null,"","",null,"",null,null,"",null,null,"","","","","","",null,null,null,null,null,null,null,null,null,null,null,null,null,null,null,null,null,null,null,null,null,null,null,null,null,null,null,null,null,null,null,null,"","","",null,null,null,null,null,null,null,null,null,null,null,null,null,"","","",null,null,"","","",null,null,null,"","","","","",null,null,null,null,null,null,null,null,""]
[null,null,null,null,null,null,null,null,null,null,null,null,null,null,null,null,null,"","","","",null,"","","",null,"","",null,"",null,null,"",null,null,"","","","","","",null,null,null,null,null,null,null,null,null,null,null,null,null,null,null,null,null,null,null,null,null,null,null,null,null,null,null,null,null,null,null,null,"","","",null,null,null,null,null,null,null,null,null,null,null,null,null,"","","",null,null,"","","",null,null,null,"","","","","",null,null,null,null,null,null,null,null,""]
[null,null,null,null,null,null,null,null,null,null,null,null,null,null,null,null,null,"","","","",null,"","","",null,"","",null,"",null,null,"",null,null,"","","","","","",null,null,null,null,null,null,null,null,null,null,null,null,null,null,null,null,null,null,null,null,null,null,null,null,null,null,null,null,null,null,null,null,"","","",null,null,null,null,null,null,null,null,null,null,null,null,null,"","","",null,null,"","","",null,null,null,"","","","","",null,null,null,null,null,null,null,null,""]
[null,null,null,null,null,null,null,null,null,null,null,null,null,null,null,null,null,"","","","",null,"","","",null,"","",null,"",null,null,"",null,null,"","","","","","",null,null,null,null,null,null,null,null,null,null,null,null,null,null,null,null,null,null,null,null,null,null,null,null,null,null,null,null,null,null,null,null,"","","",null,null,null,null,null,null,null,null,null,null,null,null,null,"","","",null,null,"","","",null,null,null,"","","","","",null,null,null,null,null,null,null,null,""]
[null,null,null,null,null,null,null,null,null,null,null,null,null,null,null,null,null,"","","","",null,"","","",null,"","",null,"",null,null,"",null,null,"","","","","","",null,null,null,null,null,null,null,null,null,null,null,null,null,null,null,null,null,null,null,null,null,null,null,null,null,null,null,null,null,null,null,null,"","","",null,null,null,null,null,null,null,null,null,null,null,null,null,"","","",null,null,"","","",null,null,null,"","","","","",null,null,null,null,null,null,null,null,""]
[null,null,null,null,null,null,null,null,null,null,null,null,null,null,null,null,null,"","","","",null,"","","",null,"","",null,"",null,null,"",null,null,"","","","","","",null,null,null,null,null,null,null,null,null,null,null,null,null,null,null,null,null,null,null,null,null,null,null,null,null,null,null,null,null,null,null,null,"","","",null,null,null,null,null,null,null,null,null,null,null,null,null,"","","",null,null,"","","",null,null,null,"","","","","",null,null,null,null,null,null,null,null,""]
[null,null,null,null,null,null,null,null,null,null,null,null,null,null,null,null,null,"","","","",null,"","","",null,"","",null,"",null,null,"",null,null,"","","","","","",null,null,null,null,null,null,null,null,null,null,null,null,null,null,null,null,null,null,null,null,null,null,null,null,null,null,null,null,null,null,null,null,"","","",null,null,null,null,null,null,null,null,null,null,null,null,null,"","","",null,null,"","","",null,null,null,"","","","","",null,null,null,null,null,null,null,null,""]
[null,null,null,null,null,null,null,null,null,null,null,null,null,null,null,null,null,"","","","",null,"","","",null,"","",null,"",null,null,"",null,null,"","","","","","",null,null,null,null,null,null,null,null,null,null,null,null,null,null,null,null,null,null,null,null,null,null,null,null,null,null,null,null,null,null,null,null,"","","",null,null,null,null,null,null,null,null,null,null,null,null,null,"","","",null,null,"","","",null,null,null,"","","","","",null,null,null,null,null,null,null,null,""]
[null,null,null,null,null,null,null,null,null,null,null,null,null,null,null,null,null,"","","","",null,"","","",null,"","",null,"",null,null,"",null,null,"","","","","","",null,null,null,null,null,null,null,null,null,null,null,null,null,null,null,null,null,null,null,null,null,null,null,null,null,null,null,null,null,null,null,null,"","","",null,null,null,null,null,null,null,null,null,null,null,null,null,"","","",null,null,"","","",null,null,null,"","","","","",null,null,null,null,null,null,null,null,""]
[null,null,null,null,null,null,null,null,null,null,null,null,null,null,null,null,null,"","","","",null,"","","",null,"","",null,"",null,null,"",null,null,"","","","","","",null,null,null,null,null,null,null,null,null,null,null,null,null,null,null,null,null,null,null,null,null,null,null,null,null,null,null,null,null,null,null,null,"","","",null,null,null,null,null,null,null,null,null,null,null,null,null,"","","",null,null,"","","",null,null,null,"","","","","",null,null,null,null,null,null,null,null,""]
[null,null,null,null,null,null,null,null,null,null,null,null,null,null,null,null,null,"","","","",null,"","","",null,"","",null,"",null,null,"",null,null,"","","","","","",null,null,null,null,null,null,null,null,null,null,null,null,null,null,null,null,null,null,null,null,null,null,null,null,null,null,null,null,null,null,null,null,"","","",null,null,null,null,null,null,null,null,null,null,null,null,null,"","","",null,null,"","","",null,null,null,"","","","","",null,null,null,null,null,null,null,null,""]
[null,null,null,null,null,null,null,null,null,null,null,null,null,null,null,null,null,"","","","",null,"","","",null,"","",null,"",null,null,"",null,null,"","","","","","",null,null,null,null,null,null,null,null,null,null,null,null,null,null,null,null,null,null,null,null,null,null,null,null,null,null,null,null,null,null,null,null,"","","",null,null,null,null,null,null,null,null,null,null,null,null,null,"","","",null,null,"","","",null,null,null,"","","","","",null,null,null,null,null,null,null,null,""]
[null,null,null,null,null,null,null,null,null,null,null,null,null,null,null,null,null,"","","","",null,"","","",null,"","",null,"",null,null,"",null,null,"","","","","","",null,null,null,null,null,null,null,null,null,null,null,null,null,null,null,null,null,null,null,null,null,null,null,null,null,null,null,null,null,null,null,null,"","","",null,null,null,null,null,null,null,null,null,null,null,null,null,"","","",null,null,"","","",null,null,null,"","","","","",null,null,null,null,null,null,null,null,""]
[null,null,null,null,null,null,null,null,null,null,null,null,null,null,null,null,null,"","","","",null,"","","",null,"","",null,"",null,null,"",null,null,"","","","","","",null,null,null,null,null,null,null,null,null,null,null,null,null,null,null,null,null,null,null,null,null,null,null,null,null,null,null,null,null,null,null,null,"","","",null,null,null,null,null,null,null,null,null,null,null,null,null,"","","",null,null,"","","",null,null,null,"","","","","",null,null,null,null,null,null,null,null,""]
[null,null,null,null,null,null,null,null,null,null,null,null,null,null,null,null,null,"","","","",null,"","","",null,"","",null,"",null,null,"",null,null,"","","","","","",null,null,null,null,null,null,null,null,null,null,null,null,null,null,null,null,null,null,null,null,null,null,null,null,null,null,null,null,null,null,null,null,"","","",null,null,null,null,null,null,null,null,null,null,null,null,null,"","","",null,null,"","","",null,null,null,"","","","","",null,null,null,null,null,null,null,null,""]
[null,null,null,null,null,null,null,null,null,null,null,null,null,null,null,null,null,"","","","",null,"","","",null,"","",null,"",null,null,"",null,null,"","","","","","",null,null,null,null,null,null,null,null,null,null,null,null,null,null,null,null,null,null,null,null,null,null,null,null,null,null,null,null,null,null,null,null,"","","",null,null,null,null,null,null,null,null,null,null,null,null,null,"","","",null,null,"","","",null,null,null,"","","","","",null,null,null,null,null,null,null,null,""]
[null,null,null,null,null,null,null,null,null,null,null,null,null,null,null,null,null,"","","","",null,"","","",null,"","",null,"",null,null,"",null,null,"","","","","","",null,null,null,null,null,null,null,null,null,null,null,null,null,null,null,null,null,null,null,null,null,null,null,null,null,null,null,null,null,null,null,null,"","","",null,null,null,null,null,null,null,null,null,null,null,null,null,"","","",null,null,"","","",null,null,null,"","","","","",null,null,null,null,null,null,null,null,""]
[null,null,null,null,null,null,null,null,null,null,null,null,null,null,null,null,null,"","","","",null,"","","",null,"","",null,"",null,null,"",null,null,"","","","","","",null,null,null,null,null,null,null,null,null,null,null,null,null,null,null,null,null,null,null,null,null,null,null,null,null,null,null,null,null,null,null,null,"","","",null,null,null,null,null,null,null,null,null,null,null,null,null,"","","",null,null,"","","",null,null,null,"","","","","",null,null,null,null,null,null,null,null,""]
[null,null,null,null,null,null,null,null,null,null,null,null,null,null,null,null,null,"","","","",null,"","","",null,"","",null,"",null,null,"",null,null,"","","","","","",null,null,null,null,null,null,null,null,null,null,null,null,null,null,null,null,null,null,null,null,null,null,null,null,null,null,null,null,null,null,null,null,"","","",null,null,null,null,null,null,null,null,null,null,null,null,null,"","","",null,null,"","","",null,null,null,"","","","","",null,null,null,null,null,null,null,null,""]
[null,null,null,null,null,null,null,null,null,null,null,null,null,null,null,null,null,"","","","",null,"","","",null,"","",null,"",null,null,"",null,null,"","","","","","",null,null,null,null,null,null,null,null,null,null,null,null,null,null,null,null,null,null,null,null,null,null,null,null,null,null,null,null,null,null,null,null,"","","",null,null,null,null,null,null,null,null,null,null,null,null,null,"","","",null,null,"","","",null,null,null,"","","","","",null,null,null,null,null,null,null,null,""]
[null,null,null,null,null,null,null,null,null,null,null,null,null,null,null,null,null,"","","","",null,"","","",null,"","",null,"",null,null,"",null,null,"","","","","","",null,null,null,null,null,null,null,null,null,null,null,null,null,null,null,null,null,null,null,null,null,null,null,null,null,null,null,null,null,null,null,null,"","","",null,null,null,null,null,null,null,null,null,null,null,null,null,"","","",null,null,"","","",null,null,null,"","","","","",null,null,null,null,null,null,null,null,""]
[null,null,null,null,null,null,null,null,null,null,null,null,null,null,null,null,null,"","","","",null,"","","",null,"","",null,"",null,null,"",null,null,"","","","","","",null,null,null,null,null,null,null,null,null,null,null,null,null,null,null,null,null,null,null,null,null,null,null,null,null,null,null,null,null,null,null,null,"","","",null,null,null,null,null,null,null,null,null,null,null,null,null,"","","",null,null,"","","",null,null,null,"","","","","",null,null,null,null,null,null,null,null,""]
[null,null,null,null,null,null,null,null,null,null,null,null,null,null,null,null,null,"","","","",null,"","","",null,"","",null,"",null,null,"",null,null,"","","","","","",null,null,null,null,null,null,null,null,null,null,null,null,null,null,null,null,null,null,null,null,null,null,null,null,null,null,null,null,null,null,null,null,"","","",null,null,null,null,null,null,null,null,null,null,null,null,null,"","","",null,null,"","","",null,null,null,"","","","","",null,null,null,null,null,null,null,null,""]
[null,null,null,null,null,null,null,null,null,null,null,null,null,null,null,null,null,"","","","",null,"","","",null,"","",null,"",null,null,"",null,null,"","","","","","",null,null,null,null,null,null,null,null,null,null,null,null,null,null,null,null,null,null,null,null,null,null,null,null,null,null,null,null,null,null,null,null,"","","",null,null,null,null,null,null,null,null,null,null,null,null,null,"","","",null,null,"","","",null,null,null,"","","","","",null,null,null,null,null,null,null,null,""]
[null,null,null,null,null,null,null,null,null,null,null,null,null,null,null,null,null,"","","","",null,"","","",null,"","",null,"",null,null,"",null,null,"","","","","","",null,null,null,null,null,null,null,null,null,null,null,null,null,null,null,null,null,null,null,null,null,null,null,null,null,null,null,null,null,null,null,null,"","","",null,null,null,null,null,null,null,null,null,null,null,null,null,"","","",null,null,"","","",null,null,null,"","","","","",null,null,null,null,null,null,null,null,""]
[null,null,null,null,null,null,null,null,null,null,null,null,null,null,null,null,null,"","","","",null,"","","",null,"","",null,"",null,null,"",null,null,"","","","","","",null,null,null,null,null,null,null,null,null,null,null,null,null,null,null,null,null,null,null,null,null,null,null,null,null,null,null,null,null,null,null,null,"","","",null,null,null,null,null,null,null,null,null,null,null,null,null,"","","",null,null,"","","",null,null,null,"","","","","",null,null,null,null,null,null,null,null,""]
[null,null,null,null,null,null,null,null,null,null,null,null,null,null,null,null,null,"","","","",null,"","","",null,"","",null,"",null,null,"",null,null,"","","","","","",null,null,null,null,null,null,null,null,null,null,null,null,null,null,null,null,null,null,null,null,null,null,null,null,null,null,null,null,null,null,null,null,"","","",null,null,null,null,null,null,null,null,null,null,null,null,null,"","","",null,null,"","","",null,null,null,"","","","","",null,null,null,null,null,null,null,null,""]
[null,null,null,null,null,null,null,null,null,null,null,null,null,null,null,null,null,"","","","",null,"","","",null,"","",null,"",null,null,"",null,null,"","","","","","",null,null,null,null,null,null,null,null,null,null,null,null,null,null,null,null,null,null,null,null,null,null,null,null,null,null,null,null,null,null,null,null,"","","",null,null,null,null,null,null,null,null,null,null,null,null,null,"","","",null,null,"","","",null,null,null,"","","","","",null,null,null,null,null,null,null,null,""]
[null,null,null,null,null,null,null,null,null,null,null,null,null,null,null,null,null,"","","","",null,"","","",null,"","",null,"",null,null,"",null,null,"","","","","","",null,null,null,null,null,null,null,null,null,null,null,null,null,null,null,null,null,null,null,null,null,null,null,null,null,null,null,null,null,null,null,null,"","","",null,null,null,null,null,null,null,null,null,null,null,null,null,"","","",null,null,"","","",null,null,null,"","","","","",null,null,null,null,null,null,null,null,""]
[null,null,null,null,null,null,null,null,null,null,null,null,null,null,null,null,null,"","","","",null,"","","",null,"","",null,"",null,null,"",null,null,"","","","","","",null,null,null,null,null,null,null,null,null,null,null,null,null,null,null,null,null,null,null,null,null,null,null,null,null,null,null,null,null,null,null,null,"","","",null,null,null,null,null,null,null,null,null,null,null,null,null,"","","",null,null,"","","",null,null,null,"","","","","",null,null,null,null,null,null,null,null,""]
[null,null,null,null,null,null,null,null,null,null,null,null,null,null,null,null,null,"","","","",null,"","","",null,"","",null,"",null,null,"",null,null,"","","","","","",null,null,null,null,null,null,null,null,null,null,null,null,null,null,null,null,null,null,null,null,null,null,null,null,null,null,null,null,null,null,null,null,"","","",null,null,null,null,null,null,null,null,null,null,null,null,null,"","","",null,null,"","","",null,null,null,"","","","","",null,null,null,null,null,null,null,null,""]
[null,null,null,null,null,null,null,null,null,null,null,null,null,null,null,null,null,"","","","",null,"","","",null,"","",null,"",null,null,"",null,null,"","","","","","",null,null,null,null,null,null,null,null,null,null,null,null,null,null,null,null,null,null,null,null,null,null,null,null,null,null,null,null,null,null,null,null,"","","",null,null,null,null,null,null,null,null,null,null,null,null,null,"","","",null,null,"","","",null,null,null,"","","","","",null,null,null,null,null,null,null,null,""]
[null,null,null,null,null,null,null,null,null,null,null,null,null,null,null,null,null,"","","","",null,"","","",null,"","",null,"",null,null,"",null,null,"","","","","","",null,null,null,null,null,null,null,null,null,null,null,null,null,null,null,null,null,null,null,null,null,null,null,null,null,null,null,null,null,null,null,null,"","","",null,null,null,null,null,null,null,null,null,null,null,null,null,"","","",null,null,"","","",null,null,null,"","","","","",null,null,null,null,null,null,null,null,""]
[null,null,null,null,null,null,null,null,null,null,null,null,null,null,null,null,null,"","","","",null,"","","",null,"","",null,"",null,null,"",null,null,"","","","","","",null,null,null,null,null,null,null,null,null,null,null,null,null,null,null,null,null,null,null,null,null,null,null,null,null,null,null,null,null,null,null,null,"","","",null,null,null,null,null,null,null,null,null,null,null,null,null,"","","",null,null,"","","",null,null,null,"","","","","",null,null,null,null,null,null,null,null,""]
[null,null,null,null,null,null,null,null,null,null,null,null,null,null,null,null,null,"","","","",null,"","","",null,"","",null,"",null,null,"",null,null,"","","","","","",null,null,null,null,null,null,null,null,null,null,null,null,null,null,null,null,null,null,null,null,null,null,null,null,null,null,null,null,null,null,null,null,"","","",null,null,null,null,null,null,null,null,null,null,null,null,null,"","","",null,null,"","","",null,null,null,"","","","","",null,null,null,null,null,null,null,null,""]
[null,null,null,null,null,null,null,null,null,null,null,null,null,null,null,null,null,"","","","",null,"","","",null,"","",null,"",null,null,"",null,null,"","","","","","",null,null,null,null,null,null,null,null,null,null,null,null,null,null,null,null,null,null,null,null,null,null,null,null,null,null,null,null,null,null,null,null,"","","",null,null,null,null,null,null,null,null,null,null,null,null,null,"","","",null,null,"","","",null,null,null,"","","","","",null,null,null,null,null,null,null,null,""]
[null,null,null,null,null,null,null,null,null,null,null,null,null,null,null,null,null,"","","","",null,"","","",null,"","",null,"",null,null,"",null,null,"","","","","","",null,null,null,null,null,null,null,null,null,null,null,null,null,null,null,null,null,null,null,null,null,null,null,null,null,null,null,null,null,null,null,null,"","","",null,null,null,null,null,null,null,null,null,null,null,null,null,"","","",null,null,"","","",null,null,null,"","","","","",null,null,null,null,null,null,null,null,""]
[null,null,null,null,null,null,null,null,null,null,null,null,null,null,null,null,null,"","","","",null,"","","",null,"","",null,"",null,null,"",null,null,"","","","","","",null,null,null,null,null,null,null,null,null,null,null,null,null,null,null,null,null,null,null,null,null,null,null,null,null,null,null,null,null,null,null,null,"","","",null,null,null,null,null,null,null,null,null,null,null,null,null,"","","",null,null,"","","",null,null,null,"","","","","",null,null,null,null,null,null,null,null,""]
[null,null,null,null,null,null,null,null,null,null,null,null,null,null,null,null,null,"","","","",null,"","","",null,"","",null,"",null,null,"",null,null,"","","","","","",null,null,null,null,null,null,null,null,null,null,null,null,null,null,null,null,null,null,null,null,null,null,null,null,null,null,null,null,null,null,null,null,"","","",null,null,null,null,null,null,null,null,null,null,null,null,null,"","","",null,null,"","","",null,null,null,"","","","","",null,null,null,null,null,null,null,null,""]
[null,null,null,null,null,null,null,null,null,null,null,null,null,null,null,null,null,"","","","",null,"","","",null,"","",null,"",null,null,"",null,null,"","","","","","",null,null,null,null,null,null,null,null,null,null,null,null,null,null,null,null,null,null,null,null,null,null,null,null,null,null,null,null,null,null,null,null,"","","",null,null,null,null,null,null,null,null,null,null,null,null,null,"","","",null,null,"","","",null,null,null,"","","","","",null,null,null,null,null,null,null,null,""]
[null,null,null,null,null,null,null,null,null,null,null,null,null,null,null,null,null,"","","","",null,"","","",null,"","",null,"",null,null,"",null,null,"","","","","","",null,null,null,null,null,null,null,null,null,null,null,null,null,null,null,null,null,null,null,null,null,null,null,null,null,null,null,null,null,null,null,null,"","","",null,null,null,null,null,null,null,null,null,null,null,null,null,"","","",null,null,"","","",null,null,null,"","","","","",null,null,null,null,null,null,null,null,""]
[null,null,null,null,null,null,null,null,null,null,null,null,null,null,null,null,null,"","","","",null,"","","",null,"","",null,"",null,null,"",null,null,"","","","","","",null,null,null,null,null,null,null,null,null,null,null,null,null,null,null,null,null,null,null,null,null,null,null,null,null,null,null,null,null,null,null,null,"","","",null,null,null,null,null,null,null,null,null,null,null,null,null,"","","",null,null,"","","",null,null,null,"","","","","",null,null,null,null,null,null,null,null,""]
[null,null,null,null,null,null,null,null,null,null,null,null,null,null,null,null,null,"","","","",null,"","","",null,"","",null,"",null,null,"",null,null,"","","","","","",null,null,null,null,null,null,null,null,null,null,null,null,null,null,null,null,null,null,null,null,null,null,null,null,null,null,null,null,null,null,null,null,"","","",null,null,null,null,null,null,null,null,null,null,null,null,null,"","","",null,null,"","","",null,null,null,"","","","","",null,null,null,null,null,null,null,null,""]
[null,null,null,null,null,null,null,null,null,null,null,null,null,null,null,null,null,"","","","",null,"","","",null,"","",null,"",null,null,"",null,null,"","","","","","",null,null,null,null,null,null,null,null,null,null,null,null,null,null,null,null,null,null,null,null,null,null,null,null,null,null,null,null,null,null,null,null,"","","",null,null,null,null,null,null,null,null,null,null,null,null,null,"","","",null,null,"","","",null,null,null,"","","","","",null,null,null,null,null,null,null,null,""]
[null,null,null,null,null,null,null,null,null,null,null,null,null,null,null,null,null,"","","","",null,"","","",null,"","",null,"",null,null,"",null,null,"","","","","","",null,null,null,null,null,null,null,null,null,null,null,null,null,null,null,null,null,null,null,null,null,null,null,null,null,null,null,null,null,null,null,null,"","","",null,null,null,null,null,null,null,null,null,null,null,null,null,"","","",null,null,"","","",null,null,null,"","","","","",null,null,null,null,null,null,null,null,""]
[null,null,null,null,null,null,null,null,null,null,null,null,null,null,null,null,null,"","","","",null,"","","",null,"","",null,"",null,null,"",null,null,"","","","","","",null,null,null,null,null,null,null,null,null,null,null,null,null,null,null,null,null,null,null,null,null,null,null,null,null,null,null,null,null,null,null,null,"","","",null,null,null,null,null,null,null,null,null,null,null,null,null,"","","",null,null,"","","",null,null,null,"","","","","",null,null,null,null,null,null,null,null,""]
[null,null,null,null,null,null,null,null,null,null,null,null,null,null,null,null,null,"","","","",null,"","","",null,"","",null,"",null,null,"",null,null,"","","","","","",null,null,null,null,null,null,null,null,null,null,null,null,null,null,null,null,null,null,null,null,null,null,null,null,null,null,null,null,null,null,null,null,"","","",null,null,null,null,null,null,null,null,null,null,null,null,null,"","","",null,null,"","","",null,null,null,"","","","","",null,null,null,null,null,null,null,null,""]
[null,null,null,null,null,null,null,null,null,null,null,null,null,null,null,null,null,"","","","",null,"","","",null,"","",null,"",null,null,"",null,null,"","","","","","",null,null,null,null,null,null,null,null,null,null,null,null,null,null,null,null,null,null,null,null,null,null,null,null,null,null,null,null,null,null,null,null,"","","",null,null,null,null,null,null,null,null,null,null,null,null,null,"","","",null,null,"","","",null,null,null,"","","","","",null,null,null,null,null,null,null,null,""]
[null,null,null,null,null,null,null,null,null,null,null,null,null,null,null,null,null,"","","","",null,"","","",null,"","",null,"",null,null,"",null,null,"","","","","","",null,null,null,null,null,null,null,null,null,null,null,null,null,null,null,null,null,null,null,null,null,null,null,null,null,null,null,null,null,null,null,null,"","","",null,null,null,null,null,null,null,null,null,null,null,null,null,"","","",null,null,"","","",null,null,null,"","","","","",null,null,null,null,null,null,null,null,""]
[null,null,null,null,null,null,null,null,null,null,null,null,null,null,null,null,null,"","","","",null,"","","",null,"","",null,"",null,null,"",null,null,"","","","","","",null,null,null,null,null,null,null,null,null,null,null,null,null,null,null,null,null,null,null,null,null,null,null,null,null,null,null,null,null,null,null,null,"","","",null,null,null,null,null,null,null,null,null,null,null,null,null,"","","",null,null,"","","",null,null,null,"","","","","",null,null,null,null,null,null,null,null,""]
[null,null,null,null,null,null,null,null,null,null,null,null,null,null,null,null,null,"","","","",null,"","","",null,"","",null,"",null,null,"",null,null,"","","","","","",null,null,null,null,null,null,null,null,null,null,null,null,null,null,null,null,null,null,null,null,null,null,null,null,null,null,null,null,null,null,null,null,"","","",null,null,null,null,null,null,null,null,null,null,null,null,null,"","","",null,null,"","","",null,null,null,"","","","","",null,null,null,null,null,null,null,null,""]
[null,null,null,null,null,null,null,null,null,null,null,null,null,null,null,null,null,"","","","",null,"","","",null,"","",null,"",null,null,"",null,null,"","","","","","",null,null,null,null,null,null,null,null,null,null,null,null,null,null,null,null,null,null,null,null,null,null,null,null,null,null,null,null,null,null,null,null,"","","",null,null,null,null,null,null,null,null,null,null,null,null,null,"","","",null,null,"","","",null,null,null,"","","","","",null,null,null,null,null,null,null,null,""]
[null,null,null,null,null,null,null,null,null,null,null,null,null,null,null,null,null,"","","","",null,"","","",null,"","",null,"",null,null,"",null,null,"","","","","","",null,null,null,null,null,null,null,null,null,null,null,null,null,null,null,null,null,null,null,null,null,null,null,null,null,null,null,null,null,null,null,null,"","","",null,null,null,null,null,null,null,null,null,null,null,null,null,"","","",null,null,"","","",null,null,null,"","","","","",null,null,null,null,null,null,null,null,""]
[null,null,null,null,null,null,null,null,null,null,null,null,null,null,null,null,null,"","","","",null,"","","",null,"","",null,"",null,null,"",null,null,"","","","","","",null,null,null,null,null,null,null,null,null,null,null,null,null,null,null,null,null,null,null,null,null,null,null,null,null,null,null,null,null,null,null,null,"","","",null,null,null,null,null,null,null,null,null,null,null,null,null,"","","",null,null,"","","",null,null,null,"","","","","",null,null,null,null,null,null,null,null,""]
[null,null,null,null,null,null,null,null,null,null,null,null,null,null,null,null,null,"","","","",null,"","","",null,"","",null,"",null,null,"",null,null,"","","","","","",null,null,null,null,null,null,null,null,null,null,null,null,null,null,null,null,null,null,null,null,null,null,null,null,null,null,null,null,null,null,null,null,"","","",null,null,null,null,null,null,null,null,null,null,null,null,null,"","","",null,null,"","","",null,null,null,"","","","","",null,null,null,null,null,null,null,null,""]
[null,null,null,null,null,null,null,null,null,null,null,null,null,null,null,null,null,"","","","",null,"","","",null,"","",null,"",null,null,"",null,null,"","","","","","",null,null,null,null,null,null,null,null,null,null,null,null,null,null,null,null,null,null,null,null,null,null,null,null,null,null,null,null,null,null,null,null,"","","",null,null,null,null,null,null,null,null,null,null,null,null,null,"","","",null,null,"","","",null,null,null,"","","","","",null,null,null,null,null,null,null,null,""]
[null,null,null,null,null,null,null,null,null,null,null,null,null,null,null,null,null,"","","","",null,"","","",null,"","",null,"",null,null,"",null,null,"","","","","","",null,null,null,null,null,null,null,null,null,null,null,null,null,null,null,null,null,null,null,null,null,null,null,null,null,null,null,null,null,null,null,null,"","","",null,null,null,null,null,null,null,null,null,null,null,null,null,"","","",null,null,"","","",null,null,null,"","","","","",null,null,null,null,null,null,null,null,""]
[null,null,null,null,null,null,null,null,null,null,null,null,null,null,null,null,null,"","","","",null,"","","",null,"","",null,"",null,null,"",null,null,"","","","","","",null,null,null,null,null,null,null,null,null,null,null,null,null,null,null,null,null,null,null,null,null,null,null,null,null,null,null,null,null,null,null,null,"","","",null,null,null,null,null,null,null,null,null,null,null,null,null,"","","",null,null,"","","",null,null,null,"","","","","",null,null,null,null,null,null,null,null,""]
[null,null,null,null,null,null,null,null,null,null,null,null,null,null,null,null,null,"","","","",null,"","","",null,"","",null,"",null,null,"",null,null,"","","","","","",null,null,null,null,null,null,null,null,null,null,null,null,null,null,null,null,null,null,null,null,null,null,null,null,null,null,null,null,null,null,null,null,"","","",null,null,null,null,null,null,null,null,null,null,null,null,null,"","","",null,null,"","","",null,null,null,"","","","","",null,null,null,null,null,null,null,null,""]
[null,null,null,null,null,null,null,null,null,null,null,null,null,null,null,null,null,"","","","",null,"","","",null,"","",null,"",null,null,"",null,null,"","","","","","",null,null,null,null,null,null,null,null,null,null,null,null,null,null,null,null,null,null,null,null,null,null,null,null,null,null,null,null,null,null,null,null,"","","",null,null,null,null,null,null,null,null,null,null,null,null,null,"","","",null,null,"","","",null,null,null,"","","","","",null,null,null,null,null,null,null,null,""]
[null,null,null,null,null,null,null,null,null,null,null,null,null,null,null,null,null,"","","","",null,"","","",null,"","",null,"",null,null,"",null,null,"","","","","","",null,null,null,null,null,null,null,null,null,null,null,null,null,null,null,null,null,null,null,null,null,null,null,null,null,null,null,null,null,null,null,null,"","","",null,null,null,null,null,null,null,null,null,null,null,null,null,"","","",null,null,"","","",null,null,null,"","","","","",null,null,null,null,null,null,null,null,""]
[null,null,null,null,null,null,null,null,null,null,null,null,null,null,null,null,null,"","","","",null,"","","",null,"","",null,"",null,null,"",null,null,"","","","","","",null,null,null,null,null,null,null,null,null,null,null,null,null,null,null,null,null,null,null,null,null,null,null,null,null,null,null,null,null,null,null,null,"","","",null,null,null,null,null,null,null,null,null,null,null,null,null,"","","",null,null,"","","",null,null,null,"","","","","",null,null,null,null,null,null,null,null,""]
[null,null,null,null,null,null,null,null,null,null,null,null,null,null,null,null,null,"","","","",null,"","","",null,"","",null,"",null,null,"",null,null,"","","","","","",null,null,null,null,null,null,null,null,null,null,null,null,null,null,null,null,null,null,null,null,null,null,null,null,null,null,null,null,null,null,null,null,"","","",null,null,null,null,null,null,null,null,null,null,null,null,null,"","","",null,null,"","","",null,null,null,"","","","","",null,null,null,null,null,null,null,null,""]
[null,null,null,null,null,null,null,null,null,null,null,null,null,null,null,null,null,"","","","",null,"","","",null,"","",null,"",null,null,"",null,null,"","","","","","",null,null,null,null,null,null,null,null,null,null,null,null,null,null,null,null,null,null,null,null,null,null,null,null,null,null,null,null,null,null,null,null,"","","",null,null,null,null,null,null,null,null,null,null,null,null,null,"","","",null,null,"","","",null,null,null,"","","","","",null,null,null,null,null,null,null,null,""]
[null,null,null,null,null,null,null,null,null,null,null,null,null,null,null,null,null,"","","","",null,"","","",null,"","",null,"",null,null,"",null,null,"","","","","","",null,null,null,null,null,null,null,null,null,null,null,null,null,null,null,null,null,null,null,null,null,null,null,null,null,null,null,null,null,null,null,null,"","","",null,null,null,null,null,null,null,null,null,null,null,null,null,"","","",null,null,"","","",null,null,null,"","","","","",null,null,null,null,null,null,null,null,""]
[null,null,null,null,null,null,null,null,null,null,null,null,null,null,null,null,null,"","","","",null,"","","",null,"","",null,"",null,null,"",null,null,"","","","","","",null,null,null,null,null,null,null,null,null,null,null,null,null,null,null,null,null,null,null,null,null,null,null,null,null,null,null,null,null,null,null,null,"","","",null,null,null,null,null,null,null,null,null,null,null,null,null,"","","",null,null,"","","",null,null,null,"","","","","",null,null,null,null,null,null,null,null,""]
[null,null,null,null,null,null,null,null,null,null,null,null,null,null,null,null,null,"","","","",null,"","","",null,"","",null,"",null,null,"",null,null,"","","","","","",null,null,null,null,null,null,null,null,null,null,null,null,null,null,null,null,null,null,null,null,null,null,null,null,null,null,null,null,null,null,null,null,"","","",null,null,null,null,null,null,null,null,null,null,null,null,null,"","","",null,null,"","","",null,null,null,"","","","","",null,null,null,null,null,null,null,null,""]
[null,null,null,null,null,null,null,null,null,null,null,null,null,null,null,null,null,"","","","",null,"","","",null,"","",null,"",null,null,"",null,null,"","","","","","",null,null,null,null,null,null,null,null,null,null,null,null,null,null,null,null,null,null,null,null,null,null,null,null,null,null,null,null,null,null,null,null,"","","",null,null,null,null,null,null,null,null,null,null,null,null,null,"","","",null,null,"","","",null,null,null,"","","","","",null,null,null,null,null,null,null,null,""]
[null,null,null,null,null,null,null,null,null,null,null,null,null,null,null,null,null,"","","","",null,"","","",null,"","",null,"",null,null,"",null,null,"","","","","","",null,null,null,null,null,null,null,null,null,null,null,null,null,null,null,null,null,null,null,null,null,null,null,null,null,null,null,null,null,null,null,null,"","","",null,null,null,null,null,null,null,null,null,null,null,null,null,"","","",null,null,"","","",null,null,null,"","","","","",null,null,null,null,null,null,null,null,""]
[null,null,null,null,null,null,null,null,null,null,null,null,null,null,null,null,null,"","","","",null,"","","",null,"","",null,"",null,null,"",null,null,"","","","","","",null,null,null,null,null,null,null,null,null,null,null,null,null,null,null,null,null,null,null,null,null,null,null,null,null,null,null,null,null,null,null,null,"","","",null,null,null,null,null,null,null,null,null,null,null,null,null,"","","",null,null,"","","",null,null,null,"","","","","",null,null,null,null,null,null,null,null,""]
[null,null,null,null,null,null,null,null,null,null,null,null,null,null,null,null,null,"","","","",null,"","","",null,"","",null,"",null,null,"",null,null,"","","","","","",null,null,null,null,null,null,null,null,null,null,null,null,null,null,null,null,null,null,null,null,null,null,null,null,null,null,null,null,null,null,null,null,"","","",null,null,null,null,null,null,null,null,null,null,null,null,null,"","","",null,null,"","","",null,null,null,"","","","","",null,null,null,null,null,null,null,null,""]
[null,null,null,null,null,null,null,null,null,null,null,null,null,null,null,null,null,"","","","",null,"","","",null,"","",null,"",null,null,"",null,null,"","","","","","",null,null,null,null,null,null,null,null,null,null,null,null,null,null,null,null,null,null,null,null,null,null,null,null,null,null,null,null,null,null,null,null,"","","",null,null,null,null,null,null,null,null,null,null,null,null,null,"","","",null,null,"","","",null,null,null,"","","","","",null,null,null,null,null,null,null,null,""]
[null,null,null,null,null,null,null,null,null,null,null,null,null,null,null,null,null,"","","","",null,"","","",null,"","",null,"",null,null,"",null,null,"","","","","","",null,null,null,null,null,null,null,null,null,null,null,null,null,null,null,null,null,null,null,null,null,null,null,null,null,null,null,null,null,null,null,null,"","","",null,null,null,null,null,null,null,null,null,null,null,null,null,"","","",null,null,"","","",null,null,null,"","","","","",null,null,null,null,null,null,null,null,""]
[null,null,null,null,null,null,null,null,null,null,null,null,null,null,null,null,null,"","","","",null,"","","",null,"","",null,"",null,null,"",null,null,"","","","","","",null,null,null,null,null,null,null,null,null,null,null,null,null,null,null,null,null,null,null,null,null,null,null,null,null,null,null,null,null,null,null,null,"","","",null,null,null,null,null,null,null,null,null,null,null,null,null,"","","",null,null,"","","",null,null,null,"","","","","",null,null,null,null,null,null,null,null,""]
[null,null,null,null,null,null,null,null,null,null,null,null,null,null,null,null,null,"","","","",null,"","","",null,"","",null,"",null,null,"",null,null,"","","","","","",null,null,null,null,null,null,null,null,null,null,null,null,null,null,null,null,null,null,null,null,null,null,null,null,null,null,null,null,null,null,null,null,"","","",null,null,null,null,null,null,null,null,null,null,null,null,null,"","","",null,null,"","","",null,null,null,"","","","","",null,null,null,null,null,null,null,null,""]
[null,null,null,null,null,null,null,null,null,null,null,null,null,null,null,null,null,"","","","",null,"","","",null,"","",null,"",null,null,"",null,null,"","","","","","",null,null,null,null,null,null,null,null,null,null,null,null,null,null,null,null,null,null,null,null,null,null,null,null,null,null,null,null,null,null,null,null,"","","",null,null,null,null,null,null,null,null,null,null,null,null,null,"","","",null,null,"","","",null,null,null,"","","","","",null,null,null,null,null,null,null,null,""]
[null,null,null,null,null,null,null,null,null,null,null,null,null,null,null,null,null,"","","","",null,"","","",null,"","",null,"",null,null,"",null,null,"","","","","","",null,null,null,null,null,null,null,null,null,null,null,null,null,null,null,null,null,null,null,null,null,null,null,null,null,null,null,null,null,null,null,null,"","","",null,null,null,null,null,null,null,null,null,null,null,null,null,"","","",null,null,"","","",null,null,null,"","","","","",null,null,null,null,null,null,null,null,""]
[null,null,null,null,null,null,null,null,null,null,null,null,null,null,null,null,null,"","","","",null,"","","",null,"","",null,"",null,null,"",null,null,"","","","","","",null,null,null,null,null,null,null,null,null,null,null,null,null,null,null,null,null,null,null,null,null,null,null,null,null,null,null,null,null,null,null,null,"","","",null,null,null,null,null,null,null,null,null,null,null,null,null,"","","",null,null,"","","",null,null,null,"","","","","",null,null,null,null,null,null,null,null,""]
[null,null,null,null,null,null,null,null,null,null,null,null,null,null,null,null,null,"","","","",null,"","","",null,"","",null,"",null,null,"",null,null,"","","","","","",null,null,null,null,null,null,null,null,null,null,null,null,null,null,null,null,null,null,null,null,null,null,null,null,null,null,null,null,null,null,null,null,"","","",null,null,null,null,null,null,null,null,null,null,null,null,null,"","","",null,null,"","","",null,null,null,"","","","","",null,null,null,null,null,null,null,null,""]
[null,null,null,null,null,null,null,null,null,null,null,null,null,null,null,null,null,"","","","",null,"","","",null,"","",null,"",null,null,"",null,null,"","","","","","",null,null,null,null,null,null,null,null,null,null,null,null,null,null,null,null,null,null,null,null,null,null,null,null,null,null,null,null,null,null,null,null,"","","",null,null,null,null,null,null,null,null,null,null,null,null,null,"","","",null,null,"","","",null,null,null,"","","","","",null,null,null,null,null,null,null,null,""]
[null,null,null,null,null,null,null,null,null,null,null,null,null,null,null,null,null,"","","","",null,"","","",null,"","",null,"",null,null,"",null,null,"","","","","","",null,null,null,null,null,null,null,null,null,null,null,null,null,null,null,null,null,null,null,null,null,null,null,null,null,null,null,null,null,null,null,null,"","","",null,null,null,null,null,null,null,null,null,null,null,null,null,"","","",null,null,"","","",null,null,null,"","","","","",null,null,null,null,null,null,null,null,""]
[null,null,null,null,null,null,null,null,null,null,null,null,null,null,null,null,null,"","","","",null,"","","",null,"","",null,"",null,null,"",null,null,"","","","","","",null,null,null,null,null,null,null,null,null,null,null,null,null,null,null,null,null,null,null,null,null,null,null,null,null,null,null,null,null,null,null,null,"","","",null,null,null,null,null,null,null,null,null,null,null,null,null,"","","",null,null,"","","",null,null,null,"","","","","",null,null,null,null,null,null,null,null,""]
[null,null,null,null,null,null,null,null,null,null,null,null,null,null,null,null,null,"","","","",null,"","","",null,"","",null,"",null,null,"",null,null,"","","","","","",null,null,null,null,null,null,null,null,null,null,null,null,null,null,null,null,null,null,null,null,null,null,null,null,null,null,null,null,null,null,null,null,"","","",null,null,null,null,null,null,null,null,null,null,null,null,null,"","","",null,null,"","","",null,null,null,"","","","","",null,null,null,null,null,null,null,null,""]
[null,null,null,null,null,null,null,null,null,null,null,null,null,null,null,null,null,"","","","",null,"","","",null,"","",null,"",null,null,"",null,null,"","","","","","",null,null,null,null,null,null,null,null,null,null,null,null,null,null,null,null,null,null,null,null,null,null,null,null,null,null,null,null,null,null,null,null,"","","",null,null,null,null,null,null,null,null,null,null,null,null,null,"","","",null,null,"","","",null,null,null,"","","","","",null,null,null,null,null,null,null,null,""]
[null,null,null,null,null,null,null,null,null,null,null,null,null,null,null,null,null,"","","","",null,"","","",null,"","",null,"",null,null,"",null,null,"","","","","","",null,null,null,null,null,null,null,null,null,null,null,null,null,null,null,null,null,null,null,null,null,null,null,null,null,null,null,null,null,null,null,null,"","","",null,null,null,null,null,null,null,null,null,null,null,null,null,"","","",null,null,"","","",null,null,null,"","","","","",null,null,null,null,null,null,null,null,""]
[null,null,null,null,null,null,null,null,null,null,null,null,null,null,null,null,null,"","","","",null,"","","",null,"","",null,"",null,null,"",null,null,"","","","","","",null,null,null,null,null,null,null,null,null,null,null,null,null,null,null,null,null,null,null,null,null,null,null,null,null,null,null,null,null,null,null,null,"","","",null,null,null,null,null,null,null,null,null,null,null,null,null,"","","",null,null,"","","",null,null,null,"","","","","",null,null,null,null,null,null,null,null,""]
[null,null,null,null,null,null,null,null,null,null,null,null,null,null,null,null,null,"","","","",null,"","","",null,"","",null,"",null,null,"",null,null,"","","","","","",null,null,null,null,null,null,null,null,null,null,null,null,null,null,null,null,null,null,null,null,null,null,null,null,null,null,null,null,null,null,null,null,"","","",null,null,null,null,null,null,null,null,null,null,null,null,null,"","","",null,null,"","","",null,null,null,"","","","","",null,null,null,null,null,null,null,null,""]
[null,null,null,null,null,null,null,null,null,null,null,null,null,null,null,null,null,"","","","",null,"","","",null,"","",null,"",null,null,"",null,null,"","","","","","",null,null,null,null,null,null,null,null,null,null,null,null,null,null,null,null,null,null,null,null,null,null,null,null,null,null,null,null,null,null,null,null,"","","",null,null,null,null,null,null,null,null,null,null,null,null,null,"","","",null,null,"","","",null,null,null,"","","","","",null,null,null,null,null,null,null,null,""]
[null,null,null,null,null,null,null,null,null,null,null,null,null,null,null,null,null,"","","","",null,"","","",null,"","",null,"",null,null,"",null,null,"","","","","","",null,null,null,null,null,null,null,null,null,null,null,null,null,null,null,null,null,null,null,null,null,null,null,null,null,null,null,null,null,null,null,null,"","","",null,null,null,null,null,null,null,null,null,null,null,null,null,"","","",null,null,"","","",null,null,null,"","","","","",null,null,null,null,null,null,null,null,""]
[null,null,null,null,null,null,null,null,null,null,null,null,null,null,null,null,null,"","","","",null,"","","",null,"","",null,"",null,null,"",null,null,"","","","","","",null,null,null,null,null,null,null,null,null,null,null,null,null,null,null,null,null,null,null,null,null,null,null,null,null,null,null,null,null,null,null,null,"","","",null,null,null,null,null,null,null,null,null,null,null,null,null,"","","",null,null,"","","",null,null,null,"","","","","",null,null,null,null,null,null,null,null,""]
[null,null,null,null,null,null,null,null,null,null,null,null,null,null,null,null,null,"","","","",null,"","","",null,"","",null,"",null,null,"",null,null,"","","","","","",null,null,null,null,null,null,null,null,null,null,null,null,null,null,null,null,null,null,null,null,null,null,null,null,null,null,null,null,null,null,null,null,"","","",null,null,null,null,null,null,null,null,null,null,null,null,null,"","","",null,null,"","","",null,null,null,"","","","","",null,null,null,null,null,null,null,null,""]
[null,null,null,null,null,null,null,null,null,null,null,null,null,null,null,null,null,"","","","",null,"","","",null,"","",null,"",null,null,"",null,null,"","","","","","",null,null,null,null,null,null,null,null,null,null,null,null,null,null,null,null,null,null,null,null,null,null,null,null,null,null,null,null,null,null,null,null,"","","",null,null,null,null,null,null,null,null,null,null,null,null,null,"","","",null,null,"","","",null,null,null,"","","","","",null,null,null,null,null,null,null,null,""]
[null,null,null,null,null,null,null,null,null,null,null,null,null,null,null,null,null,"","","","",null,"","","",null,"","",null,"",null,null,"",null,null,"","","","","","",null,null,null,null,null,null,null,null,null,null,null,null,null,null,null,null,null,null,null,null,null,null,null,null,null,null,null,null,null,null,null,null,"","","",null,null,null,null,null,null,null,null,null,null,null,null,null,"","","",null,null,"","","",null,null,null,"","","","","",null,null,null,null,null,null,null,null,""]
[null,null,null,null,null,null,null,null,null,null,null,null,null,null,null,null,null,"","","","",null,"","","",null,"","",null,"",null,null,"",null,null,"","","","","","",null,null,null,null,null,null,null,null,null,null,null,null,null,null,null,null,null,null,null,null,null,null,null,null,null,null,null,null,null,null,null,null,"","","",null,null,null,null,null,null,null,null,null,null,null,null,null,"","","",null,null,"","","",null,null,null,"","","","","",null,null,null,null,null,null,null,null,""]
[null,null,null,null,null,null,null,null,null,null,null,null,null,null,null,null,null,"","","","",null,"","","",null,"","",null,"",null,null,"",null,null,"","","","","","",null,null,null,null,null,null,null,null,null,null,null,null,null,null,null,null,null,null,null,null,null,null,null,null,null,null,null,null,null,null,null,null,"","","",null,null,null,null,null,null,null,null,null,null,null,null,null,"","","",null,null,"","","",null,null,null,"","","","","",null,null,null,null,null,null,null,null,""]
[null,null,null,null,null,null,null,null,null,null,null,null,null,null,null,null,null,"","","","",null,"","","",null,"","",null,"",null,null,"",null,null,"","","","","","",null,null,null,null,null,null,null,null,null,null,null,null,null,null,null,null,null,null,null,null,null,null,null,null,null,null,null,null,null,null,null,null,"","","",null,null,null,null,null,null,null,null,null,null,null,null,null,"","","",null,null,"","","",null,null,null,"","","","","",null,null,null,null,null,null,null,null,""]
[null,null,null,null,null,null,null,null,null,null,null,null,null,null,null,null,null,"","","","",null,"","","",null,"","",null,"",null,null,"",null,null,"","","","","","",null,null,null,null,null,null,null,null,null,null,null,null,null,null,null,null,null,null,null,null,null,null,null,null,null,null,null,null,null,null,null,null,"","","",null,null,null,null,null,null,null,null,null,null,null,null,null,"","","",null,null,"","","",null,null,null,"","","","","",null,null,null,null,null,null,null,null,""]
[null,null,null,null,null,null,null,null,null,null,null,null,null,null,null,null,null,"","","","",null,"","","",null,"","",null,"",null,null,"",null,null,"","","","","","",null,null,null,null,null,null,null,null,null,null,null,null,null,null,null,null,null,null,null,null,null,null,null,null,null,null,null,null,null,null,null,null,"","","",null,null,null,null,null,null,null,null,null,null,null,null,null,"","","",null,null,"","","",null,null,null,"","","","","",null,null,null,null,null,null,null,null,""]
[null,null,null,null,null,null,null,null,null,null,null,null,null,null,null,null,null,"","","","",null,"","","",null,"","",null,"",null,null,"",null,null,"","","","","","",null,null,null,null,null,null,null,null,null,null,null,null,null,null,null,null,null,null,null,null,null,null,null,null,null,null,null,null,null,null,null,null,"","","",null,null,null,null,null,null,null,null,null,null,null,null,null,"","","",null,null,"","","",null,null,null,"","","","","",null,null,null,null,null,null,null,null,""]
[null,null,null,null,null,null,null,null,null,null,null,null,null,null,null,null,null,"","","","",null,"","","",null,"","",null,"",null,null,"",null,null,"","","","","","",null,null,null,null,null,null,null,null,null,null,null,null,null,null,null,null,null,null,null,null,null,null,null,null,null,null,null,null,null,null,null,null,"","","",null,null,null,null,null,null,null,null,null,null,null,null,null,"","","",null,null,"","","",null,null,null,"","","","","",null,null,null,null,null,null,null,null,""]
[null,null,null,null,null,null,null,null,null,null,null,null,null,null,null,null,null,"","","","",null,"","","",null,"","",null,"",null,null,"",null,null,"","","","","","",null,null,null,null,null,null,null,null,null,null,null,null,null,null,null,null,null,null,null,null,null,null,null,null,null,null,null,null,null,null,null,null,"","","",null,null,null,null,null,null,null,null,null,null,null,null,null,"","","",null,null,"","","",null,null,null,"","","","","",null,null,null,null,null,null,null,null,""]
[null,null,null,null,null,null,null,null,null,null,null,null,null,null,null,null,null,"","","","",null,"","","",null,"","",null,"",null,null,"",null,null,"","","","","","",null,null,null,null,null,null,null,null,null,null,null,null,null,null,null,null,null,null,null,null,null,null,null,null,null,null,null,null,null,null,null,null,"","","",null,null,null,null,null,null,null,null,null,null,null,null,null,"","","",null,null,"","","",null,null,null,"","","","","",null,null,null,null,null,null,null,null,""]
[null,null,null,null,null,null,null,null,null,null,null,null,null,null,null,null,null,"","","","",null,"","","",null,"","",null,"",null,null,"",null,null,"","","","","","",null,null,null,null,null,null,null,null,null,null,null,null,null,null,null,null,null,null,null,null,null,null,null,null,null,null,null,null,null,null,null,null,"","","",null,null,null,null,null,null,null,null,null,null,null,null,null,"","","",null,null,"","","",null,null,null,"","","","","",null,null,null,null,null,null,null,null,""]
[null,null,null,null,null,null,null,null,null,null,null,null,null,null,null,null,null,"","","","",null,"","","",null,"","",null,"",null,null,"",null,null,"","","","","","",null,null,null,null,null,null,null,null,null,null,null,null,null,null,null,null,null,null,null,null,null,null,null,null,null,null,null,null,null,null,null,null,"","","",null,null,null,null,null,null,null,null,null,null,null,null,null,"","","",null,null,"","","",null,null,null,"","","","","",null,null,null,null,null,null,null,null,""]
[null,null,null,null,null,null,null,null,null,null,null,null,null,null,null,null,null,"","","","",null,"","","",null,"","",null,"",null,null,"",null,null,"","","","","","",null,null,null,null,null,null,null,null,null,null,null,null,null,null,null,null,null,null,null,null,null,null,null,null,null,null,null,null,null,null,null,null,"","","",null,null,null,null,null,null,null,null,null,null,null,null,null,"","","",null,null,"","","",null,null,null,"","","","","",null,null,null,null,null,null,null,null,""]
[null,null,null,null,null,null,null,null,null,null,null,null,null,null,null,null,null,"","","","",null,"","","",null,"","",null,"",null,null,"",null,null,"","","","","","",null,null,null,null,null,null,null,null,null,null,null,null,null,null,null,null,null,null,null,null,null,null,null,null,null,null,null,null,null,null,null,null,"","","",null,null,null,null,null,null,null,null,null,null,null,null,null,"","","",null,null,"","","",null,null,null,"","","","","",null,null,null,null,null,null,null,null,""]
[null,null,null,null,null,null,null,null,null,null,null,null,null,null,null,null,null,"","","","",null,"","","",null,"","",null,"",null,null,"",null,null,"","","","","","",null,null,null,null,null,null,null,null,null,null,null,null,null,null,null,null,null,null,null,null,null,null,null,null,null,null,null,null,null,null,null,null,"","","",null,null,null,null,null,null,null,null,null,null,null,null,null,"","","",null,null,"","","",null,null,null,"","","","","",null,null,null,null,null,null,null,null,""]
[null,null,null,null,null,null,null,null,null,null,null,null,null,null,null,null,null,"","","","",null,"","","",null,"","",null,"",null,null,"",null,null,"","","","","","",null,null,null,null,null,null,null,null,null,null,null,null,null,null,null,null,null,null,null,null,null,null,null,null,null,null,null,null,null,null,null,null,"","","",null,null,null,null,null,null,null,null,null,null,null,null,null,"","","",null,null,"","","",null,null,null,"","","","","",null,null,null,null,null,null,null,null,""]
[null,null,null,null,null,null,null,null,null,null,null,null,null,null,null,null,null,"","","","",null,"","","",null,"","",null,"",null,null,"",null,null,"","","","","","",null,null,null,null,null,null,null,null,null,null,null,null,null,null,null,null,null,null,null,null,null,null,null,null,null,null,null,null,null,null,null,null,"","","",null,null,null,null,null,null,null,null,null,null,null,null,null,"","","",null,null,"","","",null,null,null,"","","","","",null,null,null,null,null,null,null,null,""]
[null,null,null,null,null,null,null,null,null,null,null,null,null,null,null,null,null,"","","","",null,"","","",null,"","",null,"",null,null,"",null,null,"","","","","","",null,null,null,null,null,null,null,null,null,null,null,null,null,null,null,null,null,null,null,null,null,null,null,null,null,null,null,null,null,null,null,null,"","","",null,null,null,null,null,null,null,null,null,null,null,null,null,"","","",null,null,"","","",null,null,null,"","","","","",null,null,null,null,null,null,null,null,""]
[null,null,null,null,null,null,null,null,null,null,null,null,null,null,null,null,null,"","","","",null,"","","",null,"","",null,"",null,null,"",null,null,"","","","","","",null,null,null,null,null,null,null,null,null,null,null,null,null,null,null,null,null,null,null,null,null,null,null,null,null,null,null,null,null,null,null,null,"","","",null,null,null,null,null,null,null,null,null,null,null,null,null,"","","",null,null,"","","",null,null,null,"","","","","",null,null,null,null,null,null,null,null,""]
[null,null,null,null,null,null,null,null,null,null,null,null,null,null,null,null,null,"","","","",null,"","","",null,"","",null,"",null,null,"",null,null,"","","","","","",null,null,null,null,null,null,null,null,null,null,null,null,null,null,null,null,null,null,null,null,null,null,null,null,null,null,null,null,null,null,null,null,"","","",null,null,null,null,null,null,null,null,null,null,null,null,null,"","","",null,null,"","","",null,null,null,"","","","","",null,null,null,null,null,null,null,null,""]
[null,null,null,null,null,null,null,null,null,null,null,null,null,null,null,null,null,"","","","",null,"","","",null,"","",null,"",null,null,"",null,null,"","","","","","",null,null,null,null,null,null,null,null,null,null,null,null,null,null,null,null,null,null,null,null,null,null,null,null,null,null,null,null,null,null,null,null,"","","",null,null,null,null,null,null,null,null,null,null,null,null,null,"","","",null,null,"","","",null,null,null,"","","","","",null,null,null,null,null,null,null,null,""]
[null,null,null,null,null,null,null,null,null,null,null,null,null,null,null,null,null,"","","","",null,"","","",null,"","",null,"",null,null,"",null,null,"","","","","","",null,null,null,null,null,null,null,null,null,null,null,null,null,null,null,null,null,null,null,null,null,null,null,null,null,null,null,null,null,null,null,null,"","","",null,null,null,null,null,null,null,null,null,null,null,null,null,"","","",null,null,"","","",null,null,null,"","","","","",null,null,null,null,null,null,null,null,""]
[null,null,null,null,null,null,null,null,null,null,null,null,null,null,null,null,null,"","","","",null,"","","",null,"","",null,"",null,null,"",null,null,"","","","","","",null,null,null,null,null,null,null,null,null,null,null,null,null,null,null,null,null,null,null,null,null,null,null,null,null,null,null,null,null,null,null,null,"","","",null,null,null,null,null,null,null,null,null,null,null,null,null,"","","",null,null,"","","",null,null,null,"","","","","",null,null,null,null,null,null,null,null,""]
[null,null,null,null,null,null,null,null,null,null,null,null,null,null,null,null,null,"","","","",null,"","","",null,"","",null,"",null,null,"",null,null,"","","","","","",null,null,null,null,null,null,null,null,null,null,null,null,null,null,null,null,null,null,null,null,null,null,null,null,null,null,null,null,null,null,null,null,"","","",null,null,null,null,null,null,null,null,null,null,null,null,null,"","","",null,null,"","","",null,null,null,"","","","","",null,null,null,null,null,null,null,null,""]
[null,null,null,null,null,null,null,null,null,null,null,null,null,null,null,null,null,"","","","",null,"","","",null,"","",null,"",null,null,"",null,null,"","","","","","",null,null,null,null,null,null,null,null,null,null,null,null,null,null,null,null,null,null,null,null,null,null,null,null,null,null,null,null,null,null,null,null,"","","",null,null,null,null,null,null,null,null,null,null,null,null,null,"","","",null,null,"","","",null,null,null,"","","","","",null,null,null,null,null,null,null,null,""]
[null,null,null,null,null,null,null,null,null,null,null,null,null,null,null,null,null,"","","","",null,"","","",null,"","",null,"",null,null,"",null,null,"","","","","","",null,null,null,null,null,null,null,null,null,null,null,null,null,null,null,null,null,null,null,null,null,null,null,null,null,null,null,null,null,null,null,null,"","","",null,null,null,null,null,null,null,null,null,null,null,null,null,"","","",null,null,"","","",null,null,null,"","","","","",null,null,null,null,null,null,null,null,""]
[null,null,null,null,null,null,null,null,null,null,null,null,null,null,null,null,null,"","","","",null,"","","",null,"","",null,"",null,null,"",null,null,"","","","","","",null,null,null,null,null,null,null,null,null,null,null,null,null,null,null,null,null,null,null,null,null,null,null,null,null,null,null,null,null,null,null,null,"","","",null,null,null,null,null,null,null,null,null,null,null,null,null,"","","",null,null,"","","",null,null,null,"","","","","",null,null,null,null,null,null,null,null,""]
[null,null,null,null,null,null,null,null,null,null,null,null,null,null,null,null,null,"","","","",null,"","","",null,"","",null,"",null,null,"",null,null,"","","","","","",null,null,null,null,null,null,null,null,null,null,null,null,null,null,null,null,null,null,null,null,null,null,null,null,null,null,null,null,null,null,null,null,"","","",null,null,null,null,null,null,null,null,null,null,null,null,null,"","","",null,null,"","","",null,null,null,"","","","","",null,null,null,null,null,null,null,null,""]
[null,null,null,null,null,null,null,null,null,null,null,null,null,null,null,null,null,"","","","",null,"","","",null,"","",null,"",null,null,"",null,null,"","","","","","",null,null,null,null,null,null,null,null,null,null,null,null,null,null,null,null,null,null,null,null,null,null,null,null,null,null,null,null,null,null,null,null,"","","",null,null,null,null,null,null,null,null,null,null,null,null,null,"","","",null,null,"","","",null,null,null,"","","","","",null,null,null,null,null,null,null,null,""]
[null,null,null,null,null,null,null,null,null,null,null,null,null,null,null,null,null,"","","","",null,"","","",null,"","",null,"",null,null,"",null,null,"","","","","","",null,null,null,null,null,null,null,null,null,null,null,null,null,null,null,null,null,null,null,null,null,null,null,null,null,null,null,null,null,null,null,null,"","","",null,null,null,null,null,null,null,null,null,null,null,null,null,"","","",null,null,"","","",null,null,null,"","","","","",null,null,null,null,null,null,null,null,""]
[null,null,null,null,null,null,null,null,null,null,null,null,null,null,null,null,null,"","","","",null,"","","",null,"","",null,"",null,null,"",null,null,"","","","","","",null,null,null,null,null,null,null,null,null,null,null,null,null,null,null,null,null,null,null,null,null,null,null,null,null,null,null,null,null,null,null,null,"","","",null,null,null,null,null,null,null,null,null,null,null,null,null,"","","",null,null,"","","",null,null,null,"","","","","",null,null,null,null,null,null,null,null,""]
[null,null,null,null,null,null,null,null,null,null,null,null,null,null,null,null,null,"","","","",null,"","","",null,"","",null,"",null,null,"",null,null,"","","","","","",null,null,null,null,null,null,null,null,null,null,null,null,null,null,null,null,null,null,null,null,null,null,null,null,null,null,null,null,null,null,null,null,"","","",null,null,null,null,null,null,null,null,null,null,null,null,null,"","","",null,null,"","","",null,null,null,"","","","","",null,null,null,null,null,null,null,null,""]
[null,null,null,null,null,null,null,null,null,null,null,null,null,null,null,null,null,"","","","",null,"","","",null,"","",null,"",null,null,"",null,null,"","","","","","",null,null,null,null,null,null,null,null,null,null,null,null,null,null,null,null,null,null,null,null,null,null,null,null,null,null,null,null,null,null,null,null,"","","",null,null,null,null,null,null,null,null,null,null,null,null,null,"","","",null,null,"","","",null,null,null,"","","","","",null,null,null,null,null,null,null,null,""]
[null,null,null,null,null,null,null,null,null,null,null,null,null,null,null,null,null,"","","","",null,"","","",null,"","",null,"",null,null,"",null,null,"","","","","","",null,null,null,null,null,null,null,null,null,null,null,null,null,null,null,null,null,null,null,null,null,null,null,null,null,null,null,null,null,null,null,null,"","","",null,null,null,null,null,null,null,null,null,null,null,null,null,"","","",null,null,"","","",null,null,null,"","","","","",null,null,null,null,null,null,null,null,""]
[null,null,null,null,null,null,null,null,null,null,null,null,null,null,null,null,null,"","","","",null,"","","",null,"","",null,"",null,null,"",null,null,"","","","","","",null,null,null,null,null,null,null,null,null,null,null,null,null,null,null,null,null,null,null,null,null,null,null,null,null,null,null,null,null,null,null,null,"","","",null,null,null,null,null,null,null,null,null,null,null,null,null,"","","",null,null,"","","",null,null,null,"","","","","",null,null,null,null,null,null,null,null,""]
[null,null,null,null,null,null,null,null,null,null,null,null,null,null,null,null,null,"","","","",null,"","","",null,"","",null,"",null,null,"",null,null,"","","","","","",null,null,null,null,null,null,null,null,null,null,null,null,null,null,null,null,null,null,null,null,null,null,null,null,null,null,null,null,null,null,null,null,"","","",null,null,null,null,null,null,null,null,null,null,null,null,null,"","","",null,null,"","","",null,null,null,"","","","","",null,null,null,null,null,null,null,null,""]
[null,null,null,null,null,null,null,null,null,null,null,null,null,null,null,null,null,"","","","",null,"","","",null,"","",null,"",null,null,"",null,null,"","","","","","",null,null,null,null,null,null,null,null,null,null,null,null,null,null,null,null,null,null,null,null,null,null,null,null,null,null,null,null,null,null,null,null,"","","",null,null,null,null,null,null,null,null,null,null,null,null,null,"","","",null,null,"","","",null,null,null,"","","","","",null,null,null,null,null,null,null,null,""]
[null,null,null,null,null,null,null,null,null,null,null,null,null,null,null,null,null,"","","","",null,"","","",null,"","",null,"",null,null,"",null,null,"","","","","","",null,null,null,null,null,null,null,null,null,null,null,null,null,null,null,null,null,null,null,null,null,null,null,null,null,null,null,null,null,null,null,null,"","","",null,null,null,null,null,null,null,null,null,null,null,null,null,"","","",null,null,"","","",null,null,null,"","","","","",null,null,null,null,null,null,null,null,""]
[null,null,null,null,null,null,null,null,null,null,null,null,null,null,null,null,null,"","","","",null,"","","",null,"","",null,"",null,null,"",null,null,"","","","","","",null,null,null,null,null,null,null,null,null,null,null,null,null,null,null,null,null,null,null,null,null,null,null,null,null,null,null,null,null,null,null,null,"","","",null,null,null,null,null,null,null,null,null,null,null,null,null,"","","",null,null,"","","",null,null,null,"","","","","",null,null,null,null,null,null,null,null,""]
[null,null,null,null,null,null,null,null,null,null,null,null,null,null,null,null,null,"","","","",null,"","","",null,"","",null,"",null,null,"",null,null,"","","","","","",null,null,null,null,null,null,null,null,null,null,null,null,null,null,null,null,null,null,null,null,null,null,null,null,null,null,null,null,null,null,null,null,"","","",null,null,null,null,null,null,null,null,null,null,null,null,null,"","","",null,null,"","","",null,null,null,"","","","","",null,null,null,null,null,null,null,null,""]
[null,null,null,null,null,null,null,null,null,null,null,null,null,null,null,null,null,"","","","",null,"","","",null,"","",null,"",null,null,"",null,null,"","","","","","",null,null,null,null,null,null,null,null,null,null,null,null,null,null,null,null,null,null,null,null,null,null,null,null,null,null,null,null,null,null,null,null,"","","",null,null,null,null,null,null,null,null,null,null,null,null,null,"","","",null,null,"","","",null,null,null,"","","","","",null,null,null,null,null,null,null,null,""]
[null,null,null,null,null,null,null,null,null,null,null,null,null,null,null,null,null,"","","","",null,"","","",null,"","",null,"",null,null,"",null,null,"","","","","","",null,null,null,null,null,null,null,null,null,null,null,null,null,null,null,null,null,null,null,null,null,null,null,null,null,null,null,null,null,null,null,null,"","","",null,null,null,null,null,null,null,null,null,null,null,null,null,"","","",null,null,"","","",null,null,null,"","","","","",null,null,null,null,null,null,null,null,""]
[null,null,null,null,null,null,null,null,null,null,null,null,null,null,null,null,null,"","","","",null,"","","",null,"","",null,"",null,null,"",null,null,"","","","","","",null,null,null,null,null,null,null,null,null,null,null,null,null,null,null,null,null,null,null,null,null,null,null,null,null,null,null,null,null,null,null,null,"","","",null,null,null,null,null,null,null,null,null,null,null,null,null,"","","",null,null,"","","",null,null,null,"","","","","",null,null,null,null,null,null,null,null,""]
[null,null,null,null,null,null,null,null,null,null,null,null,null,null,null,null,null,"","","","",null,"","","",null,"","",null,"",null,null,"",null,null,"","","","","","",null,null,null,null,null,null,null,null,null,null,null,null,null,null,null,null,null,null,null,null,null,null,null,null,null,null,null,null,null,null,null,null,"","","",null,null,null,null,null,null,null,null,null,null,null,null,null,"","","",null,null,"","","",null,null,null,"","","","","",null,null,null,null,null,null,null,null,""]
[null,null,null,null,null,null,null,null,null,null,null,null,null,null,null,null,null,"","","","",null,"","","",null,"","",null,"",null,null,"",null,null,"","","","","","",null,null,null,null,null,null,null,null,null,null,null,null,null,null,null,null,null,null,null,null,null,null,null,null,null,null,null,null,null,null,null,null,"","","",null,null,null,null,null,null,null,null,null,null,null,null,null,"","","",null,null,"","","",null,null,null,"","","","","",null,null,null,null,null,null,null,null,""]
[null,null,null,null,null,null,null,null,null,null,null,null,null,null,null,null,null,"","","","",null,"","","",null,"","",null,"",null,null,"",null,null,"","","","","","",null,null,null,null,null,null,null,null,null,null,null,null,null,null,null,null,null,null,null,null,null,null,null,null,null,null,null,null,null,null,null,null,"","","",null,null,null,null,null,null,null,null,null,null,null,null,null,"","","",null,null,"","","",null,null,null,"","","","","",null,null,null,null,null,null,null,null,""]
[null,null,null,null,null,null,null,null,null,null,null,null,null,null,null,null,null,"","","","",null,"","","",null,"","",null,"",null,null,"",null,null,"","","","","","",null,null,null,null,null,null,null,null,null,null,null,null,null,null,null,null,null,null,null,null,null,null,null,null,null,null,null,null,null,null,null,null,"","","",null,null,null,null,null,null,null,null,null,null,null,null,null,"","","",null,null,"","","",null,null,null,"","","","","",null,null,null,null,null,null,null,null,""]
[null,null,null,null,null,null,null,null,null,null,null,null,null,null,null,null,null,"","","","",null,"","","",null,"","",null,"",null,null,"",null,null,"","","","","","",null,null,null,null,null,null,null,null,null,null,null,null,null,null,null,null,null,null,null,null,null,null,null,null,null,null,null,null,null,null,null,null,"","","",null,null,null,null,null,null,null,null,null,null,null,null,null,"","","",null,null,"","","",null,null,null,"","","","","",null,null,null,null,null,null,null,null,""]
[null,null,null,null,null,null,null,null,null,null,null,null,null,null,null,null,null,"","","","",null,"","","",null,"","",null,"",null,null,"",null,null,"","","","","","",null,null,null,null,null,null,null,null,null,null,null,null,null,null,null,null,null,null,null,null,null,null,null,null,null,null,null,null,null,null,null,null,"","","",null,null,null,null,null,null,null,null,null,null,null,null,null,"","","",null,null,"","","",null,null,null,"","","","","",null,null,null,null,null,null,null,null,""]
[null,null,null,null,null,null,null,null,null,null,null,null,null,null,null,null,null,"","","","",null,"","","",null,"","",null,"",null,null,"",null,null,"","","","","","",null,null,null,null,null,null,null,null,null,null,null,null,null,null,null,null,null,null,null,null,null,null,null,null,null,null,null,null,null,null,null,null,"","","",null,null,null,null,null,null,null,null,null,null,null,null,null,"","","",null,null,"","","",null,null,null,"","","","","",null,null,null,null,null,null,null,null,""]
[null,null,null,null,null,null,null,null,null,null,null,null,null,null,null,null,null,"","","","",null,"","","",null,"","",null,"",null,null,"",null,null,"","","","","","",null,null,null,null,null,null,null,null,null,null,null,null,null,null,null,null,null,null,null,null,null,null,null,null,null,null,null,null,null,null,null,null,"","","",null,null,null,null,null,null,null,null,null,null,null,null,null,"","","",null,null,"","","",null,null,null,"","","","","",null,null,null,null,null,null,null,null,""]
[null,null,null,null,null,null,null,null,null,null,null,null,null,null,null,null,null,"","","","",null,"","","",null,"","",null,"",null,null,"",null,null,"","","","","","",null,null,null,null,null,null,null,null,null,null,null,null,null,null,null,null,null,null,null,null,null,null,null,null,null,null,null,null,null,null,null,null,"","","",null,null,null,null,null,null,null,null,null,null,null,null,null,"","","",null,null,"","","",null,null,null,"","","","","",null,null,null,null,null,null,null,null,""]
[null,null,null,null,null,null,null,null,null,null,null,null,null,null,null,null,null,"","","","",null,"","","",null,"","",null,"",null,null,"",null,null,"","","","","","",null,null,null,null,null,null,null,null,null,null,null,null,null,null,null,null,null,null,null,null,null,null,null,null,null,null,null,null,null,null,null,null,"","","",null,null,null,null,null,null,null,null,null,null,null,null,null,"","","",null,null,"","","",null,null,null,"","","","","",null,null,null,null,null,null,null,null,""]
[null,null,null,null,null,null,null,null,null,null,null,null,null,null,null,null,null,"","","","",null,"","","",null,"","",null,"",null,null,"",null,null,"","","","","","",null,null,null,null,null,null,null,null,null,null,null,null,null,null,null,null,null,null,null,null,null,null,null,null,null,null,null,null,null,null,null,null,"","","",null,null,null,null,null,null,null,null,null,null,null,null,null,"","","",null,null,"","","",null,null,null,"","","","","",null,null,null,null,null,null,null,null,""]
[null,null,null,null,null,null,null,null,null,null,null,null,null,null,null,null,null,"","","","",null,"","","",null,"","",null,"",null,null,"",null,null,"","","","","","",null,null,null,null,null,null,null,null,null,null,null,null,null,null,null,null,null,null,null,null,null,null,null,null,null,null,null,null,null,null,null,null,"","","",null,null,null,null,null,null,null,null,null,null,null,null,null,"","","",null,null,"","","",null,null,null,"","","","","",null,null,null,null,null,null,null,null,""]
[null,null,null,null,null,null,null,null,null,null,null,null,null,null,null,null,null,"","","","",null,"","","",null,"","",null,"",null,null,"",null,null,"","","","","","",null,null,null,null,null,null,null,null,null,null,null,null,null,null,null,null,null,null,null,null,null,null,null,null,null,null,null,null,null,null,null,null,"","","",null,null,null,null,null,null,null,null,null,null,null,null,null,"","","",null,null,"","","",null,null,null,"","","","","",null,null,null,null,null,null,null,null,""]
[null,null,null,null,null,null,null,null,null,null,null,null,null,null,null,null,null,"","","","",null,"","","",null,"","",null,"",null,null,"",null,null,"","","","","","",null,null,null,null,null,null,null,null,null,null,null,null,null,null,null,null,null,null,null,null,null,null,null,null,null,null,null,null,null,null,null,null,"","","",null,null,null,null,null,null,null,null,null,null,null,null,null,"","","",null,null,"","","",null,null,null,"","","","","",null,null,null,null,null,null,null,null,""]
[null,null,null,null,null,null,null,null,null,null,null,null,null,null,null,null,null,"","","","",null,"","","",null,"","",null,"",null,null,"",null,null,"","","","","","",null,null,null,null,null,null,null,null,null,null,null,null,null,null,null,null,null,null,null,null,null,null,null,null,null,null,null,null,null,null,null,null,"","","",null,null,null,null,null,null,null,null,null,null,null,null,null,"","","",null,null,"","","",null,null,null,"","","","","",null,null,null,null,null,null,null,null,""]
[null,null,null,null,null,null,null,null,null,null,null,null,null,null,null,null,null,"","","","",null,"","","",null,"","",null,"",null,null,"",null,null,"","","","","","",null,null,null,null,null,null,null,null,null,null,null,null,null,null,null,null,null,null,null,null,null,null,null,null,null,null,null,null,null,null,null,null,"","","",null,null,null,null,null,null,null,null,null,null,null,null,null,"","","",null,null,"","","",null,null,null,"","","","","",null,null,null,null,null,null,null,null,""]
[null,null,null,null,null,null,null,null,null,null,null,null,null,null,null,null,null,"","","","",null,"","","",null,"","",null,"",null,null,"",null,null,"","","","","","",null,null,null,null,null,null,null,null,null,null,null,null,null,null,null,null,null,null,null,null,null,null,null,null,null,null,null,null,null,null,null,null,"","","",null,null,null,null,null,null,null,null,null,null,null,null,null,"","","",null,null,"","","",null,null,null,"","","","","",null,null,null,null,null,null,null,null,""]
[null,null,null,null,null,null,null,null,null,null,null,null,null,null,null,null,null,"","","","",null,"","","",null,"","",null,"",null,null,"",null,null,"","","","","","",null,null,null,null,null,null,null,null,null,null,null,null,null,null,null,null,null,null,null,null,null,null,null,null,null,null,null,null,null,null,null,null,"","","",null,null,null,null,null,null,null,null,null,null,null,null,null,"","","",null,null,"","","",null,null,null,"","","","","",null,null,null,null,null,null,null,null,""]
[null,null,null,null,null,null,null,null,null,null,null,null,null,null,null,null,null,"","","","",null,"","","",null,"","",null,"",null,null,"",null,null,"","","","","","",null,null,null,null,null,null,null,null,null,null,null,null,null,null,null,null,null,null,null,null,null,null,null,null,null,null,null,null,null,null,null,null,"","","",null,null,null,null,null,null,null,null,null,null,null,null,null,"","","",null,null,"","","",null,null,null,"","","","","",null,null,null,null,null,null,null,null,""]
[null,null,null,null,null,null,null,null,null,null,null,null,null,null,null,null,null,"","","","",null,"","","",null,"","",null,"",null,null,"",null,null,"","","","","","",null,null,null,null,null,null,null,null,null,null,null,null,null,null,null,null,null,null,null,null,null,null,null,null,null,null,null,null,null,null,null,null,"","","",null,null,null,null,null,null,null,null,null,null,null,null,null,"","","",null,null,"","","",null,null,null,"","","","","",null,null,null,null,null,null,null,null,""]
[null,null,null,null,null,null,null,null,null,null,null,null,null,null,null,null,null,"","","","",null,"","","",null,"","",null,"",null,null,"",null,null,"","","","","","",null,null,null,null,null,null,null,null,null,null,null,null,null,null,null,null,null,null,null,null,null,null,null,null,null,null,null,null,null,null,null,null,"","","",null,null,null,null,null,null,null,null,null,null,null,null,null,"","","",null,null,"","","",null,null,null,"","","","","",null,null,null,null,null,null,null,null,""]
[null,null,null,null,null,null,null,null,null,null,null,null,null,null,null,null,null,"","","","",null,"","","",null,"","",null,"",null,null,"",null,null,"","","","","","",null,null,null,null,null,null,null,null,null,null,null,null,null,null,null,null,null,null,null,null,null,null,null,null,null,null,null,null,null,null,null,null,"","","",null,null,null,null,null,null,null,null,null,null,null,null,null,"","","",null,null,"","","",null,null,null,"","","","","",null,null,null,null,null,null,null,null,""]
[null,null,null,null,null,null,null,null,null,null,null,null,null,null,null,null,null,"","","","",null,"","","",null,"","",null,"",null,null,"",null,null,"","","","","","",null,null,null,null,null,null,null,null,null,null,null,null,null,null,null,null,null,null,null,null,null,null,null,null,null,null,null,null,null,null,null,null,"","","",null,null,null,null,null,null,null,null,null,null,null,null,null,"","","",null,null,"","","",null,null,null,"","","","","",null,null,null,null,null,null,null,null,""]
[null,null,null,null,null,null,null,null,null,null,null,null,null,null,null,null,null,"","","","",null,"","","",null,"","",null,"",null,null,"",null,null,"","","","","","",null,null,null,null,null,null,null,null,null,null,null,null,null,null,null,null,null,null,null,null,null,null,null,null,null,null,null,null,null,null,null,null,"","","",null,null,null,null,null,null,null,null,null,null,null,null,null,"","","",null,null,"","","",null,null,null,"","","","","",null,null,null,null,null,null,null,null,""]
[null,null,null,null,null,null,null,null,null,null,null,null,null,null,null,null,null,"","","","",null,"","","",null,"","",null,"",null,null,"",null,null,"","","","","","",null,null,null,null,null,null,null,null,null,null,null,null,null,null,null,null,null,null,null,null,null,null,null,null,null,null,null,null,null,null,null,null,"","","",null,null,null,null,null,null,null,null,null,null,null,null,null,"","","",null,null,"","","",null,null,null,"","","","","",null,null,null,null,null,null,null,null,""]
[null,null,null,null,null,null,null,null,null,null,null,null,null,null,null,null,null,"","","","",null,"","","",null,"","",null,"",null,null,"",null,null,"","","","","","",null,null,null,null,null,null,null,null,null,null,null,null,null,null,null,null,null,null,null,null,null,null,null,null,null,null,null,null,null,null,null,null,"","","",null,null,null,null,null,null,null,null,null,null,null,null,null,"","","",null,null,"","","",null,null,null,"","","","","",null,null,null,null,null,null,null,null,""]
[null,null,null,null,null,null,null,null,null,null,null,null,null,null,null,null,null,"","","","",null,"","","",null,"","",null,"",null,null,"",null,null,"","","","","","",null,null,null,null,null,null,null,null,null,null,null,null,null,null,null,null,null,null,null,null,null,null,null,null,null,null,null,null,null,null,null,null,"","","",null,null,null,null,null,null,null,null,null,null,null,null,null,"","","",null,null,"","","",null,null,null,"","","","","",null,null,null,null,null,null,null,null,""]
[null,null,null,null,null,null,null,null,null,null,null,null,null,null,null,null,null,"","","","",null,"","","",null,"","",null,"",null,null,"",null,null,"","","","","","",null,null,null,null,null,null,null,null,null,null,null,null,null,null,null,null,null,null,null,null,null,null,null,null,null,null,null,null,null,null,null,null,"","","",null,null,null,null,null,null,null,null,null,null,null,null,null,"","","",null,null,"","","",null,null,null,"","","","","",null,null,null,null,null,null,null,null,""]
[null,null,null,null,null,null,null,null,null,null,null,null,null,null,null,null,null,"","","","",null,"","","",null,"","",null,"",null,null,"",null,null,"","","","","","",null,null,null,null,null,null,null,null,null,null,null,null,null,null,null,null,null,null,null,null,null,null,null,null,null,null,null,null,null,null,null,null,"","","",null,null,null,null,null,null,null,null,null,null,null,null,null,"","","",null,null,"","","",null,null,null,"","","","","",null,null,null,null,null,null,null,null,""]
[null,null,null,null,null,null,null,null,null,null,null,null,null,null,null,null,null,"","","","",null,"","","",null,"","",null,"",null,null,"",null,null,"","","","","","",null,null,null,null,null,null,null,null,null,null,null,null,null,null,null,null,null,null,null,null,null,null,null,null,null,null,null,null,null,null,null,null,"","","",null,null,null,null,null,null,null,null,null,null,null,null,null,"","","",null,null,"","","",null,null,null,"","","","","",null,null,null,null,null,null,null,null,""]
[null,null,null,null,null,null,null,null,null,null,null,null,null,null,null,null,null,"","","","",null,"","","",null,"","",null,"",null,null,"",null,null,"","","","","","",null,null,null,null,null,null,null,null,null,null,null,null,null,null,null,null,null,null,null,null,null,null,null,null,null,null,null,null,null,null,null,null,"","","",null,null,null,null,null,null,null,null,null,null,null,null,null,"","","",null,null,"","","",null,null,null,"","","","","",null,null,null,null,null,null,null,null,""]
[null,null,null,null,null,null,null,null,null,null,null,null,null,null,null,null,null,"","","","",null,"","","",null,"","",null,"",null,null,"",null,null,"","","","","","",null,null,null,null,null,null,null,null,null,null,null,null,null,null,null,null,null,null,null,null,null,null,null,null,null,null,null,null,null,null,null,null,"","","",null,null,null,null,null,null,null,null,null,null,null,null,null,"","","",null,null,"","","",null,null,null,"","","","","",null,null,null,null,null,null,null,null,""]
[null,null,null,null,null,null,null,null,null,null,null,null,null,null,null,null,null,"","","","",null,"","","",null,"","",null,"",null,null,"",null,null,"","","","","","",null,null,null,null,null,null,null,null,null,null,null,null,null,null,null,null,null,null,null,null,null,null,null,null,null,null,null,null,null,null,null,null,"","","",null,null,null,null,null,null,null,null,null,null,null,null,null,"","","",null,null,"","","",null,null,null,"","","","","",null,null,null,null,null,null,null,null,""]
[null,null,null,null,null,null,null,null,null,null,null,null,null,null,null,null,null,"","","","",null,"","","",null,"","",null,"",null,null,"",null,null,"","","","","","",null,null,null,null,null,null,null,null,null,null,null,null,null,null,null,null,null,null,null,null,null,null,null,null,null,null,null,null,null,null,null,null,"","","",null,null,null,null,null,null,null,null,null,null,null,null,null,"","","",null,null,"","","",null,null,null,"","","","","",null,null,null,null,null,null,null,null,""]
[null,null,null,null,null,null,null,null,null,null,null,null,null,null,null,null,null,"","","","",null,"","","",null,"","",null,"",null,null,"",null,null,"","","","","","",null,null,null,null,null,null,null,null,null,null,null,null,null,null,null,null,null,null,null,null,null,null,null,null,null,null,null,null,null,null,null,null,"","","",null,null,null,null,null,null,null,null,null,null,null,null,null,"","","",null,null,"","","",null,null,null,"","","","","",null,null,null,null,null,null,null,null,""]
[null,null,null,null,null,null,null,null,null,null,null,null,null,null,null,null,null,"","","","",null,"","","",null,"","",null,"",null,null,"",null,null,"","","","","","",null,null,null,null,null,null,null,null,null,null,null,null,null,null,null,null,null,null,null,null,null,null,null,null,null,null,null,null,null,null,null,null,"","","",null,null,null,null,null,null,null,null,null,null,null,null,null,"","","",null,null,"","","",null,null,null,"","","","","",null,null,null,null,null,null,null,null,""]
[null,null,null,null,null,null,null,null,null,null,null,null,null,null,null,null,null,"","","","",null,"","","",null,"","",null,"",null,null,"",null,null,"","","","","","",null,null,null,null,null,null,null,null,null,null,null,null,null,null,null,null,null,null,null,null,null,null,null,null,null,null,null,null,null,null,null,null,"","","",null,null,null,null,null,null,null,null,null,null,null,null,null,"","","",null,null,"","","",null,null,null,"","","","","",null,null,null,null,null,null,null,null,""]
[null,null,null,null,null,null,null,null,null,null,null,null,null,null,null,null,null,"","","","",null,"","","",null,"","",null,"",null,null,"",null,null,"","","","","","",null,null,null,null,null,null,null,null,null,null,null,null,null,null,null,null,null,null,null,null,null,null,null,null,null,null,null,null,null,null,null,null,"","","",null,null,null,null,null,null,null,null,null,null,null,null,null,"","","",null,null,"","","",null,null,null,"","","","","",null,null,null,null,null,null,null,null,""]
[null,null,null,null,null,null,null,null,null,null,null,null,null,null,null,null,null,"","","","",null,"","","",null,"","",null,"",null,null,"",null,null,"","","","","","",null,null,null,null,null,null,null,null,null,null,null,null,null,null,null,null,null,null,null,null,null,null,null,null,null,null,null,null,null,null,null,null,"","","",null,null,null,null,null,null,null,null,null,null,null,null,null,"","","",null,null,"","","",null,null,null,"","","","","",null,null,null,null,null,null,null,null,""]
[null,null,null,null,null,null,null,null,null,null,null,null,null,null,null,null,null,"","","","",null,"","","",null,"","",null,"",null,null,"",null,null,"","","","","","",null,null,null,null,null,null,null,null,null,null,null,null,null,null,null,null,null,null,null,null,null,null,null,null,null,null,null,null,null,null,null,null,"","","",null,null,null,null,null,null,null,null,null,null,null,null,null,"","","",null,null,"","","",null,null,null,"","","","","",null,null,null,null,null,null,null,null,""]
[null,null,null,null,null,null,null,null,null,null,null,null,null,null,null,null,null,"","","","",null,"","","",null,"","",null,"",null,null,"",null,null,"","","","","","",null,null,null,null,null,null,null,null,null,null,null,null,null,null,null,null,null,null,null,null,null,null,null,null,null,null,null,null,null,null,null,null,"","","",null,null,null,null,null,null,null,null,null,null,null,null,null,"","","",null,null,"","","",null,null,null,"","","","","",null,null,null,null,null,null,null,null,""]
[null,null,null,null,null,null,null,null,null,null,null,null,null,null,null,null,null,"","","","",null,"","","",null,"","",null,"",null,null,"",null,null,"","","","","","",null,null,null,null,null,null,null,null,null,null,null,null,null,null,null,null,null,null,null,null,null,null,null,null,null,null,null,null,null,null,null,null,"","","",null,null,null,null,null,null,null,null,null,null,null,null,null,"","","",null,null,"","","",null,null,null,"","","","","",null,null,null,null,null,null,null,null,""]
[null,null,null,null,null,null,null,null,null,null,null,null,null,null,null,null,null,"","","","",null,"","","",null,"","",null,"",null,null,"",null,null,"","","","","","",null,null,null,null,null,null,null,null,null,null,null,null,null,null,null,null,null,null,null,null,null,null,null,null,null,null,null,null,null,null,null,null,"","","",null,null,null,null,null,null,null,null,null,null,null,null,null,"","","",null,null,"","","",null,null,null,"","","","","",null,null,null,null,null,null,null,null,""]
[null,null,null,null,null,null,null,null,null,null,null,null,null,null,null,null,null,"","","","",null,"","","",null,"","",null,"",null,null,"",null,null,"","","","","","",null,null,null,null,null,null,null,null,null,null,null,null,null,null,null,null,null,null,null,null,null,null,null,null,null,null,null,null,null,null,null,null,"","","",null,null,null,null,null,null,null,null,null,null,null,null,null,"","","",null,null,"","","",null,null,null,"","","","","",null,null,null,null,null,null,null,null,""]
[null,null,null,null,null,null,null,null,null,null,null,null,null,null,null,null,null,"","","","",null,"","","",null,"","",null,"",null,null,"",null,null,"","","","","","",null,null,null,null,null,null,null,null,null,null,null,null,null,null,null,null,null,null,null,null,null,null,null,null,null,null,null,null,null,null,null,null,"","","",null,null,null,null,null,null,null,null,null,null,null,null,null,"","","",null,null,"","","",null,null,null,"","","","","",null,null,null,null,null,null,null,null,""]
[null,null,null,null,null,null,null,null,null,null,null,null,null,null,null,null,null,"","","","",null,"","","",null,"","",null,"",null,null,"",null,null,"","","","","","",null,null,null,null,null,null,null,null,null,null,null,null,null,null,null,null,null,null,null,null,null,null,null,null,null,null,null,null,null,null,null,null,"","","",null,null,null,null,null,null,null,null,null,null,null,null,null,"","","",null,null,"","","",null,null,null,"","","","","",null,null,null,null,null,null,null,null,""]
[null,null,null,null,null,null,null,null,null,null,null,null,null,null,null,null,null,"","","","",null,"","","",null,"","",null,"",null,null,"",null,null,"","","","","","",null,null,null,null,null,null,null,null,null,null,null,null,null,null,null,null,null,null,null,null,null,null,null,null,null,null,null,null,null,null,null,null,"","","",null,null,null,null,null,null,null,null,null,null,null,null,null,"","","",null,null,"","","",null,null,null,"","","","","",null,null,null,null,null,null,null,null,""]
[null,null,null,null,null,null,null,null,null,null,null,null,null,null,null,null,null,"","","","",null,"","","",null,"","",null,"",null,null,"",null,null,"","","","","","",null,null,null,null,null,null,null,null,null,null,null,null,null,null,null,null,null,null,null,null,null,null,null,null,null,null,null,null,null,null,null,null,"","","",null,null,null,null,null,null,null,null,null,null,null,null,null,"","","",null,null,"","","",null,null,null,"","","","","",null,null,null,null,null,null,null,null,""]

{"sheet":"C336","index":5,"n_rows":150,"n_cols":31,"rows_kept":150,"cut":false,"hidden":false,"merged":[[46,6,47,6],[45,8,45,10],[46,5,47,5],[46,7,47,7],[46,8,46,10],[0,16,3,17],[46,11,47,11],[46,12,47,12],[12,13,13,13],[12,14,13,15],[14,14,14,15],[12,16,13,16],[1,7,1,15],[2,7,2,15]]}
[null,null,null,null,null,null,null,null,null,null,null,null,null,null,null,null,"3AS"]
[null,null,null,null,null,null,null,"CENSO EDUCATIVO 2022"]
[null,null,null,null,null,null,null,"MATRÍCULA, DOCENTES Y MATERIALES EDUCATIVOS"]
[]
[]
[]
[null,null,null,null,null,"334. ¿CUENTA CON LA ASIGNATURA DE ARTE Y CULTURA?",null,null,null,null,null,null,null,"335. ÁREA DE INGLÉS"]
[]
[null,null,null,null,null,"Sí   ",null,null,null,null,null,null," 335.1 ¿CUÁNTAS HORAS SE ASIGNAN AL ÁREA DE INGLÉS?"]
[]
[null,null,null,null,null,null,null,"¿Cuántos docentes están asignados al",null,null,null,null," 335.2 ¿CUÁNTOS DOCENTES ESTÁN A CARGO DEL ÁREA DE INGLÉS?"]
[null,null,null,null,null,null,null,"dictado de la asignatura?"]
[null,null,null,null,null,null,null,null,null,null,null,null,null,"TOTAL","Especialidad de Inglés",null,"Otra Especialidad"]
[]
[null,null,null,null,null,null,null,null,null,null,null,null,null,{"$f":"O15+Q15","v":0}]
[null,null,null,null,null,null,null,"¿Cuántas horas a la semana se dictan?"]
[null,null,null,null,null,null,null,null,null,null,null,null," 335.3 ¿RECIBE ATENCIÓN PEDAGÓGICA O SOPORTE TÉCNICO PARA EL ÁREA"]
[null,null,null,null,null,null,null,null,null,null,null,null,"DE INGLÉS POR PARTE DE LA UGEL?"]
[]
[null,null,null,null,null,null,null,null,null,null,null,null,"Sí   ",null,"No  "]
[null,null,null,null,null,"No  "]
[null,null,null,null,null,null,null,null,null,null,null,null," 335.4 ¿CUENTA CON CUADERNOS DE TRABAJO DE INGLÉS NUNCA USADOS"]
[null,null,null,null,null,null,null,null,null,null,null,null,"PARA ESTUDIANTES?"]
[]
[null,null,null,null,null,null,null,null,null,null,null,null,"Sí   ",null,null,"¿Cuántos?  "]
[]
[null,null,null,null,null,null,null,null,null,null,null,null,"No  "]
[]
[]
[null,null,null,null,null,"336. DOCENTES QUE DOMINAN LENGUA ORIGINARIA (Solo para II.EE. Públicas)             337. JEFE O RESPONSABLE DE TALLER  (Solo para II.EE. Públicas)"]
[null,null,null,null,null,"336. SEGÚN LO ANOTADO EN LA PREGUNTA 307, ¿CUENTA CON UN ",null,null,null,null,null,null,"337. EN EL ÁREA DE EDUCACIÓN  PARA EL TRABAJO"]
[null,null,null,null,null,"  DOCENTE QUE DOMINE UNA LENGUA ORIGINARIA?"]
[null,null,null,null,null,null,null,null,null,null,null,null,"Sí   ",null,null,"¿Cuántos?",{"$f":"SUM(R36:R42)","v":0}]
[null,null,null,null,null,null,null,"Sí   "]
[null,null,null,null,null,null,null,null,null,null,null,null,null,null,null,"Nro","DNI"]
[null,null,null,null,null,null,null,null,null,"¿Cuántos?",null,null,null,null,null,1,"",{"$f":"IF(Q36<>\"\",1,0)","v":0}]
["GESTIÓN",null,null,null,null,null,null,null,null,null,null,null,null,null,null,2,null,0]
[null,null,null,null,null,null,null,"No  ",null,null,"Pase a la sección 337.",null,null,null,null,3,null,0]
[{"$f":"IF(OR(UPPER('C100'!J32)=\"X\",UPPER('C100'!O32)=\"X\"),1,IF(UPPER('C100'!T32)=\"X\",3,\"\"))","v":""},null,null,null,null,null,null,null,null,null,null,null,null,null,null,4,null,0]
[null,null,null,null,null,null,"Para revisar los docentes que dominan una lengua originaria",null,null,null,null,null,null,null,null,5,null,0]
[null,null,null,null,null,null,null,null,null,null,null,null,null,null,null,6,null,0]
[null,null,null,null,null,null,null,null,null,null,null,null,null,null,null,7,null,0]
[null,null,null,null,null,null,"hacer click en el botón [Verificar]",null,null,null,null,null,"No  "]
[null,null,null,null,null,null,null,null,null,null,null,null,null,null,null,"Pase a la SECCIÓN 400."]
[]
[null,null,null,null,null,null,null,null,"336.1",null,null,"336.2","336.3","336.4","336.5","336.6","336.7"]
[null,null,null,null,null,"Nº","Nº de fila registrado en la pregunta 307","Documento de Identidad","Conocimiento de lengua originaria",null,null,"¿Cuenta con estudios en Educación Intercultural Bilingüe?","Solo si respondió SÍ en la pregunta 336.2. ¿Cuál fue el tipo de estudios en EIB?","¿Ha recibido capacita- ción en EIB?","¿El docente enseña en lengua originaria?","¿El material recibido coincide con la lengua que enseña?","¿En la actualidad el Docente se encuentra en el Registro de Docentes Bilingües?"]
["330.3 ¿Cuál fue el tipo de estudios en EIB?","Corr","Gest","Fmt",null,null,null,null,"Habla","Lee","Escribe",null,null," SI - NO"," SI - NO"," SI - NO","SI - NO"]
["01: Doctorado",1,{"$f":"$A$39","v":""},{"$f":"IF(F49<>\"\",1,0)","v":0},null,{"$f":"IF(AND($B49<=$L$36,$C49=1),$B49,\"\")","v":""},null,null,null,null,null,null,null,null,null,null,null,"","","","","","","","","","","","","",""]
["02: Maestría",{"$f":"B49+1","v":2},"",{"$f":"IF(F50<>\"\",1,0)","v":0},null,{"$f":"IF(AND($B50<=$L$36,$C50=1),$B50,\"\")","v":""},null,null,null,null,null,null,null,null,null,null,null,"","","","","","","","","","","","","",""]
["03: Segunda especialidad",{"$f":"B50+1","v":3},"",0,null,"",null,null,null,null,null,null,null,null,null,null,null,"","","","","","","","","","","","","",""]
["04: Especialización",4,"",0,null,"",null,null,null,null,null,null,null,null,null,null,null,"","","","","","","","","","","","","",""]
["05: Actualización",5,"",0,null,"",null,null,null,null,null,null,null,null,null,null,null,"","","","","","","","","","","","","",""]
["06: Otro",6,"",0,null,"",null,null,null,null,null,null,null,null,null,null,null,"","","","","","","","","","","","","",""]
[null,7,"",0,null,"",null,null,null,null,null,null,null,null,null,null,null,"","","","","","","","","","","","","",""]
[null,8,"",0,null,"",null,null,null,null,null,null,null,null,null,null,null,"","","","","","","","","","","","","",""]
["SI",9,"",0,null,"",null,null,null,null,null,null,null,null,null,null,null,"","","","","","","","","","","","","",""]
["NO",10,"",0,null,"",null,null,null,null,null,null,null,null,null,null,null,"","","","","","","","","","","","","",""]
[null,11,"",0,null,"",null,null,null,null,null,null,null,null,null,null,null,"","","","","","","","","","","","","",""]
[null,12,"",0,null,"",null,null,null,null,null,null,null,null,null,null,null,"","","","","","","","","","","","","",""]
[null,13,"",0,null,"",null,null,null,null,null,null,null,null,null,null,null,"","","","","","","","","","","","","",""]
[null,14,"",0,null,"",null,null,null,null,null,null,null,null,null,null,null,"","","","","","","","","","","","","",""]
[null,15,"",0,null,"",null,null,null,null,null,null,null,null,null,null,null,"","","","","","","","","","","","","",""]
[null,16,"",0,null,"",null,null,null,null,null,null,null,null,null,null,null,"","","","","","","","","","","","","",""]
[null,17,"",0,null,"",null,null,null,null,null,null,null,null,null,null,null,"","","","","","","","","","","","","",""]
[null,18,"",0,null,"",null,null,null,null,null,null,null,null,null,null,null,"","","","","","","","","","","","","",""]
[null,19,"",0,null,"",null,null,null,null,null,null,null,null,null,null,null,"","","","","","","","","","","","","",""]
[null,20,"",0,null,"",null,null,null,null,null,null,null,null,null,null,null,"","","","","","","","","","","","","",""]
[null,21,"",0,null,"",null,null,null,null,null,null,null,null,null,null,null,"","","","","","","","","","","","","",""]
[null,22,"",0,null,"",null,null,null,null,null,null,null,null,null,null,null,"","","","","","","","","","","","","",""]
[null,23,"",0,null,"",null,null,null,null,null,null,null,null,null,null,null,"","","","","","","","","","","","","",""]
[null,24,"",0,null,"",null,null,null,null,null,null,null,null,null,null,null,"","","","","","","","","","","","","",""]
[null,25,"",0,null,"",null,null,null,null,null,null,null,null,null,null,null,"","","","","","","","","","","","","",""]
[null,26,"",0,null,"",null,null,null,null,null,null,null,null,null,null,null,"","","","","","","","","","","","","",""]
[null,27,"",0,null,"",null,null,null,null,null,null,null,null,null,null,null,"","","","","","","","","","","","","",""]
[null,28,"",0,null,"",null,null,null,null,null,null,null,null,null,null,null,"","","","","","","","","","","","","",""]
[null,29,"",0,null,"",null,null,null,null,null,null,null,null,null,null,null,"","","","","","","","","","","","","",""]
[null,30,"",0,null,"",null,null,null,null,null,null,null,null,null,null,null,"","","","","","","","","","","","","",""]
[null,31,"",0,null,"",null,null,null,null,null,null,null,null,null,null,null,"","","","","","","","","","","","","",""]
[null,32,"",0,null,"",null,null,null,null,null,null,null,null,null,null,null,"","","","","","","","","","","","","",""]
[null,33,"",0,null,"",null,null,null,null,null,null,null,null,null,null,null,"","","","","","","","","","","","","",""]
[null,34,"",0,null,"",null,null,null,null,null,null,null,null,null,null,null,"","","","","","","","","","","","","",""]
[null,35,"",0,null,"",null,null,null,null,null,null,null,null,null,null,null,"","","","","","","","","","","","","",""]
[null,36,"",0,null,"",null,null,null,null,null,null,null,null,null,null,null,"","","","","","","","","","","","","",""]
[null,37,"",0,null,"",null,null,null,null,null,null,null,null,null,null,null,"","","","","","","","","","","","","",""]
[null,38,"",0,null,"",null,null,null,null,null,null,null,null,null,null,null,"","","","","","","","","","","","","",""]
[null,39,"",0,null,"",null,null,null,null,null,null,null,null,null,null,null,"","","","","","","","","","","","","",""]
[null,40,"",0,null,"",null,null,null,null,null,null,null,null,null,null,null,"","","","","","","","","","","","","",""]
[null,41,"",0,null,"",null,null,null,null,null,null,null,null,null,null,null,"","","","","","","","","","","","","",""]
[null,42,"",0,null,"",null,null,null,null,null,null,null,null,null,null,null,"","","","","","","","","","","","","",""]
[null,43,"",0,null,"",null,null,null,null,null,null,null,null,null,null,null,"","","","","","","","","","","","","",""]
[null,44,"",0,null,"",null,null,null,null,null,null,null,null,null,null,null,"","","","","","","","","","","","","",""]
[null,45,"",0,null,"",null,null,null,null,null,null,null,null,null,null,null,"","","","","","","","","","","","","",""]
[null,46,"",0,null,"",null,null,null,null,null,null,null,null,null,null,null,"","","","","","","","","","","","","",""]
[null,47,"",0,null,"",null,null,null,null,null,null,null,null,null,null,null,"","","","","","","","","","","","","",""]
[null,48,"",0,null,"",null,null,null,null,null,null,null,null,null,null,null,"","","","","","","","","","","","","",""]
[null,49,"",0,null,"",null,null,null,null,null,null,null,null,null,null,null,"","","","","","","","","","","","","",""]
[null,50,"",0,null,"",null,null,null,null,null,null,null,null,null,null,null,"","","","","","","","","","","","","",""]
[null,51,"",0,null,"",null,null,null,null,null,null,null,null,null,null,null,"","","","","","","","","","","","","",""]
[null,52,"",0,null,"",null,null,null,null,null,null,null,null,null,null,null,"","","","","","","","","","","","","",""]
[null,53,"",0,null,"",null,null,null,null,null,null,null,null,null,null,null,"","","","","","","","","","","","","",""]
[null,54,"",0,null,"",null,null,null,null,null,null,null,null,null,null,null,"","","","","","","","","","","","","",""]
[null,55,"",0,null,"",null,null,null,null,null,null,null,null,null,null,null,"","","","","","","","","","","","","",""]
[null,56,"",0,null,"",null,null,null,null,null,null,null,null,null,null,null,"","","","","","","","","","","","","",""]
[null,57,"",0,null,"",null,null,null,null,null,null,null,null,null,null,null,"","","","","","","","","","","","","",""]
[null,58,"",0,null,"",null,null,null,null,null,null,null,null,null,null,null,"","","","","","","","","","","","","",""]
[null,59,"",0,null,"",null,null,null,null,null,null,null,null,null,null,null,"","","","","","","","","","","","","",""]
[null,60,"",0,null,"",null,null,null,null,null,null,null,null,null,null,null,"","","","","","","","","","","","","",""]
[null,61,"",0,null,"",null,null,null,null,null,null,null,null,null,null,null,"","","","","","","","","","","","","",""]
[null,62,"",0,null,"",null,null,null,null,null,null,null,null,null,null,null,"","","","","","","","","","","","","",""]
[null,63,"",0,null,"",null,null,null,null,null,null,null,null,null,null,null,"","","","","","","","","","","","","",""]
[null,64,"",0,null,"",null,null,null,null,null,null,null,null,null,null,null,"","","","","","","","","","","","","",""]
[null,65,{"$f":"$A$39","v":""},0,null,"",null,null,null,null,null,null,null,null,null,null,null,"","","","","","","","","","","","","",""]
[null,66,"",{"$f":"IF(F114<>\"\",1,0)","v":0},null,{"$f":"IF(AND($B114<=$L$36,$C114=1),$B114,\"\")","v":""},null,null,null,null,null,null,null,null,null,null,null,"","","","","","","","","","","","","",""]
[null,{"$f":"B114+1","v":67},"",0,null,"",null,null,null,null,null,null,null,null,null,null,null,"","","","","","","","","","","","","",""]
[null,68,"",0,null,"",null,null,null,null,null,null,null,null,null,null,null,"","","","","","","","","","","","","",""]
[null,69,"",0,null,"",null,null,null,null,null,null,null,null,null,null,null,"","","","","","","","","","","","","",""]
[null,70,"",0,null,"",null,null,null,null,null,null,null,null,null,null,null,"","","","","","","","","","","","","",""]
[null,71,"",0,null,"",null,null,null,null,null,null,null,null,null,null,null,"","","","","","","","","","","","","",""]
[null,72,"",0,null,"",null,null,null,null,null,null,null,null,null,null,null,"","","","","","","","","","","","","",""]
[null,73,"",0,null,"",null,null,null,null,null,null,null,null,null,null,null,"","","","","","","","","","","","","",""]
[null,74,"",0,null,"",null,null,null,null,null,null,null,null,null,null,null,"","","","","","","","","","","","","",""]
[null,75,"",0,null,"",null,null,null,null,null,null,null,null,null,null,null,"","","","","","","","","","","","","",""]
[null,76,"",0,null,"",null,null,null,null,null,null,null,null,null,null,null,"","","","","","","","","","","","","",""]
[null,77,"",0,null,"",null,null,null,null,null,null,null,null,null,null,null,"","","","","","","","","","","","","",""]
[null,78,"",0,null,"",null,null,null,null,null,null,null,null,null,null,null,"","","","","","","","","","","","","",""]
[null,79,"",0,null,"",null,null,null,null,null,null,null,null,null,null,null,"","","","","","","","","","","","","",""]
[null,80,"",0,null,"",null,null,null,null,null,null,null,null,null,null,null,"","","","","","","","","","","","","",""]
[null,81,"",0,null,"",null,null,null,null,null,null,null,null,null,null,null,"","","","","","","","","","","","","",""]
[null,82,"",0,null,"",null,null,null,null,null,null,null,null,null,null,null,"","","","","","","","","","","","","",""]
[null,83,"",0,null,"",null,null,null,null,null,null,null,null,null,null,null,"","","","","","","","","","","","","",""]
[null,84,"",0,null,"",null,null,null,null,null,null,null,null,null,null,null,"","","","","","","","","","","","","",""]
[null,85,"",0,null,"",null,null,null,null,null,null,null,null,null,null,null,"","","","","","","","","","","","","",""]
[null,86,"",0,null,""]
[null,87,"",0,null,""]
[null,88,"",0,null,""]
[null,89,"",0,null,""]
[null,90,"",0,null,""]
[null,91,"",0,null,""]
[null,92,"",0,null,""]
[null,93,"",0,null,""]
[null,94,"",0,null,""]
[null,95,"",0,null,""]
[null,96,"",0,null,""]
[null,97,"",0,null,""]
[null,98,"",0,null,""]
[null,99,"",0,null,""]
[null,100,"",0,null,"",null,null,null,null,null,null,null,null,null,null,null,"","","","","","","","","","","","","",""]
[null,null,null,null,null,null,null,""]
[null,null,null,null,null,"Limite",null,"Limite","Limite","Limite","Limite","Limite","Limite","Limite","Limite",null,"Limite"]

{"sheet":"C400","index":6,"n_rows":54,"n_cols":30,"rows_kept":54,"cut":false,"hidden":false,"merged":[[51,3,52,4],[52,5,52,7],[36,5,36,7],[39,5,39,7],[40,5,40,7],[41,5,41,7],[42,5,42,7],[43,5,43,7],[44,5,44,7],[46,5,46,7],[30,3,36,4],[48,5,48,7],[49,5,49,7],[46,3,50,4],[47,5,47,7],[26,28,29,28],[28,10,29,10],[28,11,28,15],[28,16,29,16],[28,17,28,21],[28,22,29,22],[28,23,28,27],[0,16,3,18],[1,4,1,15],[2,4,2,15],[50,5,50,7],[26,22,27,27],[37,3,45,4],[6,2,6,18],[26,3,29,4],[26,5,29,7],[26,8,28,8],[26,9,28,9],[26,10,27,15],[26,16,27,21]]}
[null,null,null,null,null,null,null,null,null,null,null,null,null,null,null,null,"3AS"]
[null,null,null,null,"CENSO EDUCATIVO 2022"]
[null,null,null,null,"MATRÍCULA, DOCENTES Y MATERIALES EDUCATIVOS"]
[]
[]
[]
["",null,"400. MATERIALES EDUCATIVOS (SOLO GESTIÓN PÚBLICA)"]
[""]
[null,null,"401. ¿RECIBIÓ MATERIALES CORRESPONDIENTES A LA DOTACIÓN 2022?"]
[]
[]
[null,null,null," Sí",null,"No  ",null,null,"Pase a la SECCIÓN 500."]
[]
[]
[null,null,"402. ¿RECIBIÓ CUADERNOS DE TRABAJO EN LENGUA ORIGINARIA?"]
[]
[null,null,null," Sí",null," No  "]
[]
[null,null,null,null,null,"¿Corresponden a la lengua de los estudiantes de este servicio/nivel educativo?",null,null,null,null,null," Sí  ",null,null," No  "]
[]
[]
[null,null,null,null,null,null,"",null,null,""]
[]
[1]
[null,null,"403. DETALLE DE CUADERNOS DE TRABAJO, TEXTOS, KITS Y GUÍAS CORRESPONDIENTES A LA DOTACIÓN 2022 POR GRADO"]
[]
[null,null,null,"BENEFICIARIO",null,"MATERIAL EDUCATIVO",null,null,"¿Recibió los materiales?","¿En qué fecha\nrecibió los\nmateriales?","CANTIDAD DE MATERIAL RECIBIDO",null,null,null,null,null,"CANTIDAD DE MATERIAL SOBRANTE",null,null,null,null,null,"CANTIDAD DE MATERIAL FALTANTE",null,null,null,null,null,"¿En qué fecha se culminó con la entrega \nde todos los materia les educativos a los \nbeneficiarios?\nDía/Mes/Año"]
[]
[null,null,null,null,null,null,null,null,null,null,"TOTAL RECIBIDO","GRADO DE ESTUDIO",null,null,null,null,"TOTAL SOBRANTE","GRADO DE ESTUDIO",null,null,null,null,"TOTAL FALTANTE","GRADO DE ESTUDIO"]
[null,null,null,null,null,null,null,null," SI - NO","Día / Mes / Año",null,"1º","2º","3º","4º","5º",null,"1º","2º","3º","4º","5º",null,"1º","2º","3º","4º","5º"]
["01",null,{"$f":"COUNTIF(I31:I53,\"NO\")","v":0},"ESTUDIANTE DE SECUNDARTIA",null,"Cuaderno de trabajo de matemática",null,null,null,null,{"$f":"SUM(L31:P31)","v":0},null,null,null,null,null,{"$f":"SUM(R31:V31)","v":0},null,null,null,null,null,{"$f":"SUM(X31:AB31)","v":0},null,null,null,null,null,null,"01"]
["02",null,null,null,null,"Cuaderno de trabajo de Comunicación",null,null,null,null,{"$f":"SUM(L32:P32)","v":0},null,null,null,null,null,{"$f":"SUM(R32:V32)","v":0},null,null,null,null,null,{"$f":"SUM(X32:AB32)","v":0},null,null,null,null,null,null,"02"]
["03",null,null,null,null,"Kit de prueba diagnóstica matemática",null,null,null,null,0,null,null,null,null,null,0,null,null,null,null,null,0,null,null,null,null,null,null,"03"]
["04",null,null,null,null,"Kit de prueba diagnóstica lectura",null,null,null,null,0,null,null,null,null,null,0,null,null,null,null,null,0,null,null,null,null,null,null,"04"]
["05",null,null,null,null,"Kit de prueba diagnóstica escritura",null,null,null,null,0,null,null,null,null,null,0,null,null,null,null,null,0,null,null,null,null,null,null,"05"]
["06",null,null,null,null,"Cuaderno de Fichas de fuentes histórica",null,null,null,null,0,null,null,null,null,null,0,null,null,null,null,null,0,null,null,null,null,null,null,"06"]
["07",null,null,null,null,"¿Es amor lo que siento? Guía de prevención de la violencia de género para adolescentes 5° grado",null,null,null,null,0,null,null,null,null,null,0,null,null,null,null,null,0,null,null,null,null,null,null,"07"]
["08",null,null,"ESTUDIANTE DE\nSECUNDARIA\nEN ÁMBITO\nRURAL (MSE)",null,"Cuaderno de trabajo un tiempo para mi tutoría",null,null,null,null,0,null,null,null,null,null,0,null,null,null,null,null,0,null,null,null,null,null,null,"08"]
["09",null,null,null,null,"Cuaderno de trabajo - Comunicación en lengua orig.",null,null,null,null,0,null,null,null,null,null,0,null,null,null,null,null,0,null,null,null,null,null,null,"09"]
["10",null,null,null,null,"Cuadernos de trabajo para el emprendimiento y planes de proyecto de (1° a 4°) ",null,null,null,null,0,null,null,null,null,null,0,null,null,null,null,null,0,null,null,null,null,null,null,"10"]
["11",null,null,null,null,"Cuaderno de relación para secundaria en alternancia",null,null,null,null,null,null,null,null,null,null,null,null,null,null,null,null,null,null,null,null,null,null,null,"11"]
["12",null,null,null,null,"Fichas de autoaprendizaje a distancia Matemática",null,null,null,null,null,null,null,null,null,null,null,null,null,null,null,null,null,null,null,null,null,null,null,"12"]
["13",null,null,null,null,"Fichas de autoaprendizaje a distancia Comunicación",null,null,null,null,null,null,null,null,null,null,null,null,null,null,null,null,null,null,null,null,null,null,null,"13"]
["14",null,null,null,null,"Fichas de autoaprendizaje a distancia Ciencia y Tecnología",null,null,null,null,null,null,null,null,null,null,null,null,null,null,null,null,null,null,null,null,null,null,null,"14"]
["15",null,null,null,null,"Fichas de autoaprendizaje a distancia Ciencias Sociales",null,null,null,null,null,null,null,null,null,null,null,null,null,null,null,null,null,null,null,null,null,null,null,"15"]
["16",null,null,null,null,"Fichas de autoaprendizaje en lengua originaria",null,null,null,null,0,null,null,null,null,null,0,null,null,null,null,null,0,null,null,null,null,null,null,"16"]
["17",null,null,"DOCENTES DE SECUNDARIA",null,"Kit de evaluación: Manual de uso de la prueba diagnóstica Matemática",null,null,null,null,null,null,null,null,null,null,null,null,null,null,null,null,null,null,null,null,null,null,null,"17"]
["18",null,null,null,null,"Kit de evaluación: Manual de uso de la prueba diagnóstica Lectura-Escritura",null,null,null,null,null,null,null,null,null,null,null,null,null,null,null,null,null,null,null,null,null,null,null,"18"]
["19",null,null,null,null,"Kit de evaluación: Registro de la prueba de Matemática",null,null,null,null,null,null,null,null,null,null,null,null,null,null,null,null,null,null,null,null,null,null,null,"19"]
["20",null,null,null,null,"Kit de evaluación: Registro de la prueba de Lectura",null,null,null,null,null,null,null,null,null,null,null,null,null,null,null,null,null,null,null,null,null,null,null,"20"]
["21",null,null,null,null,"Kit de evaluación: Registro de la prueba de Escritura",null,null,null,null,null,null,null,null,null,null,null,null,null,null,null,null,null,null,null,null,null,null,null,"21"]
["22",null,null,"AULA",null,"Texto - Literatura en lengua originaria 1° y 2°",null,null,null,null,null,null,null,null,null,null,null,null,null,null,null,null,null,null,null,null,null,null,null,"22"]
["23",null,null,null,null,"Texto - Saberes de los pueblos 1° y 2°",null,null,null,null,null,null,null,null,null,null,null,null,null,null,null,null,null,null,null,null,null,null,null,"23"]
[null,null,null,null,null,null,null,null,{"$f":"COUNTIF(I31:I53,\"SI\")+COUNTIF(I31:I53,\"NO\")","v":0},null,{"$f":"SUM(K31:K53)","v":0},null,null,null,null,null,{"$f":"SUM(Q31:Q53)","v":0},null,null,null,null,null,{"$f":"SUM(W31:W53)","v":0}]

{"sheet":"C500","index":7,"n_rows":125,"n_cols":22,"rows_kept":125,"cut":false,"hidden":false,"merged":[[21,14,21,15],[31,8,31,9],[32,8,32,9],[22,11,22,13],[24,11,24,13],[32,10,32,13],[24,14,24,15],[31,10,31,13],[21,11,21,13],[22,14,22,15],[23,11,23,13],[23,14,23,15],[14,11,14,13],[9,14,11,15],[9,16,11,18],[14,16,14,18],[21,16,21,18],[15,14,15,15],[16,16,16,18],[17,16,17,18],[19,14,19,15],[20,14,20,15],[18,11,18,13],[19,16,19,18],[20,16,20,18],[18,16,18,18],[16,11,16,13],[17,11,17,13],[9,4,11,9],[9,11,11,13],[12,16,12,18],[13,16,13,18],[13,14,13,15],[12,14,12,15],[12,11,12,13],[13,11,13,13],[23,16,23,18],[32,19,32,20],[22,16,22,18],[24,16,24,18],[118,6,118,10],[45,5,45,10],[39,4,39,10],[37,2,37,10],[19,11,19,13],[20,11,20,13],[18,14,18,15],[17,14,17,15],[16,14,16,15],[124,16,124,20],[100,15,100,17],[101,15,101,17],[65,19,65,20],[66,19,66,20],[67,19,67,20],[68,19,68,20],[77,19,77,20],[79,19,79,20],[0,19,2,22],[0,4,0,18],[1,4,1,18],[55,18,55,21],[90,13,92,17],[90,18,90,21],[92,2,94,6],[92,7,93,10],[66,2,68,6],[66,7,67,10],[79,2,81,6],[79,7,80,10],[74,19,74,20],[15,16,15,18],[14,14,14,15],[15,11,15,13]]}
[null,null,null,null,"CENSO EDUCATIVO 2022",null,null,null,null,null,null,null,null,null,null,null,null,null,null,"3AS"]
["Si",null,null,null,"MATRÍCULA, DOCENTES Y MATERIALES EDUCATIVOS"]
["No"]
[]
[]
[null,"500. OTROS RECURSOS DISPONIBLES PARA LA ENSEÑANZA (Para II.EE. Públicas y Privadas)"]
[]
[null,null,"501. EQUIPOS Y SERVICIOS QUE DISPONE EL SERVICIO/NIVEL EDUCATIVO"]
[]
[null,null,null,null,"EQUIPOS Y SERVICIOS",null,null,null,null,null,null,"¿Cuántos tiene?",null,null,"¿Cuántos estan operativos?",null,"¿Son utilizados para la enseñanza en interacción con los estudiantes?\nSí - No"]
[null,null,null,null,null,null,null,null,null,null," SI - NO"]
[null,null,null,null,null,null,null,null,null,null,{"$f":"COUNTIF(K13:K25,\"SI\")+COUNTIF(K13:K25,\"NO\")","v":0}]
[null,null,null,null,"01","Televisor(es)",null,null,null,null,null,null,null,null,null,null,null,null,null,null,"SI"]
[null,null,null,null,"02","Computadoras (PC de escritorio)",null,null,null,null,null,null,null,null,null,null,null,null,null,null,"NO"]
[null,null,null,null,"03","Laptop convencionales"]
[null,null,null,null,"04","Laptop XO"]
[null,null,null,null,"05","Servidores (exclusivo del nivel)"]
[null,null,null,null,"06","Tablets"]
[null,null,null,null,"07","Proyector"]
[null,null,null,null,"08","Radiograbadora"]
[null,null,null,null,"09","Reproductor de DVD o Blue Ray"]
[null,null,null,null,"10","Impresoras"]
[null,null,null,null,11,"Pizarras digitales"]
[null,null,null,null,12,"Modem"]
[null,null,null,null,13,"Servicio de Internet"]
[]
[]
[null,null,"502. INICIATIVA RUTA SOLIDARIA: (Solo Gestión Pública)"]
[null,null,"502.1 DURANTE LOS ÚLTIMOS AÑOS, ESTE SERVICIO/NIVEL EDUCATIVO, HA RECIBIDO DOTACIÓN DE BICICLETAS"]
[null,null,null,"EN EL MARCO DE LA INICIATIVA RUTAS SOLIDARIAS?"]
[]
[null,null,null,null," Sí  ","",null,null,"TOTAL",null,"Última fecha de recepción"]
[null,null,null,null,null,null,null,null,"",null,"",null,null,null,null,"¿Cuántas bicicletas se han",null,null,null,""]
[null,null,null,null,null,null,null,null,null,null,null,null,null,null,null,"asignado a los estudiantes?"]
[null,null,null,null,"No  ","",null,null,"Pase a la pregunta 504"]
[]
[null,null,"SI EL NÚMERO DE BICICLETAS RECIBIDAS POR EL SERVICIO/NIVEL EDUCATIVO ES MAYOR AL NÚMERO DE BICICLETAS ENTREGADAS A LOS ESTUDIANTES, RESPONDER:"]
[null,null,"502.2 ¿PORQUÉ MOTIVO(S) NO SE HA ASIGNADO LA TOTALIDAD DE LAS BICICLETAS A LOS ESTUDIANTES?",null,null,null,null,null,null,null,null,null,null,"503.2. ¿SE LOGRARON REALIZAR LAS ACCIONES DE MANTENIMIENTO DE"]
[null,null,null,null,null,null,null,null,null,null,null,null,null,null,"BICICLETAS CON LOS RECURSOS DE PRONIED?"]
[null,null,null,"","Los padres no quieren asumir la responsabilidad ante pérdidas o daños."]
[null,null,null,"","Los padres no quieren poner en riesgo a sus hijos.",null,null,null,null,null,null,null,null," Sí  ","","No  ",""]
[null,null,null,"","No hay suficientes estudiantes que vivan lejos."]
[null,null,null,"","Los caminos no permiten el traslado en bicicleta."]
[null,null,null,"","Las bicicletas se encuentran en malestado."]
[null,null,null,"","Están esperando que termine la temporada de lluvias."]
[null,null,null,"","Otro",""]
[]
[]
[null,null,"503.1 ESTE SERVICIO/NIVEL EDUCATIVO, ¿HA RECIBIDO PRESUPUESTO",null,null,null,null,null,null,null,null,null,null,null,null,null,"¿Por qué no se logró realizar el mantenimiento?"]
[null,null,null,"DE PRONIED PARA EL MANTENIMIENTO DE BICICLETAS PARA EL"]
[null,null,null,"PRESENTE AÑO 2022 ?",null,null,null,null,null,null,null,null,null,null,null,{"$f":"COUNTIF(Q51:Q56,\"X\")","v":0},"","No hay mecánicos en la zona."]
[null,null,null,null,null,null,null,null,null,null,null,null,null,null,null,null,"","El servicio de reparación es muy costoso."]
[null,null,null,null," Sí  ","",null,null,null,null,null,null,null,null,null,null,"","No existen repuestos en la zona."]
[null,null,null,null,null,null,null,null,null,null,null,null,null,null,null,null,"","Los repuestos son muy costosos."]
[null,null,null,null,null,null,null,null,null,null,null,null,null,null,null,null,"","Aislamiento social"]
[null,null,null,null,"No  ","",null,null,"Pase a la pregunta 504",null,null,null,null,null,null,null,"","Otro",""]
[]
[]
[]
[]
[]
[null,"INTERNET, SEGURIDAD E IMPLEMENTACION"]
[null,"504. SOBRE EL ACCESO A INTERNET EN LAS INSTALACIONES DONDE",null,null,null,null,null,null,null,null,null,null,"507. SEÑOR(A) DIRECTOR(A) ¿CUAL(ES) DISPOSITIVO(S) INFORMATICO(S)"]
[null,null,"   FUNCIONA EL NIVEL/SERVICIO EDUCATIVO",null,null,null,null,null,null,null,null,null,null,"UTILIZA PRINCIPALMENTE PARA REALIZAR LAS LABORES DE GESTION"]
[null,null,"  (Marque con un aspa “X” según corresponda)",null,null,null,null,null,null,null,null,null,null,"DE ESTE NIVEL/SERVICIO EDUCATIVO EN SU HOGAR? (PC, LAPTOP, TABLET) ?"]
[]
[null,null,"ACTOR",null,null,null,null,"¿Tienen acceso a internet en el Servicio Educativo?",null,null,null,null,null,"","","Trabajo con una PC"]
[null,null,null,null,null,null,null,null,null,null,null,null,null,"","","Trabajo con una Laptop"]
[null,null,null,null,null,null,null," Sí,"," Sí, la"," Sí,",null,null,null,"","","Trabajo con una Tablet"]
[null,null,null,null,null,null,{"$f":"SUM(G71:G74)","v":0},"Todos","Mayoria","Algunos","Ninguno",null,null,"","","Trabajo con un Celular"]
[null,null,"Los estudiantes",null,null,null,{"$f":"COUNTIF(H71:K71,\"X\")","v":0},null,null,null,null,null,null,"",null,"No, no cuento con ninguno de los anteriores"]
[null,null,"El personal directivo",null,null,null,{"$f":"COUNTIF(H72:K72,\"X\")","v":0}]
[null,null,"El personal docente",null,null,null,{"$f":"COUNTIF(H73:K73,\"X\")","v":0},null,null,null,null,null,"508. EN ESTE NIVEL/SERVICIO EDUCATIVO, ¿SE ENCUENTRA BENEFICIADO"]
[null,null,"El personal administrativo",null,null,null,{"$f":"COUNTIF(H74:K74,\"X\")","v":0},null,null,null,null,null,null,"POR EL PLAN DE DATOS OTORGADO POR EL MINEDU?"]
[]
[null,null,null,null,null,null,null,null,null,null,null,null,null," Sí",null,null,"¿Cuál es la cantidad de profesores y"]
[null,"505. SOBRE EL ACCESO A INTERNET EN EL DOMICILIO",null,null,null,null,null,null,null,null,null,null,null,null,null,null,"auxiliares de educación, beneficiados?"]
[null,null,"  (Marque con un aspa “X” según corresponda)"]
[null,null,null,null,null,null,null,null,null,null,null,null,null," No",null,null,"Pase a la pregunta 510."]
[null,null,"ACTOR",null,null,null,null,"¿Tienen acceso a internet en su domicilio?"]
[null,null,null,null,null,null,null,null,null,null,null,null,"509. SOBRE EL PLAN DE DATOS OTORGADOS POR EL MINEDU, ¿ CREE UD. QUE"]
[null,null,null,null,null,null,null," Sí,"," Sí, la"," Sí,",null,null,null,"  LA MEDIDA IMPLEMENTADA CONTRIBUYÓ AL EJERCICIO DE LAS FUNCIONES"]
[null,null,null,null,null,null,{"$f":"SUM(G84:G87)","v":0},"Todos","Mayoria","Algunos","Ninguno",null,null,"  DE PROFESORES Y AUXILIARES DE EDUCACIÓN?"]
[null,null,"Los estudiantes",null,null,null,{"$f":"COUNTIF(H84:K84,\"X\")","v":0}]
[null,null,"El personal directivo",null,null,null,{"$f":"COUNTIF(H85:K85,\"X\")","v":0},null,null,null,null,null,null," Sí",null,"No  "]
[null,null,"El personal docente",null,null,null,{"$f":"COUNTIF(H86:K86,\"X\")","v":0}]
[null,null,"El personal administrativo",null,null,null,{"$f":"COUNTIF(H87:K87,\"X\")","v":0},null,null,null,null,null,"510. CON RESPECTO AL CONCOCIMIENTO Y ELABORACION DE CLASES"]
[null,null,null,null,null,null,null,null,null,null,null,null,null,"  VIRTUALES PARA LOS ESTUDIANTES. ¿CUAL ES EL NIVEL DE USO LAS"]
[null,null,null,null,null,null,null,null,null,null,null,null,null,"  HERRAMIENTAS O PLATAFORMAS TECNOLOGICAS PARA ESTE FIN ?"]
[null,"506. EN EL PRESENTE AÑO, ¿CUENTAN CON PC O LAPTOP EN SU DOMICILIO?"]
[null,null,"(Marque con un aspa “X” según corresponda)",null,null,null,null,null,null,null,null,null,null,"HERRAMIENTA/PLATAFORMA TECNOLÓGICA PARA LA ELABORACIÓN DE CLASES VIRTUALES",null,null,null,null,"Nivel de uso de los docentes"]
[]
[null,null,"ACTOR",null,null,null,null,"¿Cuéntan con Pc o Laptop en su domicilio?",null,null,null,null,{"$f":"SUM(M94:M100)","v":0},null,null,null,null,null,"Todos","Mayoria","Algunos","Ninguno"]
[null,null,null,null,null,null,null,null,null,null,null,null,{"$f":"COUNTIF(S94:V94,\"X\")","v":0},"Moodle"]
[null,null,null,null,null,null,null," Sí,"," Sí, la"," Sí,",null,null,{"$f":"COUNTIF(S95:V95,\"X\")","v":0},"Canvas"]
[null,null,null,null,null,null,{"$f":"SUM(G97:G100)","v":0},"Todos","Mayoria","Algunos","Ninguno",null,0,"Zoom"]
[null,null,"Los estudiantes",null,null,null,{"$f":"COUNTIF(H97:K97,\"X\")","v":0},null,null,null,null,null,0,"Meet"]
[null,null,"El personal directivo",null,null,null,{"$f":"COUNTIF(H98:K98,\"X\")","v":0},null,null,null,null,null,0,"Teams"]
[null,null,"El personal docente",null,null,null,{"$f":"COUNTIF(H99:K99,\"X\")","v":0},null,null,null,null,null,0,"Whatsapp"]
[null,null,"El personal administrativo",null,null,null,{"$f":"COUNTIF(H100:K100,\"X\")","v":0},null,null,null,null,null,0,"Facebook/Messenger"]
[null,null,null,null,null,null,null,null,null,null,null,null,0,"Otro 1"]
[null,null,null,null,null,null,null,null,null,null,null,null,0,"Otro 2"]
[]
[]
[null,"600. EDUCACIÓN FÍSICA Y DEPORTE (Para II.EE. Públicas y Privadas)"]
[]
[null,"A. SITUACIÓN DEL DEPORTE ESCOLAR"]
[null,"601. DURANTE EL AÑO 2020, EN ESTE NIVEL/SERVICIO EDUCATIVO, ¿SE FOMENTÓ",null,null,null,null,null,null,null,null,null,null,"602. ¿EL SERVICIO/NIVEL EDUCATIVO CUENTA CON LA ASIGNATURA DE"]
[null,null,"LA REALIZACIÓN DE ACTIVIDADES FÍSICAS O DEPORTE, CON LA FINALIDAD",null,null,null,null,null,null,null,null,null,null,"  EDUCACIÓN FÍSICA?"]
[null,null,"DE PRIORIZAR EL CUIDADO DEL ESTUDIANTE Y SU BIENESTAR INTEGRAL?",null,null,null,null,null,null,null,null,null,null,null,null,null,"¿Cuántas horas a la semana se dictan?"]
[null,null,null,null,null,null,null,null,null,null,null,null,null," Sí"]
[null,null," Sí",null,"No  ",null,null,null,null,null,null,null,null,null,null,null,"¿Cuántos docentes están asignados al "]
[null,null,null,null,null,null,null,null,null,null,null,null,null,null,null,null,"dictado del curso?"]
[null,null,null,null,null,null,null,null,null,null,null,null,null," No"]
[null,null,null,null,"Actividades de movimiento"]
[null,null,null,null,"Actividades de deporte",null,null,null,null,null,null,null,"603. EN EL PRESENTE AÑO 2022, ¿ESTE NIVEL/SERVICIO EDUCATIVO TIENE"]
[null,null,null,null,"Actividades artístico culturales",null,null,null,null,null,null,null,null,"PLANIFICADO LA EJECUCIÓN DE TALLERES COMPLEMENTARIOS?"]
[null,null,null,null,"Actividades complementarias de encuentro con la comunidad educativa"]
[null,null,null,null,"Otras Actividades",null,null,null,null,null,null,null,null," Sí",null,"No  "]
[]
[]
[null,null,null,null,null,null,null,null,null,null,null,null,null,null,null,"Expresarte"]
[null,null,null,null,null,null,null,null,null,null,null,null,null,null,null,"Orquestando"]
[null,null,null,null,null,null,null,null,null,null,null,null,null,null,null,"Talleres deportivos recreativos"]
[null,null,null,null,null,null,null,null,null,null,null,null,null,null,null,"Otro"]

{"sheet":"C700","index":8,"n_rows":268,"n_cols":26,"rows_kept":268,"cut":false,"hidden":false,"merged":[[23,7,24,11],[25,7,26,11],[27,7,28,11],[48,7,49,11],[51,7,52,11],[168,22,170,22],[135,23,135,24],[267,9,267,11],[127,21,127,23],[114,18,114,20],[106,20,106,23],[168,21,171,21],[167,17,171,19],[175,18,175,19],[239,19,239,21],[246,17,248,21],[248,23,248,25],[246,22,247,25],[207,22,207,24],[217,17,217,21],[168,24,171,24],[168,25,170,25],[168,20,170,20],[185,17,185,21],[92,5,92,14],[90,5,90,14],[91,5,91,14],[106,10,106,12],[88,5,88,14],[118,5,118,14],[167,23,167,25],[167,20,167,22],[145,17,148,19],[146,20,148,20],[146,21,148,21],[145,20,145,23],[154,18,154,19],[146,22,148,22],[146,23,148,23],[89,5,89,14],[251,23,251,25],[250,23,250,25],[249,23,249,25],[234,17,234,21],[191,19,191,21],[203,20,203,24],[16,17,16,23],[40,20,40,22],[77,20,77,22],[82,21,82,26],[62,19,62,20],[74,19,74,20],[73,19,73,20],[75,19,75,20],[76,19,76,20],[78,19,78,20],[66,19,66,20],[68,19,68,20],[83,23,83,25],[168,23,170,23],[121,24,122,24],[121,19,122,23],[85,17,87,24],[48,4,52,5],[31,4,34,5],[35,4,36,5],[14,24,15,24],[16,24,17,24],[22,24,24,24],[23,4,30,5],[14,17,14,23],[12,24,13,24],[18,24,19,24],[22,4,22,5],[37,4,47,5],[44,12,45,12],[46,12,47,12],[48,12,50,12],[51,12,52,12],[20,24,21,24],[29,12,30,12],[41,12,42,12],[23,12,24,12],[25,12,26,12],[27,12,28,12],[31,12,32,12],[37,12,38,12],[206,7,206,12],[153,3,153,7],[127,5,127,10],[128,5,128,10],[129,5,129,10],[130,5,130,10],[132,5,132,10],[152,3,152,7],[147,3,148,7],[131,6,131,10],[147,9,147,10],[147,11,147,12],[1,7,1,23],[2,7,2,23],[0,24,3,26],[138,3,139,13],[59,22,59,24],[119,5,119,14],[104,5,104,10],[105,5,105,10],[107,5,107,10],[108,5,108,10],[106,5,106,9],[100,5,100,10],[101,5,101,10],[102,5,102,10],[103,5,103,10],[111,17,111,20],[87,5,87,14],[116,5,116,14],[117,5,117,14],[11,17,11,23],[12,17,12,23],[13,17,13,23],[17,17,17,23],[46,20,46,22]]}
[null,null,null,null,null,null,null,null,null,null,null,null,null,null,null,null,null,null,null,null,null,null,null,null,"3AS"]
[null,null,null,null,null,null,null,"CENSO EDUCATIVO 2022"]
[null,"Si",null,null,null,null,null,"MATRÍCULA, DOCENTES Y MATERIALES EDUCATIVOS"]
[null,"No"]
[]
[]
[null,null,"700. FORTALECIMIENTO DE LA GESTIÓN"]
[]
[null,null,"701. ESTE NIVEL/SERVICIO EDUCATIVO ¿COORDINA ALGUNA ACCIÓN CON EL GOBIERNO LOCAL (DISTRITAL O PROVINCIAL) ",null,null,null,null,null,null,null,null,null,null,null,null,null,"704. SOBRE LA GESTIÓN DEL RIESGO DE DESASTRES Y LA SEGURIDAD EN ESTE"]
[null,null,null,"PARA MEJORAR LA PRESTACIÓN DEL SERVICIO EDUCATIVO?",null,null,null,null,null,null,null,null,null,null,null,null,null,"NIVEL/ SERVICIO EDUCATIVO, ATIENDA LAS SIGUIENTES PREGUNTAS:"]
[]
[null,null,null,null,null,null,null,null,null,null,null,null,null,null,null,null,{"$f":"SUM(Q13:Q25)","v":0},"PREGUNTA",null,null,null,null,null,null,"RESPUESTA"]
[null,null,"1: Siempre",null,"Sí    ",null,null,"No  ",null,null,"Pase a la pregunta 703.",null,null,null,null,null,{"$f":"IF(Y13<>\"\",1,0)","v":0},"¿Incorpora la Gestión del Riesgo de Desastres en los instrumentos de"]
[null,null,"2: Casi Siempre",null,null,null,null,null,null,null,null,null,null,null,null,null,null,"Gestión y Planificación Curricular para el desarrollo de una cultura de …"]
[null,null,"3: A Veces",null,null,null,null,null,null,null,null,null,null,null,null,null,{"$f":"IF(Y15<>\"\",1,0)","v":0},"¿El Plan de Gestión de Riesgo de Desastres contiene acciones con"]
[null,null,"4: Casi Nunca",null,null,null,"Con Municipalidad Distrital",null,null,null,null,null,null,null,null,null,null,"enfásis en la contingencia ante la emergencia sanitaria por Covid19?"]
[null,null,"5: Nunca",null,null,null,"Con Municipalidad Provincial",null,null,null,null,null,null,null,null,null,{"$f":"IF(Y17<>\"\",1,0)","v":0},"Las zonas seguras para el desplazamiento de los miembros de la comu-"]
[null,null,null,null,null,null,"Con ambas",null,null,null,null,null,null,null,null,null,null,"nidad educativa y las rutas de evacuación ¿se encuentran señalizadas?"]
[null,null,null,null,null,null,null,null,null,null,null,null,null,null,null,null,{"$f":"IF(Y19<>\"\",1,0)","v":0},"¿Se cuenta con el mínimo de dispositivos de seguridad"]
[null,null,"702. FRECUENCIA DE LA ACCION QUE AYUDA EL GOBIERNO LOCAL PARA MEJORAR",null,null,null,null,null,null,null,null,null,null,null,null,null,null,"para situaciones de emergencia y desastres?"]
[null,null,null,"LA PRESTACIÓN DEL SERVICIO",null,null,null,null,null,null,null,null,null,null,null,null,{"$f":"IF(Y21<>\"\",1,0)","v":0},"¿Fomenta la participación, compromiso y responsabilidad"]
[null,null,null,null,null,null,null,null,null,null,null,null,null,null,null,null,null,"sobre la Gestión del Riesgo de Desastres en la comunidad educativa?"]
[null,null,null,{"$f":"SUM(D24:D53)","v":0},"COMPONENTE",null,"ACCIÓN",null,null,null,null,null,"FRECUENCIA",null,null,null,{"$f":"IF(Y23<>\"\",1,0)","v":0},"¿Desarrolla actividades de soporte socioemocional como el autocuidado,"]
[null,null,null,{"$f":"IF(M24<>\"\",1,0)","v":0},"Infraes- tructura",null,"01","Proyecto de inversión pública para el mejoramiento o ampliación del local escolar",null,null,null,null,"",null,null,null,null,"la autoprotección y la resilencia en la comunidad educativa como"]
[null,null,null,null,null,null,null,null,null,null,null,null,null,null,null,null,null,"respuesta ante situaciones de emergencias y desastres?"]
[null,null,null,{"$f":"IF(M26<>\"\",1,0)","v":0},null,null,"02","Apoyo y asistencia técnica para el uso de recursos de mantenimiento preventivo",null,null,null,null,"",null,null,null,null,null,null,null,null,null,null,null,{"$f":"COUNTIF(Y13:Y25,\"SI\")+COUNTIF(Y13:Y25,\"NO\")","v":0}]
[]
[null,null,null,{"$f":"IF(M28<>\"\",1,0)","v":0},null,null,"03","Gestiones para el acceso a servicios básicos de IIEE   ( Agua, alcantarillado, luz)",null,null,null,null,"",null,null,null,"705. EN ESTE NIVEL/SERVICIO EDUCATIVO, ¿SE CUENTA CON PERSONAL QUE"]
[null,null,null,null,null,null,null,null,null,null,null,null,null,null,null,null,null,"SE ENCUENTRE DENTRO DEL GRUPO DE RIESGO DE LA COVID19 SEGÚN LO"]
[null,null,null,{"$f":"IF(M30<>\"\",1,0)","v":0},null,null,"04","Adquisición de mobiliario y equipamiento para la IIEE",null,null,null,null,"",null,null,null,null,"DEFINIDO POR EL NUMERAL 6.1.17 DE LA RM N° 972-2020-MINSA ?"]
[]
[null,null,null,{"$f":"IF(M32<>\"\",1,0)","v":0},"Aprendizajes",null,"05","Proyecto de inversión pública para la mejora de los aprendizajes",null,null,null,null,"",null,null,null,null,"Sí    ",null,null,"No  "]
[]
[null,null,null,{"$f":"IF(M34<>\"\",1,0)","v":0},null,null,"06","Programas de reforzamiento escolar",null,null,null,null,"",null,null,null,null,null,null,"Indique la cantidad de personal del grupo de riesgo:"]
[null,null,null,{"$f":"IF(M35<>\"\",1,0)","v":0},null,null,"07","Apoyo con material educativo",null,null,null,null,""]
[null,null,null,{"$f":"IF(M36<>\"\",1,0)","v":0},"Docentes",null,"08","Contratación de docentes",null,null,null,null,"",null,null,null,null,null,"Directivos y docentes:"]
[null,null,null,{"$f":"IF(M37<>\"\",1,0)","v":0},null,null,"09","Talleres o cursos de capacitación",null,null,null,null,"",null,null,null,null,null,"Administrativos y No docentes:"]
[null,null,null,{"$f":"IF(M38<>\"\",1,0)","v":0},"Gestión",null,"10","Articulación local con actores públicos y privados a nivel local",null,null,null,null,""]
[null,null,null,null,null,null,null,null,null,null,null,null,null,null,null,null,"706. ¿CUÁL ES LA PRIMERA PALABRA QUE SE LE VIENE A LA MENTE CUANDO"]
[null,null,null,{"$f":"IF(M40<>\"\",1,0)","v":0},null,null,"11","Atención de casos en DEMUNA",null,null,null,null,"",null,null,null,null,"PIENSA O ESCUCHA ‘’MINISTERIO DE EDUCACIÓN’’"]
[null,null,null,{"$f":"IF(M41<>\"\",1,0)","v":0},null,null,"12","Articulación con UGEL y DRE de su ámbito",null,null,null,null,"",null,null,null,null,"Escriba solo una palabra"]
[null,null,null,{"$f":"IF(M42<>\"\",1,0)","v":0},null,null,"13","Gestiones para la instalación de servicios básicos de conectividad",null,null,null,null,""]
[null,null,null,null,null,null,null,null,null,null,null,null,null,null,null,null,"707. ¿CON CUÁL DE LOS SIGUIENTES LEMAS O FRASES ASOCIA AL MINEDU?"]
[null,null,null,{"$f":"IF(M44<>\"\",1,0)","v":0},null,null,"14","Apoyo con alimentación para estudiantes",null,null,null,null,"",null,null,null,null,null,null,"Mejor educación, mejores peruanos"]
[null,null,null,{"$f":"IF(M45<>\"\",1,0)","v":0},null,null,"15","Vivienda y alimentación para docentes (zonas rurales, fronteras, etc)",null,null,null,null,"",null,null,null,null,null,null,"La educación no para"]
[null,null,null,null,null,null,null,null,null,null,null,null,null,null,null,null,null,null,null,"No asocio un lema específico al Minedu"]
[null,null,null,{"$f":"IF(M47<>\"\",1,0)","v":0},null,null,"16","Apoyo con movilidad local para estudiantes y docentes",null,null,null,null,"",null,null,null,null,null,null,"Otro"]
[]
[null,null,null,{"$f":"IF(M49<>\"\",1,0)","v":0},"Recuperación",null,"17","Promoción de acciones comunitarias para identificación de estudiantes que interrumpen estudios",null,null,null,null,"",null,null,null,"708. ¿CON QUÉ EMOCIONES ASOCIA CON EL MINEDU?"]
[null,null,null,null,null,null,null,null,null,null,null,null,null,null,null,null,null,null,null,"Positivas (Alegría, entusiasmo)"]
[null,null,null,null,null,null,null,null,null,null,null,null,null,null,null,null,null,null,null,"Neutra"]
[null,null,null,{"$f":"IF(M52<>\"\",1,0)","v":0},null,null,"18","Impulso del registro nominal de estudiantes en Alerta Escuela por parte de directores de II.EE",null,null,null,null,"",null,null,null,null,null,null,"Negativas (Tristeza, decepción, desconfianza, otras)"]
[]
[null,null,null,null,null,null,null,null,null,null,null,null,null,{"$f":"COUNTIF(M24:M53,\"5: Nunca\")","v":0},null,null,"709. ¿QUÉ CANAL DE COMUNICACIÓN UTILIZA PARA INFORMARSE SOBRE LAS"]
[null,null,"703. ¿iNCORPORA LA SEGURIDAD Y DEFENSA NACIONAL EN LOS INSTRUMENTOS",null,null,null,null,null,null,null,null,null,null,null,null,null,null,"LAS NOVEDADES DEL MINEDU?"]
[null,null,null,"DE GESTIÓN Y PLANIFICACIÓN CURRICULAR PARA EL DESARROLLO DE UNA",null,null,null,null,null,null,null,null,null,null,null,null,null,null,null,"SIAGIE",null,null,"Programas radiales"]
[null,null,null,"CULTURA DE PAZ, Y FORTALECIMIENTO DE LA IDENTIDAD NACIONAL?",null,null,null,null,null,null,null,null,null,null,null,null,null,null,null,"Redes sociales",null,null,"Mensajes de texto"]
[null,null,null,null,null,null,null,null,null,null,null,null,null,null,null,null,null,null,null,"Portales del Minedu",null,null,"Correo electrónico"]
[null,null,null,null,"Sí    ",null,null,"No  ",null,null,null,null,null,null,null,null,null,null,null,"Programas televisivos",null,null,"Otro"]
[]
[]
[]
[]
[]
[null,null,"710. ¿CUÁLES SON LOS PRINCIPALES TEMAS QUE REQUIERE COMO CAPACITACIÓN PARA MEJORAR SU DESEMPEÑO ",null,null,null,null,null,null,null,null,null,null,null,null,null,"727.  EN SU OPINIÓN, ¿CUÁL DE LAS SIGUIENTES ALTERNATIVAS CONSIDERA MÁS ÚTIL, SI SE "]
[null,null,null,"MEJORAR SU DESEMPEÑO COMO DIRECTOR(A)?",null,null,null,null,null,null,null,null,null,null,null,null,"           IMPLEMENTA EL SISTEMA DE MATRÍCULA DIGITAL /1 EN SU JURISDICCIÓN?"]
[]
[null,null,null,{"$f":"COUNTIF(E68:E75,\"x\")","v":0},null,"Estrategias y didáctica de las áreas de aprendizaje",null,null,null,null,null,null,null,null,null,null,null,null,"(Marque con una “X”, una opcion)"]
[null,null,null,null,null,"Evaluación de aprendizajes"]
[null,null,null,null,null,"Manejo de herramientas TIC y ofimáticas",null,null,null,null,null,null,null,null,null,null,null,null,null,"Reducción carga administrativa"]
[null,null,null,null,null,"Gestión del duelo y del bienestar socioemocional",null,null,null,null,null,null,null,null,null,null,null,null,null,"Mayor transparencia en los procesos de admisión de los estudiantes"]
[null,null,null,null,null,"Habilidades blandas para la gestión del equipo de docentes",null,null,null,null,null,null,null,null,null,null,null,null,null,"Mejoras en la difusión de vacantes"]
[null,null,null,null,null,"Relacionamiento institucional y gestión de alianzas",null,null,null,null,null,null,null,null,null,null,null,null,null,"Mejoras en la difusión de información sobre las características de su IE"]
[null,null,null,null,null,"Participación estudiantil",null,null,null,null,null,null,null,null,null,null,null,null,null,"No será útil"]
[null,null,null,null,null,"Ninguno de los temas anteriores"]
[]
[null,null,"711. ¿DURANTE EL 2021 Y HASTA LA FECHA DEL CENSO 2022, ¿HA REALIZADO ACCIONES EN FAVOR DEL"]
[null,null,null,"BIENESTAR SOCIOEMOCIONAL DE LOS ESTUDIAN- TES Y/O  DE LOS DOCENTES?",null,null,null,null,null,null,null,null,null,null,null,null,null,null,null,null,"¿ Por qué ?"]
[]
[null,null,null,null,null,null,null,null,null,null,null,null,null,null,null,null,null,null,null,null,null,"Baja demanda educativa o pocos estudiantes"]
[null,null,null,null,"Sí    ",null,null,null,"No",null,null,null,null,null,null,null,null,null,null,null,null,"La IE que dirijo es multigrado"]
[null,null,null,null,null,null,null,null,null,null,null,null,null,null,null,null,null,null,null,null,null,"Bajo o escaso acceso a internet en la localidad"]
[null,null,null,null,null,null,null,null,null,null,null,null,null,null,null,null,null,null,null,null,null,"En la localidad se habla otra lengua distinta al español"]
[null,null,null,null,null,null,null,null,null,null,null,null,null,null,null,null,null,null,null,null,null,"Otro motivo"]
[null,null,null,null,"¿Qué acciones realizo?"]
[null,null,null,null,"(Marque con una “X”, una o más opciones)",null,null,null,null,null,null,null,null,null,null,null,null,"/1  Matrícula  Digital,  es  un  sistema  a  través  del  cual  las  familias podrán  realizar  el  proceso  de  matrícula  para    primer  ingreso, reincorporación  o  traslado,  de  forma  gratuita  sin  exámenes  ni colas,   ya   que   todo   el   proceso   se   realiza   de   manera   virtual."]
[]
[null,null,null,null,null,"Elaborar un diagnóstico del estado del bienestar socioemocional de estudiantes"]
[null,null,null,null,null,"Elaborar un diagnóstico del estado del bienestar socioemocional de docentes"]
[null,null,null,null,null,"Ejecutar acciones en la IE para trabajar específicamente gestión de emociones"]
[null,null,null,null,null,"Generar espacios de diálogo en la comunidad educat. con docentes y/o familias",null,null,null,null,null,null,null,null,null,null,"728. SEÑOR(A) DIRECTOR(A), ¿USTED HA PARTICIPADO EN CURSOS, CAPACITACIONES Y/O "]
[null,null,null,null,null,"Promover espacios específicamente para abordar gestión de emociones con familias",null,null,null,null,null,null,null,null,null,null,"   CONGRESOS PARA EL FORTALECIMIENTO DE SU FORMACIÓN DOCEN- TE EN LOS ÚLTIMOS DOS AÑOS?"]
[null,null,null,null,null,"Ejecutar acciones en el marco de la Tutoría y Orientación Educativa (TOE)"]
[null,null,null,null,null,null,null,null,null,null,null,null,null,null,null,null,null,"Si",null,null,"No",null,null,"Pase a la pregunta 730"]
[null,null,"712. SEÑOR(A) DIRECTOR(A), DURANTE EL 2021 Y HASTA LA FECHA DEL CENSO 2022"]
[null,null,"         ¿ A TRAVÉS DE QUÉ MEDIO RECIBIÓ LA CAPACITACIÓN EL PERSONAL "]
[null,null,"         AUXILIAR DE EDUCACIÓN ?",null,null,null,null,null,null,null,null,null,null,null,null,null,"729. ¿QUÉ ASPECTOS DE SU FORMACIÓN DOCENTE HA FORTALECIDO EN SUS CURSOS,"]
[null,null,null,null,null,null,null,null,null,null,null,null,null,null,null,null,"           CAPACITACIONES Y/O CONGRESOS EN ESTOS DOS ÚLTIMOS AÑOS ?"]
[null,null,null,null,"(Marque con una “X”, una o más opciones)"]
[null,null,null,null,null,null,null,null,null,null,null,null,null,null,null,null,null,null,"(Marque con una “X”, una o más opciones)"]
[null,null,null,null,null,"Perueduca, cursos específicos para auxiliares"]
[null,null,null,null,null,"Perueduca, cursos para la comunidad educativa",null,null,null,null,null,null,null,null,null,null,null,null,null,"Metodología"]
[null,null,null,null,null,"Mi Institución Educativa",null,null,null,null,null,null,null,null,null,null,null,null,null,"Competencia lingüística"]
[null,null,null,null,null,"Mi UGEL",null,null,null,null,null,null,null,null,null,null,null,null,null,"Innovación y/o proyectos de innovación"]
[null,null,null,null,null,"Otra UGEL",null,null,null,null,null,null,null,null,null,null,null,null,null,"Enfoques e instrumentos para investigar en el aula"]
[null,null,null,null,null,"DRE",null,null,null,null,null,null,null,null,null,null,null,null,null,"Competencia socioemocional y/o habilidades socioemocionales"]
[null,null,null,null,null,"Otras instituciones",null,null,null,null,null,null,null,null,null,null,null,null,null,"Otros"]
[null,null,null,null,null,"No cuento con personal auxiliar de educación"]
[null,null,null,null,null,"El personal auxiliar de educación no recibió capacitación",null,null,null,null,null,null,null,null,null,null,"730. EN EL AÑO 2022, ¿ESTE SERVICIO/NIVEL EDUCATIVO HA REALIZADO O PARTICIPADO EN "]
[null,null,null,null,null,null,null,null,null,null,null,null,null,null,null,null,"         ACCIONES DE SEGURIDAD Y DEFENSA NACIONAL?",null,null,null,null,null,"(Marque todas las opciones implementadas)"]
[null,null,"713. SEÑOR(A) DIRECTOR(A), ¿CUÁL CONSIDERA USTED COMO PRINCIPAL TEMA"]
[null,null,"         QUE REQUIERE COMO CAPACITACIÓN EL PERSONAL AUXILIAR DE EDUCACIÓN, ",null,null,null,null,null,null,null,null,null,null,null,null,null,null,"Actividad",null,null,null,"Marcar con “X”"]
[null,null,"         PARA MEJORAR SU DESEMPEÑO?",null,null,null,null,null,null,null,null,null,null,null,null,null,null,"Capacitaciones"]
[null,null,null,null,null,null,null,null,null,null,null,null,null,null,null,null,null,"Utilizado una estrategía\ncomunicacional"]
[null,null,null,null,"(Marque con una “X”, una o más opciones)",null,null,null,null,null,null,null,null,null,null,null,null,"Otros"]
[]
[null,null,null,null,null,"Habilidades blandas (intelig. emocional, comunic. asertiva, manejo de conflictos, etc)",null,null,null,null,null,null,null,null,null,null,"731. EN EL AÑO 2022, ¿ESTE SERVICIO/NIVEL EDUCATIVO HA INCORPORADO ACCIONES DE GESTIÓN"]
[null,null,null,null,null,"Habilidades duras (TICs, primeros aux., uso y peligros de internet, etc.)",null,null,null,null,null,null,null,null,null,null," DEL RIESGO DE EMERGENCIAS Y DESASTRES EN SUS INSTRUMENTOS DE GESTIÓN VIGENTES?"]
[null,null,null,null,null,"Relación con los estudiantes (el juego, soporte socioem., prevención de la violencia escolar (bullying)",null,null,null,null,null,null,null,null,null,null,null,"Si",null,null,"No"]
[null,null,null,null,null,"No cuento con personal auxiliar de educación"]
[null,null,null,null,null,null,null,null,null,null,null,null,null,null,null,null,null,null,null,"Precise los documentos de gestión"]
[null,null,"714. SEÑOR(A) DIRECTOR(A), DURANTE EL 2021, ¿EL PERSONAL AUXILIAR DE EDU- ",null,null,null,null,null,null,null,null,null,null,null,null,null,null,null,null,"Documentos de Gestión",null,null,null,null,"Marcar\ncon “X”"]
[null,null,"            CACIÓN DESEMPEÑÓ O DESEMPEÑA OTRAS LABORES ADICIONALES A SU ROL "]
[null,null,"           COMO AUXILIAR DE EDUCACIÓN?",null,null,null,null,null,null,null,null,null,null,null,null,null,null,null,null,"Proyecto Educativo Institucional (PEI)"]
[null,null,null,null,null,null,null,null,null,null,null,null,null,null,null,null,null,null,null,"Plan Anual de Trabajo (PAT)"]
[null,null,null,null,"(Marque con una “X”, una o más opciones)",null,null,null,null,null,null,null,null,null,null,null,null,null,null,"Proyecto Currícular Institucional (PCI)"]
[null,null,null,null,null,null,null,null,null,null,null,null,null,null,null,null,null,null,null,"Reglamento Interno (RI)"]
[null,null,null,null,null,"No realizó/realiza otras labores adicionales en la IE",null,null,null,null,null,null,null,null,null,null,null,null,null,"Otros"]
[null,null,null,null,null,"Trabaja como docente"]
[null,null,null,null,null,"Trabaja como personal administrativo en la IE",null,null,null,null,null,null,null,null,null,null,"732. EN EL AÑO 2022, ¿ESTE SERVICIO/NIVEL EDUCATIVO CUENTA CON SU PLAN"]
[null,null,null,null,null,"Trabaja en otra IE",null,null,null,null,null,null,null,null,null,null,"         DE GESTIÓN DEL RIESGO DE DESASTRES VIGENTE?"]
[null,null,null,null,null,"Otro"]
[null,null,null,null,null,"No cuento con personal auxiliar de educación",null,null,null,null,null,null,null,null,null,null,null,"Si",null,null,"No"]
[]
[null,null,"715. SEÑOR(A) DIRECTOR(A), ¿ESTE SERVICIO/NIVEL EDUCATIVO QUE USTED DIRIGE CUENTA CON PERSONAL ADMINISTRATIVO?"]
[null,null,null,null,null,null,null,null,null,null,null,null,null,null,null,null,null,null,null,"Documento de aprobación N°"]
[null,null,null,null,"Sí",null,null,null," No  ","",null,"Pase a la pregunta 720"]
[null,null,null,null,null,null,null,null,null,null,null,null,null,null,null,null,null,null,null,"Fecha de aprobación",null,null,"Día","Mes","Año"]
[null,null,null,"Nota:  Responder según el tipo de personal declarado en la sección 300 sobre Personal docente, auxiliares de educación y administrativos."]
[]
[null,null,null,null,null,null,null,null,null,null,null,null,null,null,null,null,"733. EN EL AÑO 2022 ¿LOS MIEMBROS DE ESTE SERVICIO/NIVEL EDUCATIVO HAN SIDO"]
[null,null,"716. SOBRE EL PERSONAL ADMINISTRATIVO QUE LABORA EN ESTE SERVICIO/NIVEL EDUCATIVO, ",null,null,null,null,null,null,null,null,null,null,null,null,null,"     CAPACITADOS EN MATERIA DE GESTIÓN INTEGRAL DEL RIESGO DE EMERGENCIAS Y DESASTRES?"]
[null,null,null,"COMPLETA PARA CADA CARGO/PUESTO LOS SIGUIENTES DATOS.",null,null,null,"EDUCATIVO, COMPLETA PARA CADA CARGO/PUESTO LOS SIGUIENTES DATOS."]
[null,null,null,null,null,null,null,null,null,null,null,null,null,null,null,null,null,"Si",null,null,"No"]
[null,null,null,"(Marque con una “X” en “Sí” o “No” para cada pregunta y consigna las cantidades donde corresponda)"]
[null,null,null,null,null,null,null,null,null,null,null,null,null,null,null,null,null,"Tipo de\nCapacitación",null,null,"Cantidad de personas capacitadas"]
[null,null,null,null,null,null,null,null,null,null,null,null,null,null,null,null,null,null,null,null,"N° de Directores","N° de Docentes","N° de Adminis- trativos","N° Capacitados que pertenecen a la CEA y GRD"]
[null,null,null,"Puestos Administrativos",null,null,null,null,"¿Cuenta con este tipo de personal?","¿Ha sido capacitado\ndurante el 2021?",null,"La cantidad de personal que tiene ¿es suﬁciente?"]
[null,null,null,null,null,null,null,null,"Si  / No","Si  / No","¿Cuántas veces?","Si  / No","¿Qué cantidad seria suficiente?"]
[null,null,"01","a. Coordinador / Administrativo",null,null,null,null,null,null,null,null,null,null,null,null,"01","Curso",null,null,null,null,null,null,{"$f":"SUM(U150:X150)","v":0}]
[null,null,"02","b. Secretaria(o)",null,null,null,null,null,null,null,null,null,null,null,null,"02","Taller",null,null,null,null,null,null,{"$f":"SUM(U151:X151)","v":0}]
[null,null,"03","c. Oficinista",null,null,null,null,null,null,null,null,null,null,null,null,"03","Charla",null,null,null,null,null,null,0]
[null,null,"04","d. Trabajador de servicio que cumple funciones de guardianía y/o vigilancia",null,null,null,null,null,null,null,null,null,null,null,null,"04","Seminario",null,null,null,null,null,null,0]
[null,null,"05","e. Trabajador de servicio que cumple funciones de limpieza y mantenimiento",null,null,null,null,null,null,null,null,null,null,null,null,"05","Webinar",null,null,null,null,null,null,0]
[null,null,"06","f. Auxiliar de biblioteca",null,null,null,null,null,null,null,null,null,null,null,null,"06","Otro",null,null,null,null,null,null,0]
[null,null,"07","g. Auxiliar de laboratorio",null,null,null,null,null,null,null,null,null,{"$f":"COUNTIF(I150:I156,\"NO\")","v":0},null,null,null,null,null,null,null,null,null,{"$f":"SUM(U150:X155)","v":0}]
[null,null,null,null,null,null,null,null,{"$f":"COUNTIF(I150:I156,\"SI\") + COUNTIF(I150:I156,\"NO\")","v":0},null,null,null,null,null,null,null,"734. ESTE SERVICIO/NIVEL EDUCATIVO ¿CUENTA CON ALGUNA EXPERIENCIA EXITOSA O BUENA"]
[null,null,null,null,null,null,null,null,null,null,null,null,null,null,null,null,"  PRÁCTICA DOCENTE Y/O GESTIÓN ESCOLAR ENMARCADAS EN ALGUNA DE LAS LÍNEAS ESTRATÉGICAS?"]
[null,null,"717. ¿CUÁL DE LAS SIGUIENTES COMPETENCIAS CONSIDERA USTED COMO LA MÁS RELEVANTE EN EL EQUIPO "]
[null,null,null,"DE PERSONAL  ADMINISTRATIVO DE ESTE SERVICIO NIVEL EDUCATIVO?",null,null,null,null,null,null,null,null,null,null,null,null,null,"Si",null,null,"No"]
[]
[null,null,null,null,"(Marque con una “X”, una opción)"]
[]
[null,null,null,null,null,"Trabajo en equipo",null,null,null,null,null,null,null,null,null,null,null,null,"Complete la tabla"]
[null,null,null,null,null,"Atención a usuarios",null,null,null,null,null,null,null,null,null,null,null,null,"(Marque con una “X” en “Sí” o “No” para cada línea estratégica e ingrese los años según corresponda)"]
[null,null,null,null,null,"Comunicación asertiva"]
[null,null,null,null,null,"Orientación a resultados"]
[null,null,null,null,null,"Orden y planificación estratégica",null,null,null,null,null,null,null,null,null,null,null,"Línea estratégica",null,null,"Experiencia exitosa",null,null,"Buena práctica docente y/o Gestión escolar"]
[null,null,null,null,null,"Orientación al servicio",null,null,null,null,null,null,null,null,null,null,null,null,null,null,"¿Cuenta con experiencia exitosa?","Año de la experiencia exitosa","Se socializó con otras entidades","¿Cuenta con buena práctica docente y Gestión escolar?","Año de la buena práctica docente y/o Gestión escolar","Se socializó con otras entidades"]
[null,null,null,null,null,"Proactividad"]
[]
[null,null,"718. ¿CUÁLES SON LAS DOS PRINCIPALES TEMÁTICAS QUE CONSIDERA USTED QUE EL PERSONAL ",null,null,null,null,null,null,null,null,null,null,null,null,null,null,null,null,null,"Si / No",null,"Si / No","Si / No",null,"Si / No"]
[null,null,null,"ADMINISTRATIVO DE ESTE SERVICIO/NIVEL EDUCATIVO PODRÍA SER CAPACITADO?",null,null,null,null,null,null,null,null,null,null,null,null,"01","a. Gestión del Riesgo de Desastres"]
[null,null,null,null,null,null,null,null,null,null,null,null,null,null,null,null,"02","b. Adaptación al cambio climático"]
[null,null,null,null,"(Marque con una “X”, solamente dos opciones)",null,null,null,null,null,null,null,null,null,null,null,"03","c. Seguridad y Defensa Nacional"]
[null,null,null,null,null,null,null,null,null,null,null,null,null,null,null,null,"04","d. Otro"]
[null,null,null,{"$f":"COUNTIF(E177:E184,\"X\")","v":0},null,"Seguridad de control de accesos y de control interno de la IE.",null,null,null,null,null,null,null,null,null,null,"03",null,null,null,{"$f":"COUNTIF(U173:U176,\"SI\")+COUNTIF(U173:U176,\"NO\")","v":0},null,null,{"$f":"COUNTIF(X173:X176,\"SI\")+COUNTIF(X173:X176,\"NO\")","v":0},"",""]
[null,null,null,null,null,"Gestión del mantenimiento de la IE (materiales, ambientes y equipos)"]
[null,null,null,null,null,"Manejo de habilidades interpersonales (atención de usuarios)",null,null,null,null,null,null,null,null,null,null,"04",null,""]
[null,null,null,null,null,"Técnicas de archivo y despacho de documentos"]
[null,null,null,null,null,"Manejo de los sistemas informáticos del Minedu"]
[null,null,null,null,null,"Administración y control de recursos propios (financieros)",null,null,null,null,null,null,null,null,null,null,"735. EN EL AÑO 2022 ¿CUÁLES SON LOS EQUIPOS Y SERVICIOS INFORMÁTICOS QUE CUENTA ESTE SERVICIO/NIVEL "]
[null,null,null,null,null,"Manejo de herramientas TIC y ofimática",null,null,null,null,null,null,null,null,null,null,"         EDUCATIVO PARA REPORTAR LAS EMERGENCIAS, DESASTRES Y/O PELIGRO INMINENTE?"]
[null,null,null,null,null,"Prevención y atención de situaciones de riesgo",null,null,null,null,null,null,null,null,null,null,null,null,"(Marque con una “X”, una o más opciones)"]
[]
[null,null,"719. RESPECTO A LA CONTRIBUCIÓN DE PERSONAL ADMINISTRATIVO DURANTE EL 2021 Y HASTA LA FECHA DE LA",null,null,null,null,null,null,null,null,null,null,null,null,null,null,"Equipos ",null,null,null,null,"Marcar con X"]
[null,null,null,"APLICACIÓN DEL CENSO 2022, ¿EN QUÉ ÁMBI- TO(S) IDENTIFICÓ UN MAYOR INCREMENTO DE ACTIVIDADES OPERATIVAS",null,null,null,null,null,null,null,null,null,null,null,null,null,"PC"]
[null,null,null,"ADMINISTRATIVAS?",null,null,"(Marque con una “X”, una o más opciones)",null,null,null,null,null,null,null,null,null,null,"Tablet"]
[null,null,null,null,null,null,null,null,null,null,null,null,null,null,null,null,null,"Equipos Móviles"]
[null,null,null,null,null,null,null,null,null,null,null,null,null,null,null,null,null,"Internet"]
[null,null,null,null,null,"Gestión de recursos financieros, bienes, servicios e infraestructura",null,null,null,null,null,null,null,null,null,null,null,"No se cuenta"]
[null,null,null,null,null,"Gestión de información de la IE (registro en sistemas administrativos y trámite documentario)",null,null,null,null,null,null,null,null,null,null,null,"Otros"]
[null,null,null,null,null,"Gestión y seguimiento del uso de los recursos educativos."]
[null,null,null,null,null,"Limpieza y mantenimiento",null,null,null,null,null,null,null,null,null,null,"736. EN EL AÑO 2022, ANTE LA DETECCIÓN DEL PELIGRO INMINENTE, EMERGENCIA O DESASTRE ¿ESTE SERVICIO/NIVEL"]
[null,null,null,null,null,"Prevención y atención de situaciones de riesgo",null,null,null,null,null,null,null,null,null,null,"EDUCATIVO REALIZA LA ALERTA AL ESPACIO DE MONITOREO Y SEGUIMIENTO SECTORIAL (EMSS) DE LA UGEL?"]
[null,null,null,null,null,"No hubo incremento de las actividades administrativas operativas en el perso- nal administrativo"]
[null,null,null,null,null,null,null,null,null,null,null,null,null,null,null,null,null,"Si",null,null,"No"]
[null,null,"720. ¿QUÉ INFORMACIÓN LE GUSTARÍA ENCONTRAR EN EL PORTAL WEB PARA DIRECTIVO DE I.E. DEL MINEDU?"]
[]
[null,null,null,null,"(Marque con una “X”, una o más opciones)"]
[null,null,null,null,null,null,null,null,null,null,null,null,null,null,null,null,null,null,null,null,null,"¿Por qué? "]
[null,null,null,null,null,"Lecturas, infografías y materiales diversos sobre las funciones como directivo",null,null,null,null,null,null,null,null,null,null,null,null,null,null,null,"(Marque con una “X”, una o más opciones)"]
[null,null,null,null,null,"Videos tutoriales sobre las labores como directivos"]
[null,null,null,null,null,"Material diverso sobre habilidades blandas necesarias para el cargo",null,null,null,null,null,null,null,null,null,null,null,null,null,null,"ITEMS",null,null,null,null,"Marcar con X"]
[null,null,null,null,null,"Buenas prácticas para la gestión directiva",null,null,null,null,null,null,null,null,null,null,null,null,null,null,"No se tuvo emergencia en territorio"]
[null,null,null,null,null,"Información sobre las normativas sobre la gestión escolar",null,null,null,null,null,null,null,null,null,null,null,null,null,null,"No se cuenta con los instrum. y herramientas"]
[null,null,null,null,null,"Otros",null,null,null,null,null,null,null,null,null,null,null,null,null,null,"No se conoce el procedimiento"]
[null,null,null,null,null,null,null,null,null,null,null,null,null,null,null,null,null,null,null,null,"Otro"]
[null,null,"721. SEÑOR(A) DIRECTOR(A), DESDE QUE EMPEZASTE TU CARRERA COMO DOCENTE, "]
[null,null,null,"¿CUÁNTOS AÑOS DE EXPERIENCIA TIENES COMO?",null,null,null,null,null,"(Marque con una “X”, una opcion)",null,null,null,null,null,null,"737. EN EL AÑO 2022, ¿ESTE SERVICIO/NIVEL EDUCATIVO PARTICIPÓ EN LOS SIMULACROS CONVOCADOS"]
[null,null,null,null,null,null,null,null,null,null,null,null,null,null,null,null,"         POR MINEDU Y/O INDECI?"]
[null,null,null,null,null,"Directivo encargado    --          Cantidad de años:"]
[null,null,null,null,null,"Directivo designado    --          Cantidad de años:",null,null,null,null,null,null,null,null,null,null,null,"Si",null,null,"No"]
[]
[null,null,"722. ¿CON QUÉ FRECUENCIA VISITA EL PORTAL WEB PARA DIRECTIVO DE IE DEL MINEDU (https://directivos.minedu.gob.pe/)?"]
[null,null,null,null,null,null,null,null,null,null,null,null,null,null,null,null,null,null,"(Marque con una “X”, una o más opciones)"]
[null,null,null,null,"(Marque con una “X”, una opcion)"]
[null,null,null,null,null,null,null,null,null,null,null,null,null,null,null,null,null,"ITEMS",null,null,null,null,"Marcar con X"]
[null,null,null,null,null,"Frecuentemente",null,null,null,null,null,null,null,null,null,null,null,"Primer Simulacro"]
[null,null,null,null,null,"Poca frecuencia",null,null,null,null,null,null,null,null,null,null,null,"Segundo Simulacro"]
[null,null,null,null,null,"Casi nunca",null,null,null,null,null,null,null,null,null,null,null,"Tercer Simulacro"]
[null,null,null,null,null,"No visito el portal web",null,null,null,null,null,"Pase a la pregunta 725",null,null,null,null,null,"Cuarto Simulacro"]
[]
[null,null,"723. ¿CONSIDERAS QUE LA INFORMACIÓN QUE ENCUENTRAS EN EL PORTAL WEB DE DIRECTIVOS ES ÚTIL?\n",null,null,null,null,null,null,null,null,null,null,null,null,null,"738. ¿ESTE SERVICIO/NIVEL EDUCATIVO, ¿HA RECIBIDO POR PARTE DE LA UGEL ACCIONES DE COMUNICACIÓN"]
[null,null,null,null,null,null,null,null,null,null,null,null,null,null,null,null,"         PRESENCIAL O VIRTUAL PARA SENSIBILIZAR A LA COMUNIDAD EDUCATIVA EN TEMAS DE GESTIÓN DEL"]
[null,null,null,null,"(Marque con una “X”, una opcion)",null,null,null,null,null,null,null,null,null,null,null,"         RIESGO DE DESASTRES, CAMBIO CLIMÁTICO Y/O SEGURIDAD Y DEFENSA NACIONAL ?"]
[]
[null,null,null,null,null,"Muy útil",null,null,null,null,null,null,null,null,null,null,null,"Si",null,null,"No"]
[null,null,null,null,null,"Útil"]
[null,null,null,null,null,"Poco útil"]
[null,null,null,null,null,"Nada útil"]
[null,null,null,null,null,null,null,null,null,null,null,null,null,null,null,null,null,null,"Indique,  ¿Qué acciones implementó o recibió? "]
[null,null,null,null,null,null,null,null,null,null,null,null,null,null,null,null,null,null,"(Marque con una “X”, según corresponda)"]
[null,null,"724. ¿QUÉ CONTENIDOS NORMATIVOS ESPERARÍA ENCONTRAR EN EL PORTAL WEB PARA "]
[null,null,"          DIRECTIVO DE IE DEL MINEDU?",null,null,null,null,null,null,null,null,null,null,null,null,null,null,"ITEMS",null,null,null,null,"Marcar con X"]
[null,null,null,null,null,null,null,null,null,null,null,null,null,null,null,null,null,"Afiches y/o díptico y/o tríptico"]
[null,null,null,null,"(Marque con una “X”, hasta dos opciones)",null,null,null,null,null,null,null,null,null,null,null,null,"Carteles o murales"]
[null,null,null,null,null,null,null,null,null,null,null,null,null,null,null,null,null,"Ferias estudiantiles"]
[null,null,null,{"$f":"COUNTIF(E239:E242,\"X\")","v":0},null,"Sobre sus funciones",null,null,null,null,null,null,null,null,null,null,null,"Radionovela y/o audios y radioteatro y videos animados"]
[null,null,null,null,null,"Sobre los documentos de gestión de debe elaborar",null,null,null,null,null,null,null,null,null,null,null,"Otros"]
[null,null,null,null,null,"Sobre su rol de líder pedagógico"]
[null,null,null,null,null,"Sobre las faltas en las podría incurrir de incumplir sus funciones"]
[null,null,null,null,null,null,null,null,null,null,null,null,null,null,null,null,"739. ¿ESTE SERVICIO/NIVEL EDUCATIVO, ¿CUENTA CON EL APOYO DE ALIADOS ESTRATÉGICOS DE SU LOCALIDAD"]
[null,null,"725. DESDE EL 2019 A LA FECHA DE APLICACIÓN DEL CENSO 2022, ¿CONOCE LAS NORMAS",null,null,null,null,null,null,null,null,null,null,null,null,null,"         PARA ATENDER ALGUNO DE LOS SIGUIENTES TEMAS?"]
[null,null,"         QUE REGULAN SUS FUNCIONES COMO DIRECTOR?",null,null,null,null,null,null,null,null,null,null,null,null,null,null,"(Marque con una “X” en “Si” o “No” para cada caso y detalle al principal aliado estratégico según corresponda)"]
[]
[null,null,null,"Si",null,null,"No",null,null,null,null,null,null,null,null,null,null,"Temas por atender",null,null,null,null,"¿Cuenta con el apoyo de aliados\nestratégicos de su localidad?"]
[]
[null,null,"726. ¿TIENE CONOCIMIENTO QUE EXISTE UNA HERRAMIENTA DIGITAL PARA LA EMISIÓN ",null,null,null,null,null,null,null,null,null,null,null,null,null,null,null,null,null,null,null,"Si / No","Mencione al principal aliado en cada caso"]
[null,null,"          DE CERTIFICADOS DE ESTUDIOS?",null,null,null,null,null,null,null,null,null,null,null,null,null,null,"Gestión integral del riesgo de emergencias y desastres"]
[null,null,null,null,null,null,null,null,null,null,null,null,null,null,null,null,null,"Adaptación al cambio climático"]
[null,null,null,"Si",null,null,"No",null,null,null,null,null,null,null,null,null,null,"Seguridad y defensa nacional"]
[null,null,null,null,null,null,null,null,null,null,null,null,null,null,null,null,null,null,null,null,null,null,{"$f":"COUNTIF(W250:W252,\"SI\")+COUNTIF(W250:W252,\"NO\")","v":0}]
[]
[null,null,null,null,"¿Has hecho uso de la herramienta?"]
[]
[null,null,null,null,null,null,"Si  "]
[null,null,null,null,null,null,"No"]
[]
[]
[null,null,null,null,null,null,"¿Por qué?"]
[null,null,null,null,null,null,"(Marque con una “X”, una o más opciones)"]
[]
[null,null,null,null,null,null,null," Baja demanda educativa o pocos estudiantes"]
[null,null,null,null,null,null,null," La IE que dirijo es multigrado"]
[null,null,null,null,null,null,null," Bajo o escaso acceso a internet en la localidad"]
[null,null,null,null,null,null,null," En la localidad se habla otra lengua distinta al español"]
[null,null,null,null,null,null,null," Otro motivo"]

{"sheet":"C800","index":9,"n_rows":232,"n_cols":19,"rows_kept":232,"cut":false,"hidden":false,"merged":[[166,16,166,17],[165,10,165,11],[165,12,165,13],[165,14,165,15],[165,16,165,17],[161,14,161,15],[161,10,161,11],[163,12,163,13],[163,10,163,11],[166,14,166,15],[162,12,162,13],[166,10,166,11],[166,12,166,13],[162,14,162,15],[163,14,163,15],[41,11,48,11],[49,11,51,11],[41,18,42,18],[43,18,44,18],[45,18,46,18],[47,18,48,18],[49,18,50,18],[33,12,33,17],[34,11,40,11],[35,18,36,18],[36,7,36,9],[37,18,38,18],[39,18,40,18],[58,4,58,7],[81,12,81,17],[139,6,139,8],[159,2,160,2],[159,3,160,7],[160,16,160,17],[159,9,159,17],[160,14,160,15],[160,10,160,11],[160,12,160,13],[149,13,150,16],[174,3,174,5],[175,10,175,14],[176,7,176,9],[176,10,176,14],[177,2,177,6],[175,7,175,9],[175,2,175,6],[176,2,176,6],[177,7,177,9],[177,10,177,14],[56,18,57,18],[175,15,175,17],[176,15,176,17],[177,15,177,17],[174,10,174,14],[58,18,59,18],[52,11,59,11],[52,18,53,18],[54,18,55,18],[167,10,167,11],[161,12,161,13],[167,12,167,13],[161,16,161,17],[167,14,167,15],[167,16,167,17],[162,10,162,11],[1,4,1,15],[2,4,2,15],[0,16,3,18],[6,1,6,18],[174,7,174,9],[164,14,164,15],[174,15,174,17],[171,1,171,18],[162,16,162,17],[163,16,163,17],[164,10,164,11],[164,12,164,13],[164,16,164,17],[124,1,124,18],[94,4,94,7],[109,4,109,7]]}
[null,null,null,null,null,null,null,null,null,null,null,null,null,null,null,null,"3AS"]
[null,null,null,null,"CENSO EDUCATIVO 2022"]
["Si",null,null,null,"MATRÍCULA, DOCENTES Y MATERIALES EDUCATIVOS"]
["No"]
[]
[]
[null,"800. APRENDO EN CASA - MULTICANALES"]
[]
[null,"801. INDIQUE CUÁLES SON LOS MEDIOS DE COMUNICACIÓN O MULTICANALES POR LOS QUE LOS ESTUDIANTES DE ESTE NIVEL/SERVICIO EDUCATIVO,"]
[null,null,"PARTICIPAN DE LA ESTRATEGIA “APRENDO EN CASA” - AeC?"]
[null,null,null,null,null,null,null,null,null,null,"¿QUE ESTACIÓN DE RADIO USA PARA ESCUCHAR EL CONTENIDO DE AeC?"]
[null,null,null,"Radio (propia o familiar)",null,null,null,null,null,null,null,"Radio Nacional del Perú"]
[null,null,null,"Radio (autoparlantes o parlantes comunitarios)",null,null,null,null,{"$f":"CONCATENATE(C12,C13)","v":""},null,null,"Radio Regional que emite el programa"]
[null,null,null,"Televisión",null,null,null,null,null,null,null,"Radio local"]
[null,null,null,"Plataforma Web"]
[null,null,null,"WhatsApp",null,null,null,null,null,null,"LAS ACTIVIDADES PROPUESTAS EN LA WEB, ¿SON DESARROLLADAS POR LOS"]
[null,null,null,"Megáfono",null,null,null,null,null,null,"ESTUDIANTES DE LA IE?"]
[null,null,null,"Ninguno",null,"Pase a la pregunta 811.",null,null,null,null,null," Sí  ",null,null,null,"No  "]
[]
[null,"802. SOLO SI MARCO MAS DE UNA ALTERNATIVA EN LA PREGUNTA 801, INDIQUE",null,null,null,null,null,null,null,null,"806. DURANTE EL AÑO 2021, ESTE NIVEL/SERVICIO EDUCATIVO ¿COORDINA O"]
[null,null,"¿CUÁL ES LA PLATAFORMA DE MULTICANALES DE MAYOR USO POR PARTE",null,null,null,null,null,null,null,null,"ARTICULADO ALGUNA ACCIÓN CON EL GOBIERNO LOCAL PARA"]
[null,null,"DE LOS ESTUDIANTES PARA ACCEDER A LA ESTRATEGIA APRENDO EN CASA?",null,null,null,null,null,null,null,null,"INCREMENTAR EL ACCESO A LA ESTRATEGIA APRENDO EN CASA?"]
[]
[null,{"$f":"IF(C12<>\"\",C12,\"\")","v":""},null,"Radio (propia o familiar)",null,null,null,null,null,null,null," Sí  ",null,null,null,"No  ",null,"Pase a la pregunta 808."]
[null,"",null,"Radio (autoparlantes o parlantes comunitarios)"]
[null,"",null,"Televisión"]
[null,"",null,"Plataforma Web",null,null,null,null,null,null,null,null,null,"Con Municipalidad Distrital"]
[null,"",null,"WhatsApp",null,null,null,null,null,null,null,null,null,"Con Municipalidad Provincial"]
[null,"",null,"Megáfono",null,null,null,null,null,null,null,null,null,"Con ambas"]
[]
[null,null,null,null,null,null,null,null,null,null,"807. FRECUENCIA DE LAS ACCIONES DE AYUDA A LA ESTRATEGIA APRENDO"]
[null,"803. ¿EN QUÉ LENGUA ACCEDEN MAYORITARIAMENTE LOS ESTUDIANTES DE ESTE",null,null,null,null,null,null,null,null,null,"EN CASA, POR PARTE DEL GOBIERNO LOCAL"]
[null,null,"NIVEL/SERVICIO EDUCATIVO A LA MODALIDAD DE “APRENDO EN CASA”?"]
[null,null,null,null,null,null,null,null,null,null,{"$f":"SUM(K35:K60)","v":0},"MEDIO","ACCIÓN",null,null,null,null,null,"FRECUENCIA"]
[null,null,null,"Castellano",null,null,null,null,null,null,{"$f":"IF(S35<>\"\",1,0)","v":0},"Radio","01","Contratación y convenios con emisoras radiales.",null,null,null,null,""]
[null,null,null,"Lengua Originaria",null,null,null,"INDIQUE LA LENGUA ORIGINARIA",null,null,{"$f":"IF(S36<>\"\",1,0)","v":0},null,"02","Uso de radio municipal para retransmitir",null,null,null,null,""]
[null,null,null,"Ambas lenguas",null,null,{"$f":"CONCATENATE(C36,C37)","v":""},null,null,null,null,null,null,"la estrategia AeC."]
[null,null,null,null,null,null,null,null,null,null,{"$f":"IF(S38<>\"\",1,0)","v":0},null,"03","Uso de altoparlantes para difusión de",null,null,null,null,""]
[null,null,null,null,null,null,null,null,null,null,null,null,null,"la estrategia Aec."]
[null,"804. SEÑOR(A) DIRECTOR(A), ¿SE ENCUENTRA USTED SATISFECHO CON EL CONTENIDO",null,null,null,null,null,null,null,null,{"$f":"IF(S40<>\"\",1,0)","v":0},null,"04","Instalación y repotenciación de antenas ",null,null,null,null,""]
[null,null,"DE “APRENDO EN CASA”?, YA SEA EN CASTELLANO O EN LENGUA ORIGINARIA",null,null,null,null,null,null,null,null,null,null,"equipos de radio."]
[null,null,null,null,null,null,null,null,null,null,{"$f":"IF(S42<>\"\",1,0)","v":0},"TV y Cable","05","Instalación, repotenciación, reparación o",null,null,null,null,""]
[null,null,"En castellano",null,null,null,"En lengua originaria",null,null,null,null,null,null,"reactivación de antenas y equipos de TV."]
[null,null,null,"Satisfecho",null,null,null,"Satisfecho",null,null,{"$f":"IF(S44<>\"\",1,0)","v":0},null,"06","Uso de antena repetidora y TV municipal",null,null,null,null,""]
[null,null,null,"Poco satisfecho",null,null,null,"Poco satisfecho",null,null,null,null,null,"para retransmitir la estrategia AeC."]
[null,null,null,"Insatisfecho",null,null,null,"Insatisfecho",null,null,{"$f":"IF(S46<>\"\",1,0)","v":0},null,"07","Alquiler e instalación de antenas y equipos",null,null,null,null,""]
[null,null,null,"No aplica",null,null,null,"No aplica",null,null,null,null,null,"de cable (DIRECTV)."]
[null,null,null,null,null,null,null,null,null,null,{"$f":"IF(S48<>\"\",1,0)","v":0},null,"08","Trámite para licencias de funcionamiento",null,null,null,null,""]
[null,null,null,null,null,null,null,null,null,null,null,null,null,"y antenas"]
[null,"805.  DE LAS SIGUIENTES CARACTERÍSTICAS ¿CUÁL O CUÁLES CONSIDERA QUE",null,null,null,null,null,null,null,null,{"$f":"IF(S50<>\"\",1,0)","v":0},"Internet","09","Instalación y ampliación del servicio de",null,null,null,null,""]
[null,null," SON LAS CARACTERÍSTICAS QUE DESCRIBEN MEJOR LAS VENTAJAS DE LA",null,null,null,null,null,null,null,null,null,null," internet satelital."]
[null,null," PLATAFORMA “APRENDO EN CASA”?",null,null,null,null,null,null,null,{"$f":"IF(S52<>\"\",1,0)","v":0},null,"10","Wifi gratuito en espacios públicos.",null,null,null,null,""]
[null,null,null,null,null,null,null,"1: Siempre",null,null,{"$f":"IF(S53<>\"\",1,0)","v":0},"Otros","11","Elaboración y difusión de recursos para",null,null,null,null,""]
[null,null,null,"Es amigable",null,null,null,"2: Casi Siempre",null,null,null,null,null,"promocionar la estrategia AeC"]
[null,null,null,"Es rápido",null,null,null,"3: A Veces",null,null,{"$f":"IF(S55<>\"\",1,0)","v":0},null,"12","Fotocopiado, impresión y distribución de",null,null,null,null,""]
[null,null,null,"Esta bien organizado",null,null,null,"4: Casi Nunca",null,null,null,null,null,"material educativo"]
[null,null,null,"Tiene buen contenido",null,null,null,"5: Nunca",null,null,{"$f":"IF(S57<>\"\",1,0)","v":0},null,"13","Trámite para instalar nuevas antenas y ampliar",null,null,null,null,""]
[null,null,null,"Ninguna de las anteriores",null,null,null,null,null,null,null,null,null,"cobertura de las existentes (Radio, Tv y celular)"]
[null,null,null,"Otro",null,null,null,null,null,null,{"$f":"IF(S59<>\"\",1,0)","v":0},null,"14","Diálogo con actores públicos y privados para",null,null,null,null,""]
[null,null,null,null,null,null,null,null,null,null,null,null,null,"ampliar la cobertura y difundir la estrategia AeC"]
[null,null,null,null,null,null,null,null,null,null,null,null,null,null,null,null,null,null,{"$f":"COUNTIF(S35:S60,\"5: Nunca\")","v":0}]
[]
[]
[null,null,"808. LA WEB DE APRENDO EN CASA CONTIENE EXPERIENCIAS DE APRENDIZAJE PARA EL ÁREA DE ARTE Y CULTURA ¿CUÁL FUE EL USO QUE LE DIO A DICHOS RECURSOS?."]
[]
[null,null,null,null,"(Marque con una \"X\" , la opción que es más pertinente a su experiencia)"]
[null,null,null,null,null,"Las usé sin modificarlas porque era lo que necesitaba"]
[null,null,null,null,null,"Decidí adaptarlas para que respondan mejor a las necesidades de mis estudiantes"]
[null,null,null,null,null,"Las utilicé como un material de consulta o referencia para elaborar mis propias experiencias de aprendizaje"]
[null,null,null,null,null,"No las usé porque No se adaptaban a lo que necesitaba"]
[null,null,null,null,null,"No las usé porque era difícil encontrarlas en la web o No las encontré en la web"]
[]
[null,"809. LA MAYORÍA DE LOS DOCENTES DE ESTE NIVEL/SERVICIO EDUCATIVO, ¿REALIZAN",null,null,null,null,null,null,null,null,"813. ¿LOS ESTUDIANTES DE ESTE NIVEL/SERVICIO EDUCATIVO HAN"]
[null,null,"LA RETROALIMENTACIÓN A LOS ESTUDIANTES?",null,null,null,null,null,null,null,null,"RECIBIDO TABLET?"]
[]
[null,null,null," Sí  ",null,"No  ",null,null,null,null,null," Sí  ",null,null,null,"No  ",null,"Finalice esta sección"]
[]
[]
[null,null,null,"Elemental",null,null,null,null,null,null,"814. CANTIDAD DE ESTUDIANTES DE ESTE SERVICIO/NIVEL EDUCATIVO QUE HAN"]
[null,null,null,"Descriptiva",null,null,null,null,null,null,null,"  RECIBIDO TABLET MINEDU OPERATIVA"]
[null,null,null,"Reflexiva por descubrimiento"]
[null,null,null,null,null,null,null,null,null,null,null,null,"GRADOS DE ESTUDIO"]
[null,null,null,null,null,null,null,null,null,null,null,null,"1º ","2º ","3º ","4º ","5º ","TOTAL"]
[null,"810. LA MAYORIA DE LOS DOCENTES DE ESTE NIVEL/SERVICIO EDUCATIVO, ¿HAN",null,null,null,null,null,null,null,null,null,null,null,null,null,null,null,{"$f":"SUM(M84:Q84)","v":0}]
[null,null,"ESTABLECIDO EL MEDIO DE COMUNICACIÓN, PARA LA COORDINACIÓN Y"]
[null,null,"ACOMPAÑAMIENTO DEL TRABAJO REMOTO CON LOS PPFF Y/O ESTUDIANTES?"]
[]
[null,null,null," Sí  ",null,"No  "]
[null,null,null,null,null,null,null,null,null,null,"815. RESPECTO AL APROVECHAMIENTO Y NIVEL DE UTILIDAD DE LOS CONTENIDOS"]
[null,null,null,null,null,null,null,null,null,null,null,"Y TEMAS QUE SE ABORDAN EN LAS TABLETS, USTED CONSIDERA QUE ES:"]
[null,null,null,"WhatsApp"]
[null,null,null,"Facebook",null,null,null,null,null,null,null,null,"","Excelente"]
[null,null,null,"Correo electrónico",null,null,null,null,null,null,null,null,"","Suficiente"]
[null,null,null,"Llamada telefónica",null,null,null,null,null,null,null,null,"","Mejorable"]
[null,null,null,"Otros",null,null,null,null,null,null,null,null,"","Deficiente"]
[]
[null,null,null,null,null,null,null,null,null,null,"816. ¿QUÉ TAN ENTENDIBLES O DE FÁCIL COMPRENSIÓN PARA LOS ESTUDIANTES,"]
[null,null,null,null,null,null,null,null,null,null,null,"SON LOS CONTENIDOS Y HERRAMIENTAS DIGITALES PROPUESTAS EN"]
[null,"811. SI MARCÓ LA ALTERNATIVA “NINGUNO” EN LA PREGUNTA 801, RESPONDA:",null,null,null,null,null,null,null,null,null,"LAS TABLETS?"]
[null,null,"¿CUÁLES SON LOS MOTIVOS POR LOS QUE LOS ESTUDIANTES DE ESTE NIVEL/",null,null,null,null,null,null,null,null,null,"","Muy entendibles"]
[null,null,"SERVICIO EDUCATIVO NO ACCEDEN A “APRENDO EN CASA”?",null,null,null,null,null,null,null,null,null,"","Entendibles"]
[null,null,null,null,null,null,null,null,null,null,null,null,"","Poco entendibles"]
[null,null,"","No sabe cómo acceder",null,null,null,null,null,null,null,null,"","Nada entendibles"]
[null,null,"","No tiene TV o la señal es mala"]
[null,null,"","No tiene Radio o la señal es mala"]
[null,null,"","No tiene Internet o la señal es mala",null,null,null,null,null,null,"  817. CON LAS EXPERIENCIAS DE APRENDIZAJE PROPUESTAS EN LAS TABLET,  ¿QUE"]
[null,null,"","Usar otros recursos educativos",null,null,null,null,null,null,null,"TAN FLUIDA ES LA MANERA EN QUE SE PROMUEVE EL USO DE CONTENIDOS Y"]
[null,null,"","Se dedican a otras actividades productivas de la comunidad",null,null,null,null,null,null,null,"HERRAMIENTAS DIGITALES?"]
[null,null,"","No encuentra útiles los recursos de Aprendo en casa"]
[null,null,"","Otro","",null,null,null,null,null,null,null,"","Muy fluida"]
[null,null,"",null,"",null,null,null,null,null,null,null,"","Fluida"]
[null,null,null,null,null,null,null,null,null,null,null,null,"","Poco fluida"]
[null,"812. EN UN ESCENARIO DE EDUCACIÓN REMOTA ¿CUÁL ES EL MEDIO DE",null,null,null,null,null,null,null,null,null,null,"","Nada fluida"]
[null,null,"COMUNICACIÓN PERTINENTE, QUE SEGÚN LAS CONDICIONES DE LA ZONA,"]
[null,null,"PERMITEN LA COMUNICACIÓN Y APRENDIZAJE DE LOS ESTUDIANTES?."]
[]
[null,null,null,"Llamadas telefónicas (celular)"]
[null,null,null,"Whatsapp (audios o vídeos)"]
[null,null,null,"Facebook - Messenger"]
[null,null,null,"Videoconferencias (Meet, Zoom, Skype, etc)"]
[null,null,null,"Correo electrónico"]
[null,null,null,"Visitas domiciliarias"]
[]
[]
[null,"900. ORIENTACIÓN VOCACIONAL Y CIENCIA TECNOLÓGICA"]
[]
[null,"901. ¿IMPLEMENTA ESTRATEGIAS DE ORIENTACIÓN VOCACIONAL ENTRE",null,null,null,null,null,null,null,null,"903. ¿HA PARTICIPADO EN LA FERIA ESCOLAR NACIONAL DE CIENCIA Y"]
[null,null,"SUS ESTUDIANTES?",null,null,null,null,null,null,null,null,"TECNOLOGÍA “EUREKA” O “EUREKA VIRTUAL” EN LOS ÚLTIMOS 3 AÑOS ?"]
[]
[null,null,null," Sí  ",null,"No  ",null,null,null,null,null," Sí  ",null,"No  "]
[]
[]
[null,null,null,null,"¿Qué estrategias de orientación vocacional implementa ",null,null,null,null,null,null,null,"¿Hasta qué etapa de la feria EUREKA lograron clasificar?"]
[null,null,null,null,"entre sus estudiantes?"]
[null,null,null,null,null,null,null,null,null,null,null,null,null,"Primera Etapa (II.EE.)"]
[null,null,null,null,null,"Charlas motivacionales",null,null,null,null,null,null,null,"Segunda etapa (UGEL)"]
[null,null,null,null,null,"Asesorías",null,null,null,null,null,null,null,"Tercera etapa (DRE)"]
[null,null,null,null,null,"Entrega de fichas informativas.",null,null,null,null,null,null,null,"Cuarta Etapa (Nacional)"]
[null,null,null,null,null,"Promoción de plataforma “Ponte en Carrera”"]
[null,null,null,null,null,"Otros"]
[null,null,null,null,null,null,null,null,null,null,"904. ¿ CUENTA CON CONVENIOS DE UNIVERSIDADES QUE PERMITA A LOS"]
[null,"902. ¿TIENE CONOCIMIENTO DE LA PLATAFORMA WEB ",null,null,null,null,null,null,null,null,null,"ESTUDIANTES CON LAS MEJORES CALIFICACIONES OBTENER SUBVENCIONES "]
[null,null," www.ponteencarrera.pe ?",null,null,null,null,null,null,null,null,"EDUCATIVAS (Becas y/o Creditos), EN DICHAS CASAS DE ESTUDIO?"]
[]
[null,null,null," Sí  ","","No  ",null,null,null,null,null," Sí  ","","No  "]
[]
[]
[null,null,null,null,"¿CÓMO CALIFICARÍA ESTA HERRAMIENTA PARA LOS FINES",null,null,null,null,null,null,null,null,"A. ¿Cuántas universidades?"]
[null,null,null,null,"DE ORIENTAR VOCACIONALMENTE A SUS ESTUDIANTES ?"]
[null,null,null,null,null,null,null,null,null,null,null,null,null,"B. Número total de vacantes                ofrecidas"]
[null,null,null,null,"","Excelente"]
[null,null,null,null,"","Bueno"]
[null,null,null,null,"","Regular"]
[null,null,null,null,"","Malo"]
[]
[]
[null,"905. DURANTE EL AÑO ACADÉMICO 2021, ¿LOS ESTUDIANTES RECIBIERON ALGUNAS DE LAS CHARLAS U ORIENTACIONES ORGANIZADAS POR SU INSTITUCIÓN "]
[null,null,"EDUCATIVA, YA SEA PRESENCIAL O VIRTUAL?"]
[]
[null,null,"Nro.","Charlas / Orientaciones",null,null,null,null,null,"Grado de estudio"]
[null,null,null,null,null,null,null,null,{"$f":"SUM(I162:I168)","v":0},"1º","2º",null,"3º",null,"4º",null,"5º"]
[null,null,1,"Aplicación de una prueba de orientación vocacional",null,null,null,null,{"$f":"COUNTIF(J162:Q162,\"SI\")+COUNTIF(J162:Q162,\"NO\")","v":0}]
[null,null,2,"Charlas vocacionales",null,null,null,null,0]
[null,null,3,"Ferias acerca de carreras ofrecidas por las universidades",null,null,null,null,0]
[null,null,4,"Charlas de inducción en el Portal Ponte en Carrera",null,null,null,null,0]
[null,null,5,"Aplicación de simulacros de admisión a la universidad",null,null,null,null,0]
[null,null,6,"Charlas informativas sobre los programas de PRONABEC",null,null,null,null,0]
[null,null,7,"Ninguna charla u orientación",null,null,null,null,0]
[]
[]
[]
[null,"DATOS DEL DIRECTOR/RESPONSABLE DEL LLENADO DE LA CÉDULA"]
[]
[]
[null,null,null,"NOMBRES Y APELLIDOS",null,null,null,"CARGO",null,null,"CORREO ELECTRÓNICO",null,null,null,null,"TELÉFONO"]
[]
[]
[]
[]
[]
[]
[]
[]
[]
[]
[]
[]
[]
[]
[]
[]
["DIRECTOR(A)"]
["SUB DIRECTOR(A)"]
["DOCENTE"]
["COORDINADOR(A)"]
["ASESOR"]
["ADMINISTRATIVO"]
["ASISTENTE"]
["AUXILIAR"]
["SECRETARIA(O)"]
["ESTADÍSTICO"]
["ESPECIALISTA"]
["BIBLIOTECARIO"]
["CARE"]
["COMANDANTE PNP"]
["CONTADOR"]
["DAIP"]
["DIGITADOR(A)"]
["GERENTE"]
["JEFE ACADÉMICO"]
["JEFE ADMINISTRATIVO"]
["JEFE DE AREA"]
["JEFE DE LABORATORIO"]
["JEFE DE PERSONAL"]
["JEFE DE SEDE"]
["JEFE UNIDAD"]
["OFICINISTA"]
["OPERADOR DE SISTEMAS"]
["PERSONAL DE SERVICIO"]
["PROGRAMADOR"]
["PROMOTOR(A)"]
["PSICOLOGO"]
["REGISTRADOR(A)"]
["REPRESENTANTE LEGAL"]
["SOPORTE TECNOLOGICO"]
["TÉCNICO ADMINISTRATIVO"]
["TESORERO(A)"]
["TRABAJADOR SOCIAL"]
["TUTOR"]
["OTROS"]
["DOCENTE COORDINADOR(A)"]
["PEC"]

{"sheet":"Enviar","index":10,"n_rows":9,"n_cols":3,"rows_kept":9,"cut":false,"hidden":false,"merged":[[0,0,0,3],[1,0,1,3]]}
["CENSO EDUCATIVO 2022"]
["MATRÍCULA, DOCENTES Y MATERIALES EDUCATIVOS"]
[]
[]
[null,"Paso 1:","Realice el ENVÍO con su clave EOL."]
[]
[null,"Paso 2:","Una vez realizado el ENVÍO,  Revise su constancia de envio."]
[]
[null,"  ADVERTENCIA","ASEGÚRESE DE REGISTRAR TODA LA INFORMACIÓN DEL NIVEL INFORMANTE"]